Workbook

Sheet Hlavní list
F1: vytvořil:
B3: Nástroj k posouzení potenciálu úspor energie v programu Úspory energie
B4: u klientů Českomoravské rozvojové a záruční banky realizací jednoho až tří úsporných opatření nebo jejich kombinací.
B5: 0. Vyplňte identifikační údaje
B6: Název projektu:
B7: Klient:
B8: IČ klienta:
B9: Adresa žadatele:
B10: Adresa místa realizace projektu:
B11: Popis projektu:
B14: 1. Zaškrtněte, jaká opatření plánujete realizovat:
C15: 1. Výměna zdroje tepla | E15: =parametry!B109 -> FALSE
C16: 2. Zateplení, výměna výplní, instalace mechanického větrání | E16: =parametry!B110 -> FALSE
C17: 3. Náhrada světelných zdrojů LED zdroji | E17: =parametry!B111 -> FALSE
B19: 2. Předpokládané výdaje na realizaci projektu
B20: Výdaje na technické zhodnocení stavby (materiál a práce pro provedení zateplení, výměna u stavebních otvorů, další stavební práce spojené s provedením energetického opatření)
B22: Výdaje na výměnu stávajícího zdroje energie (výměna kotle, apod.)
B24: Výdaje na provedení výměny stávajícího osvětlení v budovách
B26: Výdaje celkem | D26: =IF(parametry!B109,D22,0)+IF(parametry!B111,D24,0)+IF(parametry!B110,D20,0) -> 0
B29: 3. Vyplňte postupně následující formuláře:
B30: Zateplení | C30: =IF(parametry!B110=TRUE,IFERROR(IF(Zateplení!H104=FALSE,"Doplňte list Zateplení","List Zateplení je celý vyplněn"),"Doplňte list Zateplení"),"") ->  | H30: =IF(C30="Doplňte list Zateplení",IF(C30="List Zateplení je celý vyplněn",TRUE,FALSE),"") -> 
B31: Kotel | C31: =IF(parametry!B109=FALSE,"",IF(Kotel!K23=TRUE,"List Kotel je celý vyplněn","Doplňte list Kotel")) ->  | H31: =IF(C31="Doplňte list Kotel",IF(C31="List Kotel je celý vyplněn",TRUE,FALSE),"") -> 
B32: Osvětlení | C32: =IF(parametry!B111=TRUE,IFERROR(IF(OR(Osvětlení!D43=0,Osvětlení!D43=Osvětlení!D44,Osvětlení!D44=0),"Doplňte list Osvětlení","List Osvětlení je celý vyplněn"),"Doplňte list Osvětlení"),"") -> 
B34: 4. Výsledky
C35: Celkem / Total
C36: kWh | D36: GJ
B37: Výchozí roční spotřeba energie | C37: =IF(kontrola=TRUE,D37/3.6*1000,"") ->  | D37: =IF(kontrola=TRUE,parametry!N84,"") -> 
B38: Výsledná roční spotřeba energie | C38: =IF(kontrola=TRUE,D38/3.6*1000,"") ->  | D38: =IF(kontrola=TRUE,parametry!N85,"") -> 
B39: Roční úspora paliv a energie | C39: =IF(C37="","",C37-C38) ->  | D39: =IF(D37="","",D37-D38) -> 
B40: Roční úspora paliv a energie [%] | C40: =IFERROR(C39/C37,0) -> 0
B41: Roční úspora emisí CO2 [kg] | C41: =IF(kontrola=TRUE,parametry!N89,0) -> 0
B42: Roční úspora emisí CO2 [%] | C42: =IF(kontrola=TRUE,parametry!N89/parametry!N87,0) -> 0
B43: Roční úspora emisí tuhých látek [kg] | D43: =parametry!N95 -> 0
B44: Roční úspora emisí frakcí PM10 [kg] | D44: =parametry!N98 -> 0
B45: Roční úspora emisí frakcí PM2,5 [kg] | D45: =parametry!N101 -> 0
B46: Roční úspora nákladů na energii [Kč] | C46: =IF(kontrola=TRUE,parametry!N92,0) -> 0
B48: Celkové vyhodnocení | C48: =IF(D26>3000000,"Projekt je NEZPŮSOBILÝ k realizaci v programu Úspory energie",IF(D37="","Nejsou zadána všechna data",IF(parametry!N86>parametry!N84,"Projekt není zadán správně. Opravte zadané parametry opatření (plochy zateplovaných konstrukcí, tloušťky izolací, větraný objem) a budovy (vytápěná plocha, spotřeba energie před realizací)",IF(AND(C40>10%,'opatření k realizaci'!J17="Všechna opatření splňují požadavky programu"),"Projekt je způsobilý k realizaci v programu Úspory energie","Projekt je NEZPŮSOBILÝ k realizaci v programu Úspory energie")))) -> Nejsou zadána všechna data
B50: 5. Specifikace realizovaných opatření
B51: Realizovaná opatření | C51: Popis opatření | E51: Vyhodnocení opatření
A52: 1 | B52: ='opatření k realizaci'!C21 ->  | C52: ='opatření k realizaci'!D21 ->  | E52: ='opatření k realizaci'!E21 -> 
A53: 2 | B53: ='opatření k realizaci'!C22 ->  | C53: ='opatření k realizaci'!D22 ->  | E53: ='opatření k realizaci'!E22 -> 
A54: 3 | B54: ='opatření k realizaci'!C23 ->  | C54: ='opatření k realizaci'!D23 ->  | E54: ='opatření k realizaci'!E23 -> 
A55: 4 | B55: ='opatření k realizaci'!C24 ->  | C55: ='opatření k realizaci'!D24 ->  | E55: ='opatření k realizaci'!E24 -> 
A56: 5 | B56: ='opatření k realizaci'!C25 ->  | C56: ='opatření k realizaci'!D25 ->  | E56: ='opatření k realizaci'!E25 -> 
A57: 6 | B57: ='opatření k realizaci'!C26 ->  | C57: ='opatření k realizaci'!D26 ->  | E57: ='opatření k realizaci'!E26 -> 
A58: 7 | B58: ='opatření k realizaci'!C27 ->  | C58: ='opatření k realizaci'!D27 ->  | E58: ='opatření k realizaci'!E27 -> 
A59: 8 | B59: ='opatření k realizaci'!C28 ->  | C59: ='opatření k realizaci'!D28 ->  | E59: ='opatření k realizaci'!E28 -> 
A60: 9 | B60: ='opatření k realizaci'!C29 ->  | C60: ='opatření k realizaci'!D29 ->  | E60: ='opatření k realizaci'!E29 -> 
A61: 10 | B61: ='opatření k realizaci'!C30 ->  | C61: ='opatření k realizaci'!D30 ->  | E61: ='opatření k realizaci'!E30 -> 
A62: 11 | B62: ='opatření k realizaci'!C31 ->  | C62: ='opatření k realizaci'!D31 ->  | E62: ='opatření k realizaci'!E31 -> 
A63: 12 | B63: ='opatření k realizaci'!C32 ->  | C63: ='opatření k realizaci'!D32 ->  | E63: ='opatření k realizaci'!E32 -> 
A64: 13 | B64: ='opatření k realizaci'!C33 ->  | C64: ='opatření k realizaci'!D33 ->  | E64: ='opatření k realizaci'!E33 -> 
A65: 14 | B65: ='opatření k realizaci'!C34 ->  | C65: ='opatření k realizaci'!D34 ->  | E65: ='opatření k realizaci'!E34 -> 
B74: Heslo:
A108: 2

Sheet Zateplení (hidden)
B1: Zateplení budovy | G1: Pokud chcete změnit dříve vyplněnou buňku je nutné resetovat dosavadní postup na tomto listu pomocí tlačítka "reset" níže
B3: 1. | C3: Základní informace o budově
B4: 1.1 | C4: Jakým způsobem budete zadávat projekt? | D4: Vyberte | H4: =IF(OR(parametry!B136=1,parametry!B136=2),FALSE,TRUE) -> TRUE
B5: 1.2 | C5: Vyberte typ posuzované budovy | D5: Vyberte | H5: =ISBLANK(F5) -> TRUE
B6: 1.3. | C6: Památková ochrana budovy | D6: Vyberte ano/ne | H6: =ISBLANK(F6) -> TRUE
B7: 1.4 | C7: Znáte roční spotřebu budovy? | D7: Vyberte ano/ne | H7: =IF(ISBLANK(F7),TRUE,IF(F7="ne",TRUE,FALSE)) -> TRUE
B8: 1.5 | C8: Jaká je roční spotřeba energie budovy? | D8: kWh | G8: =IFERROR(IF(ISBLANK(F8)=FALSE,IF(F8/F9>1000,"Příliš vysoká spotřeba energie na m2 plochy. Zkontrolujte spotřebu a podlahovou plochu",IF(F8/F9<30,"Příliš nízká spotřeba energie na m2 plochy. Zkontrolujte zadanou spotřebu a podlahovou plochu.","")),""),"") ->  | H8: =IF(ISBLANK(F7),TRUE,IF(AND(ISBLANK(F8),F7="ano"),TRUE,FALSE)) -> TRUE
B9: 1.6 | C9: Jaká je celková vytápěná (energeticky vztažná) plocha? | D9: m2 | G9: =IF(F9=0,"Zadejte podlahovou plochu vytápěné části v m2 - součet všech podlaží, včetně obvodových stěn","") -> Zadejte podlahovou plochu vytápěné části v m2 - součet všech podlaží, včetně obvodových stěn | H9: =ISBLANK(F9) -> TRUE
B10: 1.7 | C10: Období výstavby | D10: Vyberte | H10: =ISBLANK(F10) -> TRUE
B11: 1.8 | C11: Vnitřní návrhová teplota v otopném období | D11: °C | G11: =IF(ISBLANK(F11),"Zadejte vnitřní teplotu v objektu, pozn. standartně 20°C pro pobyt osob","") -> Zadejte vnitřní teplotu v objektu, pozn. standartně 20°C pro pobyt osob | H11: =ISBLANK(F11) -> TRUE
B12: 1.9 | C12: Dochází v projektu ke změně zdroje na vytápění? | D12: Vyberte ano/ne | G12: =IF(F12="ano","Vyplňte údaje na listu KOTEL",IF(parametry!B109=TRUE,"Pozor na hlavním listu jste zaškrtli, že dochází k výměně zdroje, je nutno specifikovat zdroj na listu Kotel","")) ->  | H12: =OR(ISBLANK(F12),ISBLANK(F11),$F$12="ano",parametry!B109=TRUE) -> TRUE
B13: 1.10 | C13: Jaký typ zdroje je instalován? | D13: Vyberte | G13: =IF(ISBLANK(F13),"Vyberte převažující zdroj vytápění","") -> Vyberte převažující zdroj vytápění | H13: =OR(ISBLANK(F13),$F$12="ano",$F$13="kotel na topný olej",$F$13="elektrokotel",$F$13="kotel na zemní plyn",$F$13="tepelné čerpadlo") -> TRUE
B14: 1.11 | C14: Jaké se používá palivo? | H14: =IF(AND(H13=FALSE,ISBLANK(F14)),TRUE,IF(AND(H13=TRUE,ISBLANK(F13)),TRUE,FALSE)) -> TRUE
B17: 2. | C17: Vyhodnocení plnění požadavků dle Průkazu energetické náročnosti | H17: =IF(ISBLANK(F4),TRUE,IF(AND(parametry!B136=2,OR(ISBLANK(F12),AND(F12="ne",OR(ISBLANK(F13),AND(OR(F13="kotel na tuhá paliva",F13="centrální zásobování teplem"),ISBLANK(F14)))))),TRUE,IF(parametry!B136=1,TRUE,IF(ISBLANK(parametry!B136),TRUE,FALSE)))) -> TRUE
B18: 2.1 | C18: Vypočtená hodnota průměrného součinitele prostupu tepla Uem po realizaci projektu | D18: W/(m2K) | G18: Zadejte hodnotu z PENB po realizaci z tabulky: Informace o stavebních prvcích a konstrukcích a technických systémech a.2) požadavky na průměrný součinitel prostupu tepla | H18: =IF(H17=TRUE,TRUE,ISBLANK(F18)) -> TRUE
B19: 2.2 | C19: Referenční hodnota průměrného součinitele prostupu tepla Uem,R po realizaci projektu | D19: W/(m2K) | G19: Zadejte hodnotu z PENB po realizaci z tabulky: Informace o stavebních prvcích a konstrukcích a technických systémech a.2) požadavky na průměrný součinitel prostupu tepla | H19: =ISBLANK(F19) -> TRUE
B20: 2.3 | C20: Vypočtená hodnota dodané energie ER po realizaci projektu | D20: kWh | G20: =IF(ISBLANK(F20),"Zadejte hodnotu z PENB po realizaci z tabulky: Energetická náročnost hodnocené budovy e) požadavek na celkovou dodanou energii",IF(F20/$F$9<20,"Zadaná hodnota spotřeby je příliš nízká","")) -> Zadejte hodnotu z PENB po realizaci z tabulky: Energetická náročnost hodnocené budovy e) požadavek na celkovou dodanou energii | H20: =ISBLANK(F20) -> TRUE
B21: 2.4 | C21: Vypočtená hodnota referenční dodané energie ER po realizaci projektu | D21: kWh | G21: =IF(ISBLANK(F21),"Zadejte hodnotu z PENB po realizaci z tabulky: Energetická náročnost hodnocené budovy e) požadavek na celkovou dodanou energii",IF(F21/$F$9<20,"Zadaná hodnota spotřeby je příliš nízká","")) -> Zadejte hodnotu z PENB po realizaci z tabulky: Energetická náročnost hodnocené budovy e) požadavek na celkovou dodanou energii | H21: =ISBLANK(F21) -> TRUE
B22: 2.5 | C22: Vypočtená hodnota dodané energie ER před realizací projektu | D22: kWh | G22: =IF(ISBLANK(F22),"Zadejte hodnotu z PENB po realizaci z tabulky: Energetická náročnost hodnocené budovy e) požadavek na celkovou dodanou energii",IF(F22/$F$9<20,"Zadaná hodnota spotřeby je příliš nízká","")) -> Zadejte hodnotu z PENB po realizaci z tabulky: Energetická náročnost hodnocené budovy e) požadavek na celkovou dodanou energii | H22: =ISBLANK(F22) -> TRUE
B23: 2.6 | C23: Vyhodnocení plnění požadavků na energetickou náročnost pro projekt jako celek | F23: =IF(OR(parametry!B136=1,ISBLANK(F22)),"",IF(F20/F22>0.9,"Projekt nedosahuje 10% úspory; je nezpůsobilý v rámci programu, zkuste zadat projektu znovu pomocí kalkulačky",IF(OR(F21/$F$9<20,F22/$F$9<20,F20/$F$9<20),"Zkontrolujte prosím správnost zadaných zadaných spotřeb (body 2.3, 2.4, 2.5) a vytápěné plochy (bod 1.6). Pokud jsou zadány správně, potvrďte zadání dat v řádku 2.7",IF(OR(F18<0.95*F19,F20<0.9*F21),"Projekt jako celek splňuje požadavky na energetickou náročnost","Projekt jako celek nesplňuje požadavky na energetickou náročnost")))) ->  | G23: =IF(F23="Projekt jako celek nesplňuje požadavky na energetickou náročnost","Doplňte součinitele prostupu tepla u jednotlivých opatření níže v tabulce 4","") ->  | H23: =IF(ISBLANK(F22),TRUE,IF(F23="Zkontrolujte prosím správnost zadaných zadaných spotřeb (body 2.3, 2.4, 2.5) a vytápěné plochy (bod 1.6). Pokud jsou zadány správně, potvrďte zadání dat v řádku 2.7",FALSE,TRUE)) -> TRUE
B24: 2.7 | C24: Potvrďte, že jsou hodnoty zadány správně
B26: 3. | C26: Vlastnosti budovy před realizací opatření | G26: Výběrem z předvolených možností definujte budovu, kterou chcete rekonstruovat v rámci programu | H26: =IF(parametry!B136=2,I26,J26) -> TRUE | I26: =IF(AND(parametry!B136=2,H22=FALSE,OR(F23="Projekt jako celek splňuje požadavky na energetickou náročnost",F23="Projekt jako celek nesplňuje požadavky na energetickou náročnost")),FALSE,IF(AND(parametry!B136=2,ISBLANK(F24)),TRUE,FALSE)) -> FALSE | J26: =IF(AND(parametry!B136=1,H13=TRUE,H14=FALSE),FALSE,IF(F12="ano",FALSE,IF(AND(H13=FALSE,H14=FALSE),FALSE,TRUE))) -> TRUE
B27: 3.1 | C27: Popis stávajících konstrukcí
B28: 3.1.1 | C28: Obvodový plášť | D28: Specifikujte konstrukci | G28: Vyberte z předvolených konstrukcí konstrukci, která nejvíce odpovídá vašemu objektu | H28: =ISBLANK(F28) -> TRUE
B29: 3.1.2 | C29: Střecha | D29: Vyberte typ konstrukce | G29: "Šikmá střecha" znamená využívané podkroví, "Strop půdy" znamená nevytápěnou půdu | H29: TRUE
B30: 3.1.3 | D30: Specifikujte konstrukci | G30: Vyberte z předvolených konstrukcí konstrukci, která nejvíce odpovídá vašemu objektu, pokud je předvolená pouze 1 možnost, vyberte ji | H30: TRUE
B31: 3.1.4 | C31: Podlaha, strop nad suterénem | D31: Vyberte typ konstrukce | G31: Pokud je v budově vytápěný suterén - zvolte "Podlaha na zemině" | H31: TRUE
B32: 3.1.5 | D32: Specifikujte konstrukci | G32: Vyberte z předvolených konstrukcí konstrukci, která nejvíce odpovídá vašemu objektu, pokud je předvolená pouze 1 možnost, vyberte ji | H32: TRUE
B33: 3.1.6 | C33: Okna | D33: Vyberte typ konstrukce | G33: Vyberte výplň, kterou hodláte měnit. Pokud měníte více typů výplní, zvolte tu , která odpovídá největší ploše měněných výplní. | H33: TRUE
B34: 3.1.7 | C34: Dveře, vrata | D34: Vyberte typ konstrukce | G34: Vyberte dveřní výplň, kterou hodláte měnit. Pokud měníte více typů výplní, zvolte tu , která odpovídá největší ploše měněných výplní. | H34: TRUE
B35: 3.1.8 | C35: Střešní okna, světlíky | D35: Vyberte typ konstrukce | G35: Pokud v budově nejsou střešní okna ani světlíky, nevybírejte nic a pokračujte vyplněním tabulky č. 4
B36: 3.2 | C36: Provedená opatření od doby výstavby objektu / Measures already carried out
C37: Výměna oken / Windows replacement | D37: Vyberte ano / ne
D38: Kdy (rok realizace)
D39: Typ vyměněných oken vyberte
D40: Plocha vyměněných oken v m2
C41: Zateplení obvodového pláště / Insulation of the building envelope | D41: Vyberte ano / ne
D42: Kdy (rok realizace)
D43: Typ zateplení
D44: Tloušťka tepelné izolace [mm]
D45: Plocha zateplené konstrukce v m2
C46: Zateplení střechy / Insulation of the roof | D46: Vyberte ano / ne | G46: =IF(F2="ne",IF(AND(F46="ano",F50=0),"Zadejte % zateplení",""),"") -> 
D47: Kdy (rok realizace)
D48: Typ zateplení
D49: Tloušťka tepelné izolace [mm]
D50: Plocha zateplené konstrukce v m2
C51: Zateplení podlahy / Insulation of the floor | D51: Vyberte ano / ne | G51: =IF(F7="ne",IF(AND(F51="ano",F55=0),"Zadejte % zateplení",""),"") -> 
D52: Kdy (rok realizace)
D53: Typ zateplení
D54: Tloušťka tepelné izolace [mm]
D55: Plocha zateplené konstrukce v m2
B57: 4. | C57: Opatření k realizaci | G57: Definujte parametry opatření, která hodláte realizovat v rámci programu
B58: 4.1. | C58: Zateplení obvodového pláště | D58: Vyberte ano / ne | H58: =OR(ISBLANK(F58),F58="ne") -> TRUE | I58: =AND(F58="ano",ISBLANK(F62)) -> FALSE
B59: 4.1.2 | D59: Typ zateplení | G59: Vyberte typ zateplení, které nejlépe charakterizuje vámi realizované. V případě realizace více typů, uveďte ten s největší plochou. | H59: =OR(ISBLANK(F58),F58="ne") -> TRUE
B60: 4.1.3 | D60: Tloušťka tepelné izolace [mm] | G60: Tloušťku izolace zadejte v mm | H60: =(ISBLANK(F59)) -> TRUE
B61: 4.1.4 | D61: Plocha zateplované konstrukce [m2] | H61: =(ISBLANK(F60)) -> TRUE
B62: 4.1.5 | D62: Součinitel prostupu tepla konstrukce z PENB [W/(m2.K)] | G62: Zadejte hodnotu z Průkazu energetické náročnosti po realizaci projektu z tabulky a.1) požadavky na součinitel prostupu tepla - Vypočtená hodnota Uj | H62: =IF(ISBLANK(F61),TRUE,IF(parametry!$B$136=2,FALSE,TRUE)) -> TRUE
B63: 4.1.6 | D63: Součinitel prostupu tepla výpočet z kalkulačky [W/(m2.K)] | F63: =IF(ISBLANK(F60),"",parametry!H186) ->  | H63: =IF(ISBLANK(F61),TRUE,IF(parametry!$B$136=2,TRUE,FALSE)) -> TRUE
B64: 4.1.7 | D64: Požadavek programu na U [W/(m2.K)] | E64: =parametry!L186 ->  | F64: =IF(ISBLANK(F60),"",parametry!K186) ->  | G64: Hodnota je nastavená dle specifických podmínek programu a vámi zvoleného typu budovy a dalších kritérií | H64: =IF(ISBLANK(F4),TRUE,IF(ISBLANK(parametry!$B$136),TRUE,IF(AND(OR(F58="ano",ISBLANK(F58)),parametry!$B$136=2,ISBLANK(F62)),TRUE,IF(AND(OR(F58="ano",ISBLANK(F58)),parametry!$B$136=1,ISBLANK(F61)),TRUE,FALSE)))) -> TRUE
B65: 4.1.8 | D65: Vyhodnocení plnění požadavku | F65: =parametry!M186 -> 
B66: 4.2. | C66: Zateplení střechy | D66: Vyberte ano / ne | H66: =IF(ISBLANK(F58),TRUE,IF(F58="ANO",IF(parametry!B136=1,ISBLANK(Zateplení!F61),ISBLANK(Zateplení!F62)),FALSE)) -> TRUE | I66: =AND(F66="ano",ISBLANK(F70)) -> FALSE
B67: 4.2.2 | D67: Typ zateplení | G67: Vyberte typ zateplení, které nejlépe charakterizuje vámi realizované. V případě realizace více typů, uveďte ten s největší plochou. | H67: =OR(ISBLANK(F66),F66="ne") -> TRUE
B68: 4.2.3 | D68: Tloušťka tepelné izolace [mm] | G68: Tloušťku izolace zadejte v mm | H68: =(ISBLANK(F67)) -> TRUE
B69: 4.2.4 | D69: Plocha zateplované konstrukce [m2] | H69: =(ISBLANK(F68)) -> TRUE
B70: 4.2.5 | D70: Součinitel prostupu tepla konstrukce z PENB [W/(m2.K)] | G70: Zadejte hodnotu z Průkazu energetické náročnosti po realizaci projektu z tabulky a.1) požadavky na součinitel prostupu tepla - Vypočtená hodnota Uj | H70: =IF(ISBLANK(F69),TRUE,IF(parametry!$B$136=2,FALSE,TRUE)) -> TRUE
B71: 4.2.6 | D71: Součinitel prostupu tepla výpočet z kalkulačky [W/(m2.K)] | F71: =IF(ISBLANK(F68),"",parametry!H187) ->  | H71: =IF(ISBLANK(F69),TRUE,IF(parametry!$B$136=2,TRUE,FALSE)) -> TRUE
B72: 4.2.7 | D72: Požadavek programu na U [W/(m2.K)] | E72: =parametry!L187 ->  | F72: =IF(ISBLANK(F68),"",parametry!K187) ->  | G72: Hodnota je nastavená dle specifických podmínek programu a vámi zvoleného typu budovy a dalších kritérií | H72: =IF(ISBLANK(F4),TRUE,IF(ISBLANK(parametry!$B$136),TRUE,IF(AND(OR(F66="ano",ISBLANK(F66)),parametry!$B$136=2,ISBLANK(F70)),TRUE,IF(AND(OR(F66="ano",ISBLANK(F66)),parametry!$B$136=1,ISBLANK(F69)),TRUE,FALSE)))) -> TRUE
B73: 4.2.8 | D73: Vyhodnocení plnění požadavku | F73: =parametry!M187 ->  | G73: =IF(F73="Konstrukce nesplňuje požadavky programu","Pozn. Upravte tloušťku nebo typ zateplení nebo součinitel prostupu tepla konstrukce","") -> 
B74: 4.3. | C74: Zateplení podlahy | D74: Vyberte ano / ne | H74: =OR(IF(ISBLANK(F66),TRUE,NOT(F66="ne")),IF(parametry!B136=1,ISBLANK(Zateplení!F69),ISBLANK(Zateplení!F70))) =IF(ISBLANK(F66),TRUE,IF(F66="ANO",IF(parametry!B136=1,ISBLANK(Zateplení!F69),ISBLANK(Zateplení!F70)),FALSE)) -> TRUE | I74: =AND(F74="ano",ISBLANK(F78)) -> FALSE
B75: 4.3.2 | D75: Typ zateplení | G75: Vyberte typ zateplení, které nejlépe charakterizuje vámi realizované. V případě realizace více typů, uveďte ten s největší plochou. | H75: =OR(ISBLANK(F74),F74="ne") -> TRUE
B76: 4.3.3 | D76: Tloušťka tepelné izolace [mm] | G76: Tloušťku izolace zadejte v mm | H76: =(ISBLANK(F75)) -> TRUE
B77: 4.3.4 | D77: Plocha zateplované konstrukce [m2] | H77: =(ISBLANK(F76)) -> TRUE
B78: 4.3.5 | D78: Součinitel prostupu tepla konstrukce z PENB [W/(m2.K)] | G78: Zadejte hodnotu z Průkazu energetické náročnosti po realizaci projektu z tabulky a.1) požadavky na součinitel prostupu tepla - Vypočtená hodnota Uj | H78: =IF(ISBLANK(F77),TRUE,IF(parametry!$B$136=2,FALSE,TRUE)) -> TRUE
B79: 4.3.6 | D79: Součinitel prostupu tepla výpočet z kalkulačky [W/(m2.K)] | F79: =IF(ISBLANK(F76),"",parametry!H188) ->  | H79: =IF(ISBLANK(F77),TRUE,IF(parametry!$B$136=2,TRUE,FALSE)) -> TRUE
B80: 4.3.7 | D80: Požadavek programu [W/(m2.K)] | E80: =parametry!L188 ->  | F80: =IF(ISBLANK(F76),"",parametry!K188) ->  | G80: Hodnota je nastavená dle specifických podmínek programu a vámi zvoleného typu budovy a dalších kritérií | H80: =IF(ISBLANK(F4),TRUE,IF(ISBLANK(parametry!$B$136),TRUE,IF(AND(OR(F74="ano",ISBLANK(F74)),parametry!$B$136=2,ISBLANK(F78)),TRUE,IF(AND(OR(F74="ano",ISBLANK(F74)),parametry!$B$136=1,ISBLANK(F77)),TRUE,FALSE)))) -> TRUE
B81: 4.3.8 | D81: Vyhodnocení plnění požadavku | F81: =parametry!M188 ->  | G81: =IF(F81="Konstrukce nesplňuje požadavky programu","Pozn. Upravte tloušťku nebo typ zateplení nebo součinitel prostupu tepla konstrukce","") -> 
B82: 4.4. | C82: Výměna oken, výplní ve stěně | D82: Vyberte ano / ne | H82: =IF(ISBLANK(F74),TRUE,IF(F74="ANO",IF(parametry!B136=1,ISBLANK(Zateplení!F77),ISBLANK(Zateplení!F78)),FALSE)) -> TRUE | I82: =AND(F82="ano",ISBLANK(F85)) -> FALSE
B83: 4.4.2 | D83: Typ oken | G83: Vyberte typ oken, která nejlépe charakterizují vámi realizované. V případě realizace více typů, uveďte ten s největší plochou | H83: =OR(ISBLANK(F82),F82="ne") -> TRUE
B84: 4.4.3 | D84: Plocha vyměňovaných oken [m2] | H84: =(ISBLANK(F83)) -> TRUE
B85: 4.4.4 | D85: Zadejte součinitel prostupu tepla nových oken [W/(m2.K)] | H85: =(ISBLANK(F84)) -> TRUE
B86: 4.4.5 | D86: Požadavek programu [W/(m2.K)] | E86: =parametry!L189 ->  | F86: =IF(ISBLANK(F85),"",parametry!K189) ->  | G86: Hodnota je nastavená dle specifických podmínek programu a vámi zvoleného typu budovy a dalších kritérií | H86: =IF(AND(OR(F82="ano",ISBLANK(F82)),ISBLANK(F85)),TRUE,FALSE) -> TRUE
B87: 4.4.6 | D87: Vyhodnocení plnění požadavku | F87: =parametry!M189 ->  | G87: =IF(F87="Konstrukce nesplňuje požadavky programu","Pozn. Upravte tloušťku nebo typ zateplení nebo součinitel prostupu tepla konstrukce","") -> 
B88: 4.5. | C88: Výměna dveří, vrat | D88: Vyberte ano / ne | H88: =IF(ISBLANK(F88),TRUE,IF(F88="ANO",IF(parametry!B136=1,ISBLANK(Zateplení!F83),ISBLANK(Zateplení!F84)),FALSE)) -> TRUE | I88: =AND(F88="ano",ISBLANK(F91)) -> FALSE
B89: 4.5.2 | D89: Vyberte typ dveří, vrat | G89: Vyberte typ dveří, které nejlépe charakterizují vámi realizované. V případě realizace více typů, uveďte ten s největší plochou. | H89: =OR(ISBLANK(F88),F88="ne") -> TRUE
B90: 4.5.3 | D90: Plocha vyměňovaných dveří [m2] | H90: =(ISBLANK(F89)) -> TRUE
B91: 4.5.4 | D91: Zadejte součinitel prostupu tepla [W/(m2.K)] | H91: =(ISBLANK(F90)) -> TRUE
B92: 4.5.5 | D92: Požadavek programu [W/(m2.K)] | E92: =parametry!L190 ->  | F92: =IF(ISBLANK(F91),"",parametry!K190) ->  | G92: Hodnota je nastavená dle specifických podmínek programu a vámi zvoleného typu budovy a dalších kritérií
B93: 4.5.6 | D93: Vyhodnocení plnění požadavku | F93: =parametry!M190 ->  | G93: =IF(F93="Konstrukce nesplňuje požadavky programu","Pozn. Upravte tloušťku nebo typ zateplení nebo součinitel prostupu tepla konstrukce","") ->  | H93: =IF(AND(OR(F88="ano",ISBLANK(F88)),ISBLANK(F91)),TRUE,FALSE) -> TRUE
B94: 4.6. | C94: Výměna střešních oken, světlíků | D94: Vyberte ano / ne | G94: =IF(AND(ISBLANK(F35),F94="ano"),"Pozor nespecifikovali jste konstrukci v sekci 3.1.8.","") ->  | H94: =OR(ISBLANK(F94),F94="ne") -> TRUE | I94: =AND(F94="ano",ISBLANK(F97)) -> FALSE
B95: 4.6.2 | D95: Vyperte typ oken | G95: Vyberte typ oken, která nejlépe charakterizují vámi realizované. V případě realizace více typů, uveďte ten s největší plochou | H95: =OR(ISBLANK(F94),F94="ne") -> TRUE
B96: 4.6.3 | D96: Plocha vyměňovaných oken / světlíků [m2] | H96: =(ISBLANK(F95)) -> TRUE
B97: 4.6.4 | D97: Zadejte součinitel prostupu tepla | H97: =(ISBLANK(F96)) -> TRUE
B98: 4.6.5 | D98: Požadavek programu [W/(m2.K)] | E98: =parametry!L191 ->  | F98: =IF(ISBLANK(F97),"",parametry!K191) ->  | G98: Hodnota je nastavená dle specifických podmínek programu a vámi zvoleného typu budovy a dalších kritérií | H98: =IF(AND(OR(F94="ano",ISBLANK(F94)),ISBLANK(F97)),TRUE,FALSE) -> TRUE
B99: 4.6.6 | D99: Vyhodnocení plnění požadavku | F99: =parametry!M191 ->  | G99: =IF(F99="Konstrukce nesplňuje požadavky programu","Pozn. Upravte tloušťku nebo typ zateplení nebo součinitel prostupu tepla konstrukce","") -> 
B100: 4.7. | C100: Instalace mechanického větrání s rekuperací | D100: Vyberte ano / ne | H100: =OR(ISBLANK(F100),F100="ne") -> TRUE
B101: 4.7.2 | D101: Zadejte účinnost rekuperace systému nuceného větrání v % | G101: =IF(ISBLANK(F101),"",IF(F101<67%,"Nesplňuje požadavky na účinnost rekuperace, účinnost musí být alespoň 67%","")) ->  | H101: =OR(ISBLANK(F100),F100="ne") -> TRUE
B102: 4.7.3 | D102: Zadejte větraný objem v m3/h | H102: =ISBLANK(F101) -> TRUE
B103: 4.7.4 | D103: Je toto opatření součástí PENB? Vyberte ano / ne | H103: =ISBLANK(F102) -> TRUE
F104: =IF(H104=TRUE,"Konec formuláře","") ->  | H104: =IF(G94="Pozor nespecifikovali jste konstrukci v sekci 3.1.8.",FALSE,IF(AND(F100="ano",ISBLANK(F103)),FALSE,IF(F100="NE",TRUE,IF(F100="ano",TRUE,FALSE)))) -> FALSE
B105: 5. | C105: Vyhodnocení plnění požadavků na energetickou náročnost
C106: =IF(parametry!B136=2,IF(F24="ano","",Zateplení!F23),"") -> 
C107: =IF(ISBLANK(F100),"",IF(OR(parametry!M186="Konstrukce nesplňuje požadavky programu",parametry!M187="Konstrukce nesplňuje požadavky programu",parametry!M188="Konstrukce nesplňuje požadavky programu",parametry!M189="Konstrukce nesplňuje požadavky programu",parametry!M190="Konstrukce nesplňuje požadavky programu",parametry!M191="Konstrukce nesplňuje požadavky programu",G101="Konstrukce nesplňuje požadavky na účinnost rekuperace, účinnost musí být alespoň 67%"),"Opatření nesplňují požadavky programu","Opatření splňují požadavky programu")) -> 
C108: =IF(H104=FALSE,"Nejsou vyplněna všechna data",IF(ISBLANK(F100),"",IF(AND(parametry!B109=TRUE,ISBLANK(Kotel!E4)),"Pro celkové vyhodnocení doplňte parametry zdroje na listu KOTEL",IF(AND(F7="ano",OR(parametry!O194>1000,3*parametry!E86<parametry!E87)),"Zkontrolujte zda jsou správně zadány plochy zateplovaných konstrukcí, tloušťky izolací, větraný objem a parametry budovy (vytápěná plocha, spotřeba energie před realizací).",IF(parametry!O194>1000,"Zkontrolujte zda jsou správně zadány plochy zateplovaných konstrukcí, tloušťky izolací, větraný objem a parametry budovy (vytápěná plocha, spotřeba energie před realizací).",""))))) -> Nejsou vyplněna všechna data
B110: 6. | C110: =IF(parametry!B109=TRUE,"Bilance spotřeby energie před a po realizaci opatření je uvedena v listu KOTEL","Bilance spotřeby energie před a po realizaci opatření") -> Bilance spotřeby energie před a po realizaci opatření | G110: =parametry!B109=TRUE -> FALSE
C111: Spotřeba před realizací opatření | D111: =IF(AND(parametry!B109=TRUE,parametry!B110=TRUE,parametry!B119=2),0,IF(AND(parametry!B109=TRUE,parametry!B110=TRUE),0,IF(parametry!B110=TRUE,IFERROR(parametry!B71*GJ_na_kWh,0),0))) -> 0 | F111: kWh/rok
C112: Spotřeba po realizací opatření | D112: =IF(AND(parametry!B109=TRUE,parametry!B110=TRUE,parametry!B119=2),0,IF(AND(parametry!B109=TRUE,parametry!B110=TRUE),0,IF(parametry!B110=TRUE,IFERROR(parametry!B75*GJ_na_kWh,0),0))) -> 0 | F112: kWh/rok
C113: Úspora energie | D113: =D111-D112 -> 0 | F113: kWh/rok
C114: Úspora energie | D114: =IFERROR(D113/D111,0) -> 0
C115: z toho:
C116: teplo | D116: =IF(AND(parametry!B109=TRUE,parametry!B110=TRUE,parametry!B119=2),0,IF(AND(parametry!B109=TRUE,parametry!B110=TRUE),0,IF(parametry!B110=TRUE,IFERROR(parametry!B81*GJ_na_kWh,0),0))) -> 0 | F116: kWh/rok
C117: elektřina | D117: =IF(AND(parametry!B109=TRUE,parametry!B110=TRUE,parametry!B119=2),0,IF(AND(parametry!B109=TRUE,parametry!B110=TRUE),0,IF(parametry!B110=TRUE,IFERROR(parametry!B82*GJ_na_kWh,0),0))) -> 0 | F117: kWh/rok
C118: úspora CO2 | D118: =IF(AND(parametry!B109=TRUE,parametry!B110=TRUE,parametry!B119=2),0,IF(AND(parametry!B109=TRUE,parametry!B110=TRUE),0,IF(parametry!B110=TRUE,IFERROR(parametry!J77,0),0))) -> 0 | F118: kg/rok
C119: úspora Kč | D119: =IF(AND(parametry!B109=TRUE,parametry!B110=TRUE,parametry!B119=2),0,IF(AND(parametry!B109=TRUE,parametry!B110=TRUE),0,IF(parametry!B110=TRUE,IFERROR(parametry!K77,0),0))) -> 0 | F119: Kč/rok

Sheet Kotel (hidden)
B1: Výměna zdroje tepla | G1: Pokud chcete změnit dříve vyplněnou buňku je nutné resetovat dosavadní postup na tomto listu pomocí tlačítka "reset" níže
B3: 1 | C3: Parametry stávajícího zdroje tepla | M3: zateplení?
B4: 1.1 | C4: O jaký typ zdroje se jedná? | D4: Vyberte | K4: =ISBLANK(E4) -> TRUE | M4: =IF(OR(ISBLANK(E4),parametry!B110=TRUE),TRUE,FALSE) -> TRUE
B5: 1.2 | C5: V jakém období byl zdroj vyroben? | D5: Vyberte | K5: =IF(OR(ISBLANK(E5),AND(E4<>"kotel na tuhá paliva",E4<>"centrální zásobování teplem")),TRUE,FALSE) -> TRUE
B6: 1.3 | C6: Jaké se používá palivo? | D6: Vyberte | F6: =IF(E4="centrální zásobování teplem","Zadejte palivo používané zdrojem CZT, pokud ho neznáte zvolte hnědé uhlí","") ->  | K6: =IF(OR(ISBLANK(E5),ISBLANK(E4),AND($E$4="kotel na tuhá paliva",ISBLANK(E6)),AND($E$4="centrální zásobování teplem",ISBLANK(E6))),TRUE,FALSE) -> TRUE
B7: 1.4 | C7: =IF(E4="centrální zásobování teplem","Jaká je spotřeba energie za jeden rok?","Jaká je spotřeba paliva za jeden rok?") -> Jaká je spotřeba paliva za jeden rok? | D7: =IFERROR(IF(E4="centrální zásobování teplem","GJ",IF(E4="kotel na zemní plyn","m3",IF(E4="kotel na topný olej","l",IF(E4="elektrokotel","kWh",IF(E4="tepelné čerpadlo","kWh",VLOOKUP(E6,parametry!$A$52:$B$57,2,0)))))),"") ->  | F7: =IF(E7=0,IF(parametry!B110=TRUE,"","Zadejte spotřebu paliva"),"") -> Zadejte spotřebu paliva | K7: =IF(OR(ISBLANK(E5),ISBLANK(E7)),TRUE,IF(parametry!B110=TRUE,FALSE,IF(AND(parametry!B110=TRUE,ISBLANK(E7)),TRUE,FALSE))) -> TRUE
B8: 1.5 | C8: Znáte účinnost zdroje? | D8: Vyberte ano/ne | K8: =IF(E8="ne",TRUE,ISBLANK(E8)) -> TRUE
B9: 1.6 | C9: Jaká je účinnost? | D9: Zatejte v % | K9: =IF(E8="ne",FALSE,ISBLANK(E9)) -> TRUE
B10: 1.7 | C10: Jaký je instalovaný výkon zdroje? | D10: kWt | F10: =IFERROR(IF(E4="centrální zásobování teplem","Zadejte '0'",IF(((parametry!B74*GJ_na_kWh)/Kotel!E10)<1000,"Příliš vysoký výkon zdroje",IF(((parametry!B74*GJ_na_kWh)/Kotel!E10)>8000,"Příliš nízký výkon",""))),"Zadejte výkon pro kontrolu spotřeby") -> Zadejte výkon pro kontrolu spotřeby | K10: =IF(E4="centrální zásobování teplem",ISBLANK(E7),ISBLANK(E10)) -> TRUE
B12: 2 | C12: Parametry nového zdroje tepla
B13: 2.1 | C13: Jaký je typ nového zdroje? | D13: Vyberte | F13: =IF(E13="kotel na štěpku, pelety nebo brikety","Nutno doložit smlouvu nebo čestné prohlášení o zabezpečení dodávky biomasy z lokálních zdrojů či budoucího dodavatele","") ->  | K13: =ISBLANK(E13) -> TRUE
B14: 2.2 | C14: Znáte účinnost nového zdroje? | D14: Vyberte ano/ne | K14: =IF(E13="tepelné čerpadlo",TRUE,IF(ISBLANK(E14),TRUE,FALSE)) -> TRUE
B15: 2.3 | C15: Jaká je účinnost? | D15: Zatejte v % | F15: =IF(OR(ISBLANK(E14),E14="ne"),"",IF(AND(E14="ano",ISBLANK(E15)),"Vyplňte účinnost nového zdroje",IF(AND(E14="ano",E15<80%),"Nesplňuje požadavek na účinnost dle vyhl. č. 78/2013 Sb., minimální účinnost je 80%","Splňuje požadavek na účinnost dle vyhl. č. 78/2013 Sb."))) ->  | K15: =IF(E13="tepelné čerpadlo",FALSE,IF(OR(ISBLANK(E14),AND(E14="ano",ISBLANK(E15))),TRUE,FALSE)) -> TRUE
B16: 2.4 | C16: Jaký je instalovaný výkon zdroje? | D16: kWt | F16: =IF(AND(E16>20000,E13="kotel na štěpku, pelety nebo brikety"),"",IF(E16>20000,"Maximální příkon zdroje je v programu omezen na 20 000 kW","")) ->  | K16: =IF(AND(E13="tepelné čerpadlo",ISBLANK(E16)),TRUE,IF(E13<>"tepelné čerpadlo",TRUE,FALSE)) -> TRUE
B17: 2.5 | C17: Znáte sezónní účinnost (COP) tepelného čerpadla? | D17: Vyberte ano / ne | F17: =IF(K16=TRUE,"","Sezónní účinnost 4,5 znamená, že tepelné čerpadlo při spotřebě 1 kWh elektřiny vyrobí 4,5 kWh tepla. Minimální požadavek vyhl. Č. 78/2013 Sb. je COP = 3") ->  | K17: =IF(OR(ISBLANK(E17),E17="ne"),TRUE,FALSE) -> TRUE
B18: 2.6 | C18: Zadejte sezónní účinnost tepelného čerpadla | D18: COP | F18: =IF(ISBLANK(E17),"",IF(E17="ne","Pro výpočet bude použit COP 3",IF(AND(E17="ano",ISBLANK(E18)=TRUE),"Zadejte sezónní účinnost tepelného čerpadla",IF(E18<3,"Nesplňuje požadavky dle vyhl. č. 78/2013 Sb., minimální COP je 3,00","Nově instalovaný zdroj splňuje požadavek na účinnost dle vyhl. č. 78/2013 Sb.")))) -> 
K19: =IF(AND(E13="tepelné čerpadlo",OR(ISBLANK(E16),ISBLANK(E17),E17="ano"),ISBLANK(E18)),TRUE,IF(AND(E13<>"tepelné čerpadlo",ISBLANK(E16)),TRUE,FALSE)) -> TRUE
B20: 3 | C20: PENB | P20: =AND(NOT(ISBLANK(Kotel!E16)),E13<>"tepelné čerpadlo") -> FALSE
B21: 3.1 | C21: Je výměna kotle zahrnuta v PENB? | D21: Vyberte ano/ne | K21: =IF(AND(parametry!B136=2,parametry!B110=TRUE,OR(AND(NOT(ISBLANK(Kotel!E16)),E13<>"tepelné čerpadlo"),IF(ISBLANK(E17),FALSE,IF(E17="ne",TRUE,NOT(ISBLANK(E18)))))),FALSE,TRUE) -> TRUE | M21: =IF(AND(parametry!B136=2,parametry!B110,OR(AND(NOT(ISBLANK(Kotel!E16)),E13<>"tepelné čerpadlo"),IF(ISBLANK(E17),FALSE,IF(E17="ne",TRUE,NOT(ISBLANK(E18)))))),FALSE,TRUE) -> TRUE | O21: =OR(AND(NOT(ISBLANK(Kotel!E16)),E13<>"tepelné čerpadlo"),IF(ISBLANK(E17),FALSE,IF(E17="ne",TRUE,NOT(ISBLANK(E18))))) -> FALSE | P21: =IF(ISBLANK(E17),FALSE,IF(E17="ne",TRUE,NOT(ISBLANK(E18)))) -> FALSE
E22: =IF(K23=TRUE,"Konec formuláře","") -> 
K23: =IF(OR(AND(E13="tepelné čerpadlo",ISBLANK(E18)),AND(E13<>"tepelné čerpadlo",ISBLANK(E16)),AND(K21=FALSE,ISBLANK(E21))),FALSE,TRUE) -> FALSE
B25: 3 | C25: Vyhodnocení plnění požadavků programu
C26: =IF(OR(AND(F15<>"",F1<>""),F18="Zadejte sezónní účinnost tepelného čerpadla"),"Nejsou vyplněna všechna data",IF(OR(F15="Nesplňuje požadavek na účinnost dle vyhl. č. 78/2013 Sb., minimální účinnost je 80%",F18="Nesplňuje požadavky dle vyhl. č. 78/2013 Sb., minimální COP je 3,00"),"Nově instalovaný zdroj nesplňuje požadavek na účinnost dle vyhl. č. 78/2013 Sb.","Nově instalovaný zdroj splňuje požadavek na účinnost dle vyhl. č. 78/2013 Sb.")) -> Nově instalovaný zdroj splňuje požadavek na účinnost dle vyhl. č. 78/2013 Sb.
C27: =IF(AND(E16>20000,E13="kotel na štěpku, pelety nebo brikety"),"",IF(E16>20000,"Nově instalovaný kotel má vyšší příkon než 20 MW, nesplňuje poždavek programu","")) -> 
C28: =IF(E13="kotel na štěpku, pelety nebo brikety","Je instalován kotel na biomasu, je nutno doložit smlouvu nebo čestné prohlášení o zabezpečení dodávky biomasy z lokálních zdrojů či budoucího dodavatele","") -> 
B30: 4 | C30: Bilance spotřeby energie před a po výměně kotle
C31: Spotřeba paliv a energie před výměnou kotle | D31: =IF(parametry!B109=TRUE,parametry!B71*GJ_na_kWh,0) -> 0 | E31: kWh/rok
C32: z toho:
C33: elektřina | D33: =IF(E4="elektrokotel",D31,0) -> 0 | E33: kWh/rok
C34: teplo | D34: =IF(E4="elektrokotel",0,D31) -> 0 | E34: kWh/rok
C35: Spotřeba paliv a energie po výměně kotle | D35: =IF(parametry!B109=TRUE,IF(parametry!B75*GJ_na_kWh<0,-parametry!B75*GJ_na_kWh,parametry!B75*GJ_na_kWh),0) -> 0 | E35: kWh/rok
C36: Úspora energie | D36: =IF(parametry!B109=TRUE,parametry!B80*GJ_na_kWh,0) -> 0 | E36: kWh/rok
C37: Úspora energie | D37: =IFERROR(D36/D31,0) -> 0
C38: z toho:
C39: teplo | D39: =IF(parametry!B109=TRUE,parametry!B81*GJ_na_kWh,0) -> 0 | E39: kWh/rok
C40: elektřina | D40: =IF(parametry!B109=TRUE,parametry!B82*GJ_na_kWh,0) -> 0 | E40: kWh/rok
C41: úspora CO2 | D41: =IF(parametry!B109=TRUE,parametry!J77,0) -> 0 | E41: kg/rok
C42: úspora Kč | D42: =IF(parametry!B109=TRUE,parametry!K77,0) -> 0 | E42: Kč/rok

Sheet Osvětlení (hidden)
B1: Náhrada světelných zdrojů | G1: Pokud chcete změnit dříve vyplněnou buňku je nutné resetovat dosavadní postup na tomto listu pomocí tlačítka "reset" níže
B3: 1 | C3: Jakého typu jsou stávající světelné zdroje?
B4: 1.1.1 | C4: Jsou to klasické žárovky? | D4: Vyberte ano / ne | L4: =ISBLANK(E4) -> TRUE
B5: 1.1.2 | C5: Jaký je jejich počet? | F5: =IF(AND(E4="ano",E5=0),"Uveďte počet zdrojů","") ->  | L5: =ISBLANK(E5) -> TRUE
B6: 1.1.3 | C6: Znáte celkový příkon všech klasických žárovek? | D6: Vyberte ano / ne | L6: =ISBLANK(E6) -> TRUE
B7: 1.1.4 | C7: Uveďte jejich celkový příkon | D7: W | F7: =IF(AND(E6="ano",ISBLANK(E7)=TRUE),"Zadejte celkový příkon",IF(E7/E5<40,"Uvedený celkový příkon je příliž malý, minimální průměrný příkon 1 žárovky je 40 W ","")) -> 
B8: 1.1.5 | C8: Jaký je průměrný příkon klasických žárovek? | D8: W | F8: =IF(AND(E6="ne",E8=0),"Zadejte průměrný příkon","") -> 
L9: =IF(ISBLANK(E4),TRUE,IF(E4="ne",FALSE,IF(OR(ISBLANK(E6),AND(E6="ano",ISBLANK(E7)),AND(E6="ne",ISBLANK(E8))),TRUE,FALSE))) -> TRUE
B10: 1.2.1 | C10: Halogenové žárovky | D10: Vyberte ano / ne | L10: =ISBLANK(E10) -> TRUE
B11: 1.2.2 | C11: Jaký je jejich počet? | F11: =IF(AND(E10="ano",E11=0),"Uveďte počet zdrojů","") ->  | L11: =ISBLANK(E11) -> TRUE
B12: 1.2.3 | C12: Znáte celkový příkon všech halogenových žárovek? | D12: Vyberte ano / ne | L12: =ISBLANK(E12) -> TRUE
B13: 1.2.4 | C13: Uveďte jejich celkový příkon | D13: W | F13: =IF(AND(E12="ano",ISBLANK(E13)=TRUE),"Zadejte celkový příkon",IF(E13/E11<30,"Uvedený celkový příkon je příliš malý, minimální příkon 1 žárovky je 30W","")) -> 
B14: 1.2.5 | C14: Jaký je průměrný příkon halogenových žárovek? | D14: W | F14: =IF(AND(E12="ne",E14=0),"Zadejte průměrný příkon","") -> 
L15: =IF(ISBLANK(E10),TRUE,IF(E10="ne",FALSE,IF(OR(ISBLANK(E12),AND(E12="ano",ISBLANK(E13)),AND(E12="ne",ISBLANK(E14))),TRUE,FALSE))) -> TRUE
B16: 1.3.1 | C16: Zářivky | D16: Vyberte ano / ne | L16: =ISBLANK(E16) -> TRUE
B17: 1.3.2 | C17: Jaký je jejich počet? | F17: =IF(AND(E16="ano",E17=0),"Uveďte počet zdrojů","") ->  | L17: =ISBLANK(E17) -> TRUE
B18: 1.3.3 | C18: Znáte celkový příkon všech zářivek? | D18: Vyberte ano / ne | L18: =ISBLANK(E18) -> TRUE
B19: 1.3.4 | C19: Uveďte jejich celkový příkon | D19: W | F19: =IF(AND(E18="ano",ISBLANK(E19)=TRUE),"Zadejte celkový příkon",IF(E19/E17<4,"Uvedený celkový příkon je příliš malý, minimální příkon 1 zářivky je 4W","")) -> 
B20: 1.3.5 | C20: Jaký je průměrný příkon zářivek? | D20: W | F20: =IF(AND(E18="ne",E20=0),"Zadejte průměrný příkon","") -> 
L21: =IF(ISBLANK(E16),TRUE,IF(E16="ne",FALSE,IF(OR(ISBLANK(E18),AND(E18="ano",ISBLANK(E19)),AND(E18="ne",ISBLANK(E20))),TRUE,FALSE))) -> TRUE
B22: 1.4.1 | C22: Rtuťové výbojky | D22: Vyberte ano / ne | L22: =ISBLANK(E22) -> TRUE
B23: 1.4.2 | C23: Jaký je jejich počet? | F23: =IF(AND(E22="ano",E23=0),"Uveďte počet zdrojů","") ->  | L23: =ISBLANK(E23) -> TRUE
B24: 1.4.3 | C24: Znáte celkový příkon všech rtuťových výbojek? | D24: Vyberte ano / ne | L24: =ISBLANK(E24) -> TRUE
B25: 1.4.4 | C25: Uveďte jejich celkový příkon | D25: W | F25: =IF(AND(E24="ano",E25=0),"Zadejte celkový příkon",IF(E25/E23<7,"Uvedený celkový příkon je příliš malý, minimální příkon 1 výbojky je 7W","")) -> 
B26: 1.4.5 | C26: Jaký je průměrný příkon rtuťových výbojek? | D26: W | F26: =IF(AND(E24="ne",E26=0),"Zadejte průměrný příkon","") -> 
L27: =IF(ISBLANK(E22),TRUE,IF(E22="ne",FALSE,IF(OR(ISBLANK(E24),AND(E24="ano",ISBLANK(E25)),AND(E24="ne",ISBLANK(E26))),TRUE,FALSE))) -> TRUE
B28: 1.5.1 | C28: Kompaktní zářivky (CFL) | D28: Vyberte ano / ne | L28: =ISBLANK(E28) -> TRUE
B29: 1.5.2 | C29: Jaký je jejich počet? | F29: =IF(AND(E28="ano",E29=0),"Uveďte počet zdrojů","") ->  | L29: =ISBLANK(E29) -> TRUE
B30: 1.5.3 | C30: Znáte celkový příkon všech kompaktních zářivek? | D30: Vyberte ano / ne | L30: =ISBLANK(E30) -> TRUE
B31: 1.5.4 | C31: Uveďte jejich celkový příkon | D31: W | F31: =IF(AND(E30="ano",E31=0),"Zadejte celkový příkon",IF(E31/E29<5,"Uvedený celkový příkon je příliš malý, minimální příkon 1 zářivky je 5W","")) -> 
B32: 1.5.5 | C32: Jaký je průměrný příkon kompaktních zářivek? | D32: W | F32: =IF(AND(E30="ne",E32=0),"Zadejte průměrný příkon","") -> 
L33: =IF(ISBLANK(E28),TRUE,IF(E28="ne",FALSE,IF(OR(ISBLANK(E30),AND(E30="ano",ISBLANK(E31)),AND(E30="ne",ISBLANK(E32))),TRUE,FALSE))) -> TRUE
B34: 2 | C34: Stávající spotřeba elektřiny
B35: 2.1.1 | C35: Znáte celkovou spotřebu elektřiny všech světelných zdrojů? | D35: Vyberte ano / ne | L35: =ISBLANK(E35) -> TRUE
B36: 2.1.2 | C36: Uveďte spotřebu elektřiny | D36: kWh | F36: =IF(ISBLANK(E36),"",IF(parametry!C105<500,"Příliš nízká celková spotřeba",IF(parametry!C105>7500,"Příliš vysoká celková spotřeba",""))) -> 
B37: 2.2 | C37: Kolik hodin denně jsou v průměru zapnuté všechny světelné zdroje? | D37: h
B38: 2.2 | C38: Jaký se počet uvažovaných pracovních dní za rok? | D38: d
B39: 3 | C39: PENB
B40: 3.1 | C40: Je výměna osvětlení zahrnuta v PENB? | D40: Vyberte ano/ne | L40: =NOT(AND(Zateplení!F4="Zadání projektu na základě Průkazu energetické náročnosti",OR(NOT(ISBLANK(E37)),NOT(ISBLANK(E36))))) -> TRUE
E41: =IF(L41=FALSE,"Konec formuláře","") ->  | L41: =IF(OR(ISBLANK(E35),AND(L40=FALSE,ISBLANK(E40)),AND(E35="ne",ISBLANK(E38)),AND(E35="ano",ISBLANK(E36))),TRUE,FALSE) -> TRUE
B42: 4 | C42: Bilance spotřeby energie před a po realizaci výměně světelných zdrojů
C43: Spotřeba před výměnou světlených zdrojů | D43: =IF(parametry!B111=TRUE,IF(E35="ne",hodiny*parametry!G100*E38/1000,E36),0) -> 0 | E43: kWh | F43: =IF(D43=0,"Zadejte 2.1 Spotřebu elektřiny","") -> Zadejte 2.1 Spotřebu elektřiny
C44: Spotřeba po výměně světelných zdrojů | D44: =IF(parametry!B111=TRUE,parametry!H100*parametry!C105/1000,0) -> 0 | E44: kWh | F44: =IF(D44=0,IF(D43=0,"","Definujte stávající zdroje. Viz otázky 1.1 až 1.5"),"") -> 
C45: Úspora energie | D45: =D43-D44 -> 0 | E45: kWh
C46: Úspora energie | D46: =IFERROR(D45/D43,0) -> 0 | E46: kWh/kWh
C47: z toho:
C48: teplo | D48: 0 | E48: kWh
C49: elektřina | D49: =D45 -> 0 | E49: kWh
C50: úspora CO2 | D50: =D49*parametry!C59*parametry!E59 -> 0 | E50: kg
C51: úspora Kč | D51: =D49*parametry!G59 -> 0 | E51: Kč

Sheet parametry (hidden)
A1: kotel na tuhá paliva-před 1980 | B1: 0.6 | C1: 1 | G1: TZL | H1: jednotka | I1: TZL | J1: jednotka | K1: PM10 v % | L1: PM2,5 v % | N1: kotel na tuhá paliva | O1: kotel na zemní plyn | P1: elektrokotel | Q1: kotel na topný olej | R1: tepelné čerpadlo | S1: centrální zásobování teplem
A2: kotel na tuhá paliva-1980-2000 | B2: 0.72 | C2: 2 | E2: kotel na tuhá paliva-před 1980-hnědé uhlí | G2: 44.3 | H2: TZL kg/t | I2: =G2/1000 -> 0.0443 | J2: TZL v kg/kg | K2: 99.3 | L2: 99.2 | N2: hnědé uhlí | O2: zemní plyn | P2: elektřina | Q2: topný olej | R2: zemní plyn | S2: zemní plyn
A3: kotel na tuhá paliva-2000-2010 | B3: 0.77 | C3: 3 | E3: kotel na tuhá paliva-1980-2000-hnědé uhlí | G3: 44.3 | H3: TZL kg/t | I3: =G3/1000 -> 0.0443 | J3: TZL v kg/kg | K3: 99.3 | L3: 99.2 | N3: černé uhlí | R3: hnědé uhlí | S3: hnědé uhlí
A4: kotel na tuhá paliva-2010 a novější | B4: 0.79 | C4: 4 | E4: kotel na tuhá paliva-2000-2010-hnědé uhlí | G4: 17.2 | H4: TZL kg/t | I4: 0.0172 | J4: TZL v kg/kg | K4: 99.9 | L4: 99.8 | N4: palivové dřevo | R4: černé uhlí | S4: černé uhlí
A5: kotel na zemní plyn-před 1980 | B5: 0.65 | C5: 5 | E5: kotel na tuhá paliva-2010 a novější-hnědé uhlí | G5: 2.24 | H5: TZL kg/t | I5: 0.00224 | J5: TZL v kg/kg | K5: 98.1 | L5: 94.1 | N5: pelety | R5: palivové dřevo | S5: palivové dřevo
A6: kotel na zemní plyn-1980-2000 | B6: 0.8 | C6: 6 | E6: kotel na tuhá paliva-před 1980-černé uhlí | G6: 67.7 | H6: TZL kg/t | I6: =G6/1000 -> 0.0677 | J6: TZL v kg/kg | K6: 99.7 | L6: 99 | R6: pelety | S6: pelety
A7: kotel na zemní plyn-2000-2010 | B7: 0.85 | C7: 7 | E7: kotel na tuhá paliva-1980-2000-černé uhlí | G7: 67.7 | H7: TZL kg/t | I7: =G7/1000 -> 0.0677 | J7: TZL v kg/kg | K7: 99.7 | L7: 99 | R7: elektřina | S7: elektřina
A8: kotel na zemní plyn-2010 a novější | B8: 0.92 | C8: 8 | E8: kotel na tuhá paliva-2000-2010-černé uhlí | G8: 6.94 | H8: TZL kg/t | I8: 0.00694 | J8: TZL v kg/kg | K8: 99.4 | L8: 96.9 | R8: topný olej | S8: topný olej
A9: elektrokotel-před 1980 | B9: 0.95 | C9: 9 | E9: kotel na tuhá paliva-2010 a novější-černé uhlí | G9: 2.25 | H9: TZL kg/t | I9: 0.00225 | J9: TZL v kg/kg | K9: 99.8 | L9: 98.1
A10: elektrokotel-1980-2000 | B10: 0.95 | C10: 10 | E10: kotel na tuhá paliva-před 1980-palivové dřevo | G10: 7.22 | H10: TZL kg/t | I10: =G10/1000 -> 0.00722 | J10: TZL v kg/kg | K10: 99.8 | L10: 99.5
A11: elektrokotel-2000-2010 | B11: 0.95 | C11: 11 | E11: kotel na tuhá paliva-1980-2000-palivové dřevo | G11: 7.22 | H11: TZL kg/t | I11: =G11/1000 -> 0.00722 | J11: TZL v kg/kg | K11: 99.8 | L11: 99.5
A12: elektrokotel-2010 a novější | B12: 0.98 | C12: 12 | E12: kotel na tuhá paliva-2000-2010-palivové dřevo | G12: 5.78 | H12: TZL kg/t | I12: 0.00578 | J12: TZL v kg/kg | K12: 99.8 | L12: 99.3
A13: kotel na topný olej-před 1980 | B13: 0.6 | C13: 13 | E13: kotel na tuhá paliva-2010 a novější-palivové dřevo | G13: 2.12 | H13: TZL kg/t | I13: 0.00212 | J13: TZL v kg/kg | K13: 99.8 | L13: 99.1
A14: kotel na topný olej-1980-2000 | B14: 0.72 | C14: 14 | E14: kotel na tuhá paliva-před 1980-pelety | G14: 7.22 | H14: TZL kg/t | I14: =G14/1000 -> 0.00722 | J14: TZL v kg/kg | K14: 99.8 | L14: 98.8
A15: kotel na topný olej-2000-2010 | B15: 0.77 | C15: 15 | E15: kotel na tuhá paliva-1980-2000-pelety | G15: 7.22 | H15: TZL kg/t | I15: =G15/1000 -> 0.00722 | J15: TZL v kg/kg | K15: 99.8 | L15: 98.8
A16: kotel na topný olej-2010 a novější | B16: 0.79 | C16: 16 | E16: kotel na tuhá paliva-2000-2010-pelety | G16: 5.78 | H16: TZL kg/t | I16: 0.00578 | J16: TZL v kg/kg | K16: 99.8 | L16: 98.8
A17: centrální zásobování teplem-před 1980 | B17: 1 | C17: 17 | E17: kotel na tuhá paliva-2010 a novější-pelety | G17: 2.12 | H17: TZL kg/t | I17: 0.00212 | J17: TZL v kg/kg | K17: 99.8 | L17: 98.8
A18: centrální zásobování teplem-1980-2000 | B18: 1 | C18: 18
A19: centrální zásobování teplem-2000-2010 | B19: 1 | C19: 19
A20: centrální zásobování teplem-2010 a novější | B20: 1 | C20: 20
A21: tepelné čerpadlo-před 1980 | B21: 1.5 | C21: 21
A22: tepelné čerpadlo-1980-2000 | B22: 2 | C22: 22
A23: tepelné čerpadlo-2000-2010 | B23: 2.5 | C23: 23
A24: tepelné čerpadlo-2010 a novější | B24: 3 | C24: 24
A26: před 1980 | D26: < 1920 | E26: 1
A27: 1980-2000 | D27: 1921 až 1945 | E27: 2
A28: 2000-2010 | D28: 1946 až 1960 | E28: 3
A29: 2010 a novější | D29: 1961 až 1980 | E29: 4
D30: 1981 až 1994 | E30: 5
D31: 1995 a dále | E31: 6
A32: Old boiler
B33: Efficiency | D33: palivo | E33: výběr
A34: kotel na tuhá paliva | B34: 0.6 | C34: 1 | D34: parametry!A53:A56 | E34: =VLOOKUP(Zateplení!F13,parametry!A34:D39,3,0) -> 
A35: kotel na zemní plyn | B35: 0.89 | C35: 2 | D35: parametry!A52:A52 | E35: =VLOOKUP(E34,C34:D39,2,0) -> 
A36: elektrokotel | B36: 0.98 | C36: 4 | D36: parametry!A57:A57
A37: kotel na topný olej | B37: 0.87 | C37: 3 | D37: parametry!A58:A58
A38: tepelné čerpadlo | B38: 2.7 | C38: 5 | D38: parametry!A57:A57
A39: centrální zásobování teplem | B39: 1 | C39: 6 | D39: parametry!A52:A58
A41: New boiler
B42: Efficiency | D42: palivo
A43: kotel na černé uhlí | B43: 0.8 | C43: 1 | D43: černé uhlí
A44: kotel na hnědé uhlí | B44: 0.8 | C44: 2 | D44: hnědé uhlí
A45: kotel na zemní plyn | B45: 0.92 | C45: 3 | D45: zemní plyn
A46: kotel na štěpku, pelety nebo brikety | B46: 0.81 | C46: 4 | D46: pelety
A47: tepelné čerpadlo | B47: 3 | C47: 3 | D47: elektřina
A49: 1 | B49: 2 | C49: 3 | D49: 4 | E49: 5 | F49: 6 | G49: 7 | H49: 8 | I49: 9 | J49: 10 | K49: 11 | L49: 12 | M49: 13 | N49: 14 | O49: 15
A50: Fuel - vytápění | J50: TZL | M50: TZL | N50: PM10 | O50: PM2,5
C51: Lower heating value | E51: CO2 | G51: cena paliva | N51: % | O51: %
A52: zemní plyn | B52: m3 | C52: 0.034 | D52: GJ/m3 | E52: 55.4 | F52: kg/GJ | G52: 10 | H52: Kč/m3 | I52: 10 Kč/m3 6,28-18,66 Kč za 1 m3 | J52: 6.9 | K52: TZL kg/10^6m3 | L52: =J52/1000000 -> 6.9e-06 | M52: kg/m3 | N52: 100 | O52: 100
A53: hnědé uhlí | B53: kg | C53: 0.018 | D53: GJ/kg | E53: 99.1 | F53: kg/GJ | G53: 3.4 | H53: Kč/kg | I53: 3,4 Kč/kg | J53: 0.704 | K53: TZL kg/t | L53: =J53/1000 -> 0.000704 | M53: kg/kg | N53: 99.5 | O53: 95.2
A54: černé uhlí | B54: kg | C54: 0.031 | D54: GJ/kg | E54: 92.4 | F54: kg/GJ | G54: 5.5 | H54: Kč/kg | I54: 5,5 Kč/kg | J54: 1.23 | K54: TZL kg/t | L54: =J54/1000 -> 0.00123 | M54: kg/kg | N54: 99.8 | O54: 98.1
A55: palivové dřevo | B55: kg | C55: 0.014 | D55: GJ/kg | E55: 0 | F55: kg/GJ | G55: 3.5 | H55: Kč/kg | I55: 3,5 Kč/kg | J55: 2.12 | K55: TZL kg/t | L55: 0.00212 | M55: kg/kg | N55: 99.8 | O55: 99.1
A56: pelety | B56: kg | C56: 0.017 | D56: GJ/kg | E56: 0 | F56: kg/GJ | G56: 5.4 | H56: Kč/kg | I56: 5,4 Kč/kg | J56: 0.264 | K56: kg/t | L56: =J56/1000 -> 0.000264 | M56: kg/kg | N56: 99.8 | O56: 98.8
A57: elektřina | B57: kWh | C57: 0.0036 | D57: GJ/kWh | E57: 281 | F57: kg/GJ | G57: 2.67 | H57: Kč/kWh | I57: 2,67 Kč/kWh akumulace 2,29-3,47, přímotop 2,67-2,86 Kč/kWh | J57: 0.0368 | K57: kg/MWh | L57: =J57/1000 -> 3.68e-05 | M57: kg/kWh | N57: 85 | O57: 65
A58: topný olej | B58: l | C58: =0.041*0.845 -> 0.034645 | D58: GJ/l | E58: 73.3 | F58: kg/GJ | G58: 29.83 | H58: Kč/l | I58: 29,83 Kč/l | J58: 0.064 | K58: kg/t | L58: =J58/1000*0.92 -> 5.888e-05 | M58: kg/l | N58: 93 | O58: 67
A59: elektřina ostatní | B59: kWh | C59: 0.0036 | D59: GJ/kWh | E59: 281 | F59: kg/GJ | G59: 5 | H59: Kč/kWh | I59: 5 Kč/kWh | J59: 0.0368 | K59: kg/MWh | L59: =J59/1000 -> 3.68e-05 | M59: kg/kWh | N59: 85 | O59: 65
A60: yes/no | B60: ano/ne
A61: yes | B61: ano
A62: no | B62: ne
A67: =Kotel!E14 -> 0 | B67: Do you know the efficiency of new boiler?
A69: =Kotel!E18 -> 0 | B69: Only for heat pumps - What is the seasonal coefficient of performance?
A71: Energy in the fuel before | B71: =F75 -> 0 | C71: GJ
A72: teplo | B72: =IF(D75="elektrokotel",0,parametry!B71) -> 0
A73: elektřina | B73: =IF(D75="elektrokotel",parametry!B71,0) -> 0 | D73: KOTEL + ZATEPLENÍ | F73: =IF(AND(B110=TRUE,parametry!B136=2),IF(AND(Kotel!E21="ne",E89<E85),E85,parametry!E89),IF(OR(AND(B109=TRUE,B110=TRUE,IF(ISNUMBER(E88>E87),E88>E87)),AND(B109=FALSE,B110=TRUE)),E88/G75,IF(B110=TRUE,IF(Zateplení!F7="ano",E86/G75,E87/G75),E85))) -> 0
A74: Heat consumption | B74: =H75 ->  | C74: GJ | E74: palivo | F74: spotřeba v GJ | G74: účinnost | H74: potřeba v GJ | I74: ztráty v GJ | J74: Spotřeba CO2 | K74: Spotřeba Kč | L74: TZL kg | M74: PM10 kg | N74: PM2,5 kg
A75: Energy in the fuel after - na tuhle spotřebu se počítá | B75: =F76 -> 0 | C75: GJ | D75: =IF(parametry!B109=TRUE,Kotel!E4,Zateplení!F13) -> 0 | E75: =IF(D75="kotel na zemní plyn",$A$52,IF(OR(D75="elektrokotel",D75="tepelné čerpadlo"),$A$57,IF(D75="kotel na topný olej",$A$58,IF($B$109=TRUE,Kotel!$E$6,Zateplení!$F$14)))) -> 0 | F75: =IFERROR(IF(AND(B110=TRUE,parametry!B136=2),IF(AND(Kotel!E21="ne",E89<E85),E85,parametry!E89),IF(OR(AND(B109=TRUE,B110=TRUE,IF(ISNUMBER(E88>E87),E88>E87)),AND(B109=FALSE,B110=TRUE)),E88/G75,IF(B110=TRUE,IF(Zateplení!F7="ano",E86/G75,E87/G75),E85))),0) -> 0 | G75: =IF(parametry!B109=TRUE,IF(Kotel!E8="ne",VLOOKUP(CONCATENATE(Kotel!E4,"-",Kotel!E5),parametry!A1:B24,2,0),Kotel!E9),VLOOKUP(Zateplení!F13,parametry!A34:B39,2,0)) ->  | H75: =F75*G75 ->  | I75: =F75-H75 ->  | J75: =IFERROR(VLOOKUP(E75,$A$52:$H$59,5,0)*F75,0) -> 0 | K75: =IFERROR(VLOOKUP(E75,$A$52:$H$59,7,0)/VLOOKUP(E75,$A$52:$H$59,3,0)*F75,0) -> 0 | L75: =IFERROR(IF(AND(parametry!B109=TRUE,Kotel!E4="kotel na tuhá paliva"),VLOOKUP(CONCATENATE(Kotel!E4,"-",Kotel!E5,"-",Kotel!E6),parametry!E1:L17,5,0)/VLOOKUP(E75,$A$52:$O$59,3,0)*F75,VLOOKUP(E75,$A$52:$O$59,12,0)/VLOOKUP(E75,$A$52:$O$59,3,0)*F75),0) -> 0 | M75: =IFERROR(IF(AND(parametry!B109=TRUE,Kotel!E4="kotel na tuhá paliva"),VLOOKUP(CONCATENATE(Kotel!E4,"-",Kotel!E5,"-",Kotel!E6),parametry!E1:L17,7,0)/100*L75,VLOOKUP(E75,$A$52:$O$59,14,0)/100*L75),0) -> 0 | N75: =IFERROR(IF(AND(parametry!B109=TRUE,Kotel!E4="kotel na tuhá paliva"),VLOOKUP(CONCATENATE(Kotel!E4,"-",Kotel!E5,"-",Kotel!E6),parametry!E1:L17,8,0)/100*L75,VLOOKUP(E75,$A$52:$O$59,15,0)/100*L75),0) -> 0
A76: teplo | D76: =IF(parametry!B109=TRUE,Kotel!E13,Zateplení!F13) -> 0 | E76: =IFERROR(IF(D76="kotel na zemní plyn",$A$52,IF(OR(D76="elektrokotel",D76="tepelné čerpadlo"),$A$57,IF(D76="kotel na topný olej",$A$58,IF($B$109=FALSE,Zateplení!$F$14,VLOOKUP(D76,$A$43:$D$47,4,0))))),0) -> 0 | F76: =IFERROR(H76/G76,0) -> 0 | G76: =IF(parametry!B109=TRUE,IF(Kotel!E13="tepelné čerpadlo",IF(Kotel!E17="ano",Kotel!E18,parametry!B47),IF(Kotel!E14="ne",VLOOKUP(Kotel!E13,parametry!A43:B47,2,0),Kotel!E15)),VLOOKUP(Zateplení!F13,parametry!A34:B39,2,0)) ->  | H76: =IFERROR(IF(AND(B110=TRUE,parametry!B136=2),H75-H86,H75-R193),0) -> 0 | I76: =F76-H76 -> 0 | J76: =IFERROR(VLOOKUP(E76,$A$52:$H$59,5,0)*F76,0) -> 0 | K76: =IFERROR(VLOOKUP(E76,$A$52:$H$59,7,0)/VLOOKUP(E76,$A$52:$H$59,3,0)*F76,0) -> 0 | L76: =IFERROR(VLOOKUP(E76,$A$52:$O$59,12,0)/VLOOKUP(E76,$A$52:$O$59,3,0)*F76,0) -> 0 | M76: =IFERROR(VLOOKUP(E76,$A$52:$O$59,14,0)/100*L76,0) -> 0 | N76: =IFERROR(VLOOKUP(E76,$A$52:$O$59,15,0)/100*L76,0) -> 0
A77: elektřina | E77: úspora | F77: =F75-F76 -> 0 | H77: =H75-H76 ->  | I77: =I75-I76 ->  | J77: =J75-J76 -> 0 | K77: =K75-K76 -> 0 | L77: =L75-L76 -> 0 | M77: =M75-M76 -> 0 | N77: 0
A78: Heat Pump | B78: =IF(Kotel!E13="tepelné čerpadlo",B71,0) -> 0 | C78: GJ | E78: úspora | F78: =IFERROR(F77/F75,0) -> 0 | H78: =IFERROR(H77/H75,0) -> 0 | I78: =IFERROR(I77/I75,0) -> 0 | J78: =IFERROR(J77/J75,0) -> 0 | K78: =IFERROR(K77/K75,0) -> 0 | L78: =IFERROR(L77/L75,0) -> 0 | M78: =IFERROR(M77/M75,0) -> 0 | N78: 0
E79: kWh | F79: =F75/3.6*1000 -> 0 | H79: =H75/3.6*1000 -> 
A80: Energy savings | B80: =F77 -> 0 | C80: GJ | F80: =F76/3.6*1000 -> 0 | H80: =H76/3.6*1000 -> 0
A81: Heat savings | B81: =IF(OR(AND(Kotel!E13="tepelné čerpadlo",D75="elektrokotel"),AND(D75="elektrokotel",D76="elektrokotel")),0,IF(Kotel!E13="tepelné čerpadlo",B78,IF(D75="elektrokotel",-F76,B72-B75-B78))) -> 0 | C81: GJ | F81: =F77/3.6*1000 -> 0 | H81: =H77/3.6*1000 -> 
A82: Electricity savings | B82: =IF(AND(E76="elektřina",E75="elektřina"),B80,IF(E76="elektřina",-F76,IF(E75="elektřina",F75,0))) -> 0 | C82: GJ | D82: jen pro TČ | J82: Spotřeba celkem v GJ
K83: =D73 -> KOTEL + ZATEPLENÍ | L83: nucené větrání | M83: Osvětlení | N83: Celkem
D84: Spotřeby výchozí | E84: GJ | G84: úspora na potřebě | H84: GJ | J84: spotřeba před | K84: =IFERROR(F75,0) -> 0 | L84: =IF(AND(B110=TRUE,parametry!B136=2),0,O192/1000*3.6) -> 0 | M84: =IFERROR(IF(OR(AND(B110=TRUE,B136=2,Osvětlení!E40="ne"),B110=FALSE),Osvětlení!D43/1000*3.6,0),0) -> 0 | N84: =SUM(K84:M84) -> 0
A85: GJ na kWh | B85: =(1/3.6)*1000 -> 277.7777778 | D85: Spotřeba z listu kotel | E85: =IFERROR(IF(Kotel!E4="centrální zásobování teplem",Kotel!E7,Kotel!E7*VLOOKUP(E75,$A$52:$C$59,3,0)),0) -> 0 | G85: z konstrukcí | H85: =R193 -> 0 | J85: spotřeba po | K85: =IFERROR(F76,0) -> 0 | L85: =IF(AND(B110=TRUE,parametry!B136=2),0,P192/1000*3.6) -> 0 | M85: =IFERROR(IF(OR(AND(B110=TRUE,B136=2,Osvětlení!E40="ne"),B110=FALSE),Osvětlení!D44/1000*3.6,0),0) -> 0 | N85: =SUM(K85:M85) -> 0
A86: kWh na GJ | B86: =1/1000*3.6 -> 0.0036 | D86: Spotřeba z listu zateplení zadaná | E86: =Zateplení!F8/1000*3.6 -> 0 | G86: z PENB | H86: =D198*G75 ->  | J86: úspora GJ | K86: =K84-K85 -> 0 | L86: =L84-L85 -> 0 | M86: =M84-M85 -> 0 | N86: 0
D87: Spotřeba z listu zateplení bez zadání | E87: =IFERROR((VLOOKUP(B139,$A$153:$B$158,2,0)*Zateplení!F9)/1000*3.6,0) -> 0 | J87: CO2 před | K87: =IFERROR(J75,0) -> 0 | L87: =IFERROR(VLOOKUP(E75,$A$52:$H$59,5,0)*L84,0) -> 0 | M87: =M84/3.6*1000*parametry!$C$59*parametry!$E$59 -> 0 | N87: 0
D88: Spotřeba z listu zateplení kalk | E88: =IFERROR(O193/1000*3.6,0) -> 0 | J88: CO2 po | K88: =IFERROR(J76,0) -> 0 | L88: =IFERROR(VLOOKUP(E76,$A$52:$H$59,5,0)*L85,0) -> 0 | M88: =M85/3.6*1000*parametry!$C$59*parametry!$E$59 -> 0 | N88: 0
D89: Spotřeba z listu zateplení PENB | E89: =Zateplení!F22/1000*3.6 -> 0 | J89: úspora CO2 | K89: =K87-K88 -> 0 | L89: =L87-L88 -> 0 | M89: =M87-M88 -> 0 | N89: 0
J90: Kč před | K90: =IFERROR(K75,0) -> 0 | L90: =IFERROR(VLOOKUP(E75,$A$52:$H$59,7,0)/VLOOKUP(E75,$A$52:$H$59,3,0)*L84,0) -> 0 | M90: =M84/3.6*1000*parametry!$G$59 -> 0 | N90: 0
J91: Kč po | K91: =IFERROR(K76,0) -> 0 | L91: =IFERROR(VLOOKUP(E76,$A$52:$H$59,7,0)/VLOOKUP(E76,$A$52:$H$59,3,0)*L85,0) -> 0 | M91: =M85/3.6*1000*parametry!$G$59 -> 0 | N91: 0
A92: Osvětlení | J92: úspora Kč | K92: =K90-K91 -> 0 | L92: =L90-L91 -> 0 | M92: =M90-M91 -> 0 | N92: 0
J93: TZL kg před | K93: =L75 -> 0 | L93: =IFERROR(IF(AND(parametry!B109=TRUE,Kotel!E4="kotel na tuhá paliva"),VLOOKUP(CONCATENATE(Kotel!E4,"-",Kotel!E5,"-",Kotel!E6),parametry!E1:L17,5,0)/VLOOKUP(E75,$A$52:$O$59,3,0)*L84,VLOOKUP(E75,$A$52:$O$59,12,0)/VLOOKUP(E75,$A$52:$O$59,3,0)*L84),0) -> 0 | M93: =IFERROR($L$59/$C$59*M84,0) -> 0 | N93: =K93+L93+M93 -> 0
D94: počet | E94: příkon celkem | F94: příkon průměr | G94: průměrný příkon před | H94: průměrný příkon po | J94: TZL kg po | K94: =L76 -> 0 | L94: =IFERROR(VLOOKUP(E76,$A$52:$O$59,12,0)/VLOOKUP(E76,$A$52:$O$59,3,0)*L85,0) -> 0 | M94: =IFERROR($L$59/$C$59*M85,0) -> 0 | N94: =K94+L94+M94 -> 0
A95: klasika | B95: =IF(Osvětlení!E4="ano",1,0) -> 0 | C95: =IF(Osvětlení!E6="ano",1,0) -> 0 | D95: =IF(B95=1,Osvětlení!E5,0) -> 0 | E95: =IF(C95=1,Osvětlení!E7,0) -> 0 | F95: =IF(C95=0,Osvětlení!E8,0) -> 0 | G95: =IFERROR(IF(E95>0, E95/D95,IF((F95)>0,F95,"Uveďte buď celkový příkon nebo průměrný příkon")),"Uveďte buď celkový příkon nebo průměrný příkon") -> Uveďte buď celkový příkon nebo průměrný příkon | H95: =IFERROR(VLOOKUP(G95,Osvětlení_parametry!$A$2:$F$116,6,1),0) -> 0 | J95: úspora TZL kg | K95: =K93-K94 -> 0 | L95: =L93-L94 -> 0 | M95: =M93-M94 -> 0 | N95: 0
A96: halogen | B96: =IF(Osvětlení!E10="ano",1,0) -> 0 | C96: =IF(Osvětlení!E12="ano",1,0) -> 0 | D96: =IF(B96=1,Osvětlení!E11,0) -> 0 | E96: =IF(C96=1,Osvětlení!E13,0) -> 0 | F96: =IF(C96=0,Osvětlení!E14,0) -> 0 | G96: =IFERROR(IF(E96>0, E96/D96,IF((F96)>0,F96,"Uveďte buď celkový příkon nebo průměrný příkon")),"Uveďte buď celkový příkon nebo průměrný příkon") -> Uveďte buď celkový příkon nebo průměrný příkon | H96: =IFERROR(VLOOKUP(G96,Osvětlení_parametry!$B$2:$F$116,5,1),0) -> 0 | J96: PM10 kg před | K96: =M75 -> 0 | L96: =IFERROR(IF(AND(parametry!B109=TRUE,Kotel!E4="kotel na tuhá paliva"),VLOOKUP(CONCATENATE(Kotel!E4,"-",Kotel!E5,"-",Kotel!E6),parametry!E1:L17,7,0)/100*L93,VLOOKUP(E75,$A$52:$O$59,14,0)/100*L93),0) -> 0 | M96: =IFERROR($N$59/100*M93,0) -> 0 | N96: 0
A97: zářivky | B97: =IF(Osvětlení!E16="ano",1,0) -> 0 | C97: =IF(Osvětlení!E18="ano",1,0) -> 0 | D97: =IF(B97=1,Osvětlení!E17,0) -> 0 | E97: =IF(C97=1,Osvětlení!E19,0) -> 0 | F97: =IF(C97=0,Osvětlení!E20,0) -> 0 | G97: =IFERROR(IF(E97>0, E97/D97,IF((F97)>0,F97,"Uveďte buď celkový příkon nebo průměrný příkon")),"Uveďte buď celkový příkon nebo průměrný příkon") -> Uveďte buď celkový příkon nebo průměrný příkon | H97: =IFERROR(VLOOKUP(G97,Osvětlení_parametry!$E$2:$F$116,2,1),0) -> 0 | J97: PM10 kg po | K97: =M76 -> 0 | L97: =IFERROR(VLOOKUP(E76,$A$52:$O$59,14,0)/100*L94,0) -> 0 | M97: =IFERROR($N$59/100*M94,0) -> 0 | N97: 0
A98: výbojky | B98: =IF(Osvětlení!E22="ano",1,0) -> 0 | C98: =IF(Osvětlení!E24="ano",1,0) -> 0 | D98: =IF(B98=1,Osvětlení!E23,0) -> 0 | E98: =IF(C98=1,Osvětlení!E25,0) -> 0 | F98: =IF(C98=0,Osvětlení!E26,0) -> 0 | G98: =IFERROR(IF(E98>0, E98/D98,IF((F98)>0,F98,"Uveďte buď celkový příkon nebo průměrný příkon")),"Uveďte buď celkový příkon nebo průměrný příkon") -> Uveďte buď celkový příkon nebo průměrný příkon | H98: =IFERROR(VLOOKUP(G98,Osvětlení_parametry!$C$2:$F$116,4,1),0) -> 0 | J98: úspora PM10 | K98: 0 | L98: =L96-L97 -> 0 | M98: =IFERROR($O$59/100*M93,0) -> 0 | N98: 0
A99: kompakty | B99: =IF(Osvětlení!E28="ano",1,0) -> 0 | C99: =IF(Osvětlení!E30="ano",1,0) -> 0 | D99: =IF(B99=1,Osvětlení!E29,0) -> 0 | E99: =IF(C99=1,Osvětlení!E31,0) -> 0 | F99: =IF(C99=0,Osvětlení!E32,0) -> 0 | G99: =IFERROR(IF(E99>0, E99/D99,IF((F99)>0,F99,"Uveďte buď celkový příkon nebo průměrný příkon")),"Uveďte buď celkový příkon nebo průměrný příkon") -> Uveďte buď celkový příkon nebo průměrný příkon | H99: =IFERROR(VLOOKUP(G99,Osvětlení_parametry!$D$2:$F$116,3,1),0) -> 0 | J99: PM2,5 kg před | K99: =N75 -> 0 | L99: =IFERROR(IF(AND(parametry!B109=TRUE,Kotel!E4="kotel na tuhá paliva"),VLOOKUP(CONCATENATE(Kotel!E4,"-",Kotel!E5,"-",Kotel!E6),parametry!E1:L17,8,0)/100*L93,VLOOKUP(E75,$A$52:$O$59,15,0)/100*L92),0) -> 0 | M99: =IFERROR($O$59/100*M93,0) -> 0 | N99: 0
D100: =SUM(D95:D99) -> 0 | G100: =SUMPRODUCT(D95:D99,G95:G99) -> 0 | H100: =SUMPRODUCT(D95:D99,H95:H99) -> 0 | J100: PM2,5 kg po | K100: =N76 -> 0 | L100: =IFERROR(VLOOKUP(E76,$A$52:$O$59,15,0)/100*L94,0) -> 0 | M100: =IFERROR($O$59/100*M94,0) -> 0 | N100: 0
C101: =G100 -> 0 | J101: úspora PM2,5 | K101: 0 | L101: =L99-L100 -> 0 | M101: =M99-M100 -> 0 | N101: 0
C102: =H100 -> 0
C103: =IFERROR(G100/D100,0) -> 0
C104: =IFERROR(H100/D100,0) -> 0
C105: =IFERROR(Osvětlení!D43*1000/C101,0) -> 0
A108: Hlavní list | D108: Kontrola na vyplněnost všeho | E108: Vše v pořádku?
A109: opatření 1-teplo | B109: FALSE | D109: =IF('Hlavní list'!C31="List Kotel je celý vyplněn",TRUE,FALSE) -> FALSE | E109: =IF(B109=TRUE,IF(D109=TRUE,TRUE,FALSE),IF(B109=FALSE,TRUE,FALSE)) -> TRUE
A110: opatření 2-zateplení | B110: FALSE | D110: =IF('Hlavní list'!C30="List Zateplení je celý vyplněn",TRUE,FALSE) -> FALSE | E110: =IF(B110=TRUE,IF(D110=TRUE,TRUE,FALSE),IF(B110=FALSE,TRUE,FALSE)) -> TRUE
A111: opatření 3-osvětlení | B111: FALSE | D111: =IF('Hlavní list'!C32="List Osvětlení je celý vyplněn",TRUE,FALSE) -> FALSE | E111: =IF(B111=TRUE,IF(D111=TRUE,TRUE,FALSE),IF(B111=FALSE,TRUE,FALSE)) -> TRUE
A113: kontrola na prázdnost (je prázdné? | B113: =IF(AND(B109=FALSE,B110=FALSE,B111=FALSE,B112=FALSE),TRUE,FALSE) -> TRUE | E113: =IF(B113=TRUE,FALSE,IF(AND(E109,E110,E111,E112)=TRUE,TRUE,FALSE)) -> FALSE
A115: výpočet celkové úspory
A116: =Kotel!D31+Zateplení!D111+Osvětlení!D43 -> 0
A118: Zateplení
A119: Obecné zadaní projektu (vyplnění Kalkulačky) | B119: 1
A120: Zadání projektu na základě Průkazu energetické náročnosti | B120: 2
A121: typ budovy
A122: Administrativní budova | B122: 1
A123: Výrobní hala | B123: 2
A124: Skladová hala | B124: 3
A125: Zemědělská budova | B125: 4
A126: Budova pro vzdělávání | B126: 5
A127: Budova pro sport | B127: 6
A128: Budova pro zdravotnictví | B128: 7
A129: Budova pro ubytování a stravování | B129: 8
A130: Budova pro obchodní účely | B130: 9
A136: zadání projektu | B136: =IF(ISBLANK(Zateplení!F4),"",VLOOKUP(Zateplení!F4,parametry!$A$119:$B$120,2,0)) -> 
A137: typ budovy | B137: =IFERROR(VLOOKUP(Zateplení!F5,A122:B130,2,0),0) -> 0
A138: památkov ochrana | B138: =Zateplení!F6 -> 0
A139: Období výstavby? | B139: =Zateplení!F10 -> 0
A140: Podlahová plocha (m2) | B140: =Zateplení!F9 -> 0
A141: Vnitřní teplota | B141: =Zateplení!F11 -> 0 | C141: =IF(AND(B141>=18,B141<=22),1,16/(B141-4)) -> -4
A142: Vnější teplota | B142: -12 | C142: implicitně
A143: Průměrná venkovní teplota v otopném období | B143: 3.9 | C143: implicitně
A144: Délka otopného období | B144: 242 | C144: implicitně
A145: Počet denostupňů teoretický | B145: =(B141-B143)*B144 -> -943.8
A149: Spotřeba zadaná | B149: =IF(Zateplení!F7="ano",Zateplení!F8,0) -> 0 | C149: kWh
A151: Základní měrná spotřeba energie na vytápění dle období výstavby
A152: Měrná spotřeba energie budovy (kWh/m2) | B152: původní stav
A153: < 1920 | B153: 170
A154: 1921 až 1945 | B154: 180
A155: 1946 až 1960 | B155: 180
A156: 1961 až 1980 | B156: 220
A157: 1981 až 1994 | B157: 130
A158: 1995 a dále | B158: 100
A159: Průměr | B159: =AVERAGE(B153:B158) -> 163.3333333
A161: Základní měrná potřeba energie objektu na vytápění | B161: =IF(AND(ISNUMBER(B149),Zateplení!F7="ano")=TRUE,(B149)/B140,VLOOKUP(B139,$A$153:$B$158,2,0)) ->  | C161: kWh/m2
A162: Spotřeba celkem | B162: =IF(B149=0,B140*B161,B149) ->  | C162: kWh
A163: Spotřeba celkem | B163: =B162/1000*3.6 ->  | C163: GJ | D163: pro porovnání zda budova spadá pod 700 GJ
A165: Typy konstrukce | B165: typ konstrukce | C165: U
A166: Stěna | B166: =Zateplení!F28 -> 0 | C166: =VLOOKUP(CONCATENATE($B$139,"-",parametry!B166),budova!$D$70:$G$304,2,0) -> 
A167: =Zateplení!F29 -> 0 | B167: =Zateplení!F30 -> 0 | C167: =VLOOKUP(CONCATENATE($B$139,"-",parametry!B167),budova!$D$70:$G$304,2,0) -> 
A168: =Zateplení!F31 -> 0 | B168: =Zateplení!F32 -> 0 | C168: =VLOOKUP(CONCATENATE($B$139,"-",parametry!B168),budova!$D$70:$G$304,2,0) -> 
A169: Okna ve stěně | B169: =Zateplení!F33 -> 0 | C169: =VLOOKUP(CONCATENATE($B$139,"-",parametry!B169),budova!$D$70:$G$304,2,0) -> 
A170: dveře vrata | B170: =Zateplení!F34 -> 0 | C170: =VLOOKUP(CONCATENATE($B$139,"-",parametry!B170),budova!$D$70:$G$304,2,0) -> 
A171: Okna ve střeše | B171: =Zateplení!F35 -> 0 | C171: =VLOOKUP(CONCATENATE($B$139,"-",parametry!B171),budova!$D$70:$G$304,2,0) -> 
A174: Opatření již realizovaná | B174: Realizace opatření | C174: Kdy | D174: Typ izolace | E174: Tl. izolace | F174: koef. Typu izolace | G174: ekv. tl. izolace | H174: % z plochy | I174: snížení úspory v důsledku stáří % | J174: úspora % | K174: snížení původní potřeby - kWh/m2
A180: Výchozí měrná spotřeba energie objektu na vytápění | C180: kWh/m2
A181: Výchozí spotřeba energie objektu na vytápění | C181: MWh
A185: Opatření, která budou realizovaná investicí | B185: Realizace opatření | D185: Typ izolace | E185: Tl. izolace | F185: U před | G185: Upo z PENB | H185: Upo kalk | I185: Un20 | J185: Urec,20 | K185: U požadavek | M185: vyhodnocení | N185: plocha zateplení m2 | O185: potřeba před kWh | P185: potřeba po | Q185: úspora kWh | R185: úspora GJ | S185: úspora energie realizací opatření - kWh/m2
A186: Stěna | B186: =IF(B110=FALSE,"ne",Zateplení!F58) -> ne | D186: =Zateplení!F59 -> 0 | E186: =Zateplení!F60 -> 0 | F186: =C166 ->  | G186: =Zateplení!F62 -> 0 | H186: =1/(1/F186+E186/1000/VLOOKUP(D186,budova_opatření!$B$3:$D$38,2,0))+VLOOKUP(D186,budova_opatření!$B$3:$D$38,3,0) ->  | I186: =VLOOKUP(CONCATENATE($B$139,"-",parametry!B166),budova!$D$70:$G$304,3,0) ->  | J186: =VLOOKUP(CONCATENATE($B$139,"-",parametry!B166),budova!$D$70:$G$304,4,0) ->  | K186: =IF(AND($B$136=2,AND(Zateplení!$F$18<=Zateplení!$F$19,Zateplení!$F$20<=Zateplení!$F$21)),I186*$C$141,IF($B$138="ano","bez požadavku",IF(AND(OR($B$137=2,$B$137=3,$B$137=4),$B$163<700),I186*$C$141,J186*$C$141))) ->  | L186: =IF(AND($B$136=2,AND(Zateplení!$F$18<=Zateplení!$F$19,Zateplení!$F$20<=Zateplení!$F$21)),"UN,20*e1",IF($B$138="ano","bez požadavku",IF(AND(OR($B$137=2,$B$137=3,$B$137=4),$B$163<700),"UN,20*e1","Urec,20*e1"))) ->  | M186: =IF(OR(B186="ne",B186=0),"",IF($B$138="ano","Bez požadavku na součinitel prostupu tepla",IF(B$136=2,IF(G186=0,"Zadejte součinitel prostupu tepla konstrukce",IF(G186<=K186,"Konstrukce splňuje požadavky programu","Konstrukce nesplňuje požadavky programu")),IF(H186<=K186,"Konstrukce splňuje požadavky programu","Konstrukce nesplňuje požadavky programu")))) ->  | N186: =Zateplení!F61 -> 0 | O186: =(F186)*$N186*($B$141-$B$142)/1000*24*$B$145/($B$141-$B$142) ->  | P186: =IF(B186="NE",0,(H186)*$N186*($B$141-$B$142)/1000*24*$B$145/($B$141-$B$142)) -> 0 | Q186: =IF(B186="ne",0,O186-P186) -> 0 | R186: =Q186/1000*3.6 -> 0 | S186: =Q186/$B$140 -> 
A187: =A167 -> 0 | B187: =IF(B110=FALSE,"ne",Zateplení!F66) -> ne | D187: =Zateplení!F67 -> 0 | E187: =Zateplení!F68 -> 0 | F187: =C167 ->  | G187: =Zateplení!F70 -> 0 | H187: =1/(1/F187+E187/1000/VLOOKUP(D187,budova_opatření!$B$3:$D$38,2,0))+VLOOKUP(D187,budova_opatření!$B$3:$D$38,3,0) ->  | I187: =VLOOKUP(CONCATENATE($B$139,"-",parametry!B167),budova!$D$70:$G$304,3,0) ->  | J187: =VLOOKUP(CONCATENATE($B$139,"-",parametry!B167),budova!$D$70:$G$304,4,0) ->  | K187: =IF(AND($B$136=2,AND(Zateplení!$F$18<=Zateplení!$F$19,Zateplení!$F$20<=Zateplení!$F$21)),I187*$C$141,IF($B$138="ano","bez požadavku",IF(AND(OR($B$137=2,$B$137=3,$B$137=4),$B$163<700),I187*$C$141,J187*$C$141))) ->  | L187: =IF(AND($B$136=2,AND(Zateplení!$F$18<=Zateplení!$F$19,Zateplení!$F$20<=Zateplení!$F$21)),"UN,20*e1",IF($B$138="ano","bez požadavku",IF(AND(OR($B$137=2,$B$137=3,$B$137=4),$B$163<700),"UN,20*e1","Urec,20*e1"))) ->  | M187: =IF(OR(B187="ne",B187=0),"",IF($B$138="ano","Bez požadavku na součinitel prostupu tepla",IF(B$136=2,IF(G187=0,"Zadejte součinitel prostupu tepla konstrukce",IF(G187<=K187,"Konstrukce splňuje požadavky programu","Konstrukce nesplňuje požadavky programu")),IF(H187<=K187,"Konstrukce splňuje požadavky programu","Konstrukce nesplňuje požadavky programu")))) ->  | N187: =Zateplení!F69 -> 0 | O187: =(F187)*$N187*($B$141-$B$142)/1000*24*$B$145/($B$141-$B$142) ->  | P187: 0 | Q187: =IF(B187="ne",0,O187-P187) -> 0 | R187: 0
A188: =A168 -> 0 | B188: =IF(B110=FALSE,"ne",Zateplení!F74) -> ne | D188: =Zateplení!F75 -> 0 | E188: =Zateplení!F76 -> 0 | F188: =C168 ->  | G188: =Zateplení!F78 -> 0 | H188: =1/(1/F188+E188/1000/VLOOKUP(D188,budova_opatření!$B$3:$D$38,2,0))+VLOOKUP(D188,budova_opatření!$B$3:$D$38,3,0) ->  | I188: =VLOOKUP(CONCATENATE($B$139,"-",parametry!B168),budova!$D$70:$G$304,3,0) ->  | J188: =VLOOKUP(CONCATENATE($B$139,"-",parametry!B168),budova!$D$70:$G$304,4,0) ->  | K188: =IF(AND($B$136=2,AND(Zateplení!$F$18<=Zateplení!$F$19,Zateplení!$F$20<=Zateplení!$F$21)),I188*$C$141,IF($B$138="ano","bez požadavku",IF(AND(OR($B$137=2,$B$137=3,$B$137=4),$B$163<700),I188*$C$141,J188*$C$141))) ->  | L188: =IF(AND($B$136=2,AND(Zateplení!$F$18<=Zateplení!$F$19,Zateplení!$F$20<=Zateplení!$F$21)),"UN,20*e1",IF($B$138="ano","bez požadavku",IF(AND(OR($B$137=2,$B$137=3,$B$137=4),$B$163<700),"UN,20*e1","Urec,20*e1"))) ->  | N188: =Zateplení!F77 -> 0 | P188: 0 | Q188: 0 | R188: 0
A189: Okna ve stěně | B189: =IF(B110=FALSE,"ne",Zateplení!F82) -> ne | D189: =Zateplení!F83 -> 0 | F189: =C169 ->  | G189: =Zateplení!F85 -> 0 | H189: =Zateplení!F85 -> 0 | I189: 1.5 | J189: 1.2 | K189: =IF(AND($B$136=2,AND(Zateplení!$F$18<=Zateplení!$F$19,Zateplení!$F$20<=Zateplení!$F$21)),I189*$C$141,IF($B$138="ano","bez požadavku",IF(AND(OR($B$137=2,$B$137=3,$B$137=4),$B$163<700),I189*$C$141,J189*$C$141))) ->  | L189: =IF(AND($B$136=2,AND(Zateplení!$F$18<=Zateplení!$F$19,Zateplení!$F$20<=Zateplení!$F$21)),"UN,20*e1",IF($B$138="ano","bez požadavku",IF(AND(OR($B$137=2,$B$137=3,$B$137=4),$B$163<700),"UN,20*e1","Urec,20*e1"))) ->  | N189: =Zateplení!F84 -> 0 | P189: 0 | Q189: 0 | R189: 0
A190: dveře vrata | B190: =IF(B110=FALSE,"ne",Zateplení!F88) -> ne | D190: =Zateplení!F89 -> 0 | F190: =C170 ->  | G190: =Zateplení!F91 -> 0 | H190: =Zateplení!F91 -> 0 | I190: 1.7 | J190: 1.2 | K190: =IF(AND($B$136=2,AND(Zateplení!$F$18<=Zateplení!$F$19,Zateplení!$F$20<=Zateplení!$F$21)),I190*$C$141,IF($B$138="ano","bez požadavku",IF(AND(OR($B$137=2,$B$137=3,$B$137=4),$B$163<700),I190*$C$141,J190*$C$141))) ->  | L190: =IF(AND($B$136=2,AND(Zateplení!$F$18<=Zateplení!$F$19,Zateplení!$F$20<=Zateplení!$F$21)),"UN,20*e1",IF($B$138="ano","bez požadavku",IF(AND(OR($B$137=2,$B$137=3,$B$137=4),$B$163<700),"UN,20*e1","Urec,20*e1"))) ->  | N190: =Zateplení!F90 -> 0 | P190: 0 | Q190: 0 | R190: 0
A191: Okna ve střeše | B191: =IF(B110=FALSE,"ne",Zateplení!F94) -> ne | D191: =Zateplení!F95 -> 0 | F191: =IF(ISBLANK(Zateplení!F35),0,C171) -> 0 | G191: =Zateplení!F97 -> 0 | H191: =Zateplení!F97 -> 0 | I191: 1.4 | J191: 1.1 | K191: =IF(AND($B$136=2,AND(Zateplení!$F$18<=Zateplení!$F$19,Zateplení!$F$20<=Zateplení!$F$21)),I191*$C$141,IF($B$138="ano","bez požadavku",IF(AND(OR($B$137=2,$B$137=3,$B$137=4),$B$163<700),I191*$C$141,J191*$C$141))) ->  | L191: =IF(AND($B$136=2,AND(Zateplení!$F$18<=Zateplení!$F$19,Zateplení!$F$20<=Zateplení!$F$21)),"UN,20*e1",IF($B$138="ano","bez požadavku",IF(AND(OR($B$137=2,$B$137=3,$B$137=4),$B$163<700),"UN,20*e1","Urec,20*e1"))) ->  | N191: =Zateplení!F96 -> 0 | O191: 0 | P191: 0 | Q191: 0 | R191: 0
A192: Nucené větrání | B192: =IF(B110=FALSE,"ne",Zateplení!F100) -> ne | M192: nucené větrání | O192: =0.34*Zateplení!F102*24*B145/1000 -> 0 | P192: =0.34*Zateplení!F102*(1-Zateplení!F101)*24*B145/1000 -> 0 | Q192: 0 | R192: 0
A193: Total | N193: kWh | O193: =SUM(O186:O191) ->  | P193: =SUM(P186:P191) -> 0 | Q193: =SUM(Q186:Q191) -> 0 | R193: =SUM(R186:R191) -> 0
N194: kWh/m2 | O194: =O193/Zateplení!$F$9 ->  | P194: =P193/Zateplení!$F$9 ->  | Q194: =Q193/Zateplení!$F$9 ->  | R194: =Q193/O193 -> 
A195: Měrná potřeba energie objektu na vytápění po realizaci | C195: kWh/m2
A196: Spotřeba energie objektu na vytápění před realizací | B196: =IF($B$136=1,$O$193,Zateplení!F22) -> 0 | C196: kWh | D196: =B196/1000*3.6 -> 0 | E196: GJ | F196: bráno z konstrukcí / z PENB
A197: Spotřeba energie objektu na vytápění po realizaci | B197: =IF($B$136=1,$P$193,Zateplení!F20) -> 0 | C197: kWh | D197: =B197/1000*3.6 -> 0 | E197: GJ | F197: bráno z konstrukcí / z PENB
A198: úspora z PENB | B198: =B196-B197 -> 0 | C198: kWh | D198: =D196-D197 -> 0 | E198: GJ
A201: ESR | B201: =1-B197/B196 -> 

Sheet Osvětlení_parametry (hidden)
A1: klasika | B1: halogen | C1: výbojka | D1: CFL | E1: zářivka | F1: příkon led | G1: světelný tok | N1: Typické parametry zdrojů
A2: 40 | B2: 30 | C2: =ROUND((C3/F3)*F2,2) -> 6.62 | D2: =ROUND((D3/F3)*F2,2) -> 5 | E2: =ROUND((E3/F3)*F2,2) -> 3.67 | F2: 3 | G2: =F2*H3 -> 0 | O2: příkon | P2: světelný tok | Q2: lm/W
A3: =A2+($A$5-$A$2)/3 -> 46.66666667 | B3: =B2+($B$5-$B$2)/3 -> 35.33333333 | C3: =(C4/F4)*F3 -> 12.13352685 | D3: =(D4/F4)*F3 -> 9.166666667 | E3: =(E4/F4)*F3 -> 6.722222222 | F3: 5.5 | G3: 470 | N3: klasika | O3: 25 | P3: 200 | Q3: =P3/O3 -> 8
A4: =A3+($A$5-$A$2)/3 -> 53.33333333 | B4: =B3+($B$5-$B$2)/3 -> 40.66666667 | C4: 13.23657475 | D4: 10 | E4: =(E5/F5)*F4 -> 7.333333333 | F4: 6 | G4: =G3+($G$6-$G$3)/3 -> 582 | N4: klasika | O4: 40 | P4: 280 | Q4: 7
A5: 60 | B5: 46 | C5: 15.44267054 | D5: =D4+(D7-D4)/3 -> 12 | E5: =(E6/F6)*F5 -> 8.555555556 | F5: 7 | G5: =G4+($G$6-$G$3)/3 -> 694 | N5: klasika | O5: 60 | P5: 630 | Q5: 10.5
A6: =A5+(A8-A5)/3 -> 65 | B6: =B5+(B7-B5)/2 -> 51.5 | C6: 17.64876633 | D6: =D5+(D7-D4)/3 -> 14 | E6: =(E7/F7)*F6 -> 9.777777778 | F6: 8 | G6: 806 | N6: klasika | O6: 75 | P6: 1000 | Q6: 13.33333333
A7: 70 | B7: 57 | C7: 19.85486212 | D7: 16 | E7: 11 | F7: 9 | G7: =(G6+G8)/2 -> 930.5 | N7: klasika | O7: 100 | P7: 1340 | Q7: 13.4
A8: 75 | B8: =B7+(B10-B7)/3 -> 63.66666667 | C8: 22.06095791 | D8: =D7+($D$32-$D$7)/25 -> 16.8 | E8: =E7+($E$10-$E$7)/3 -> 13.33333333 | F8: 10 | G8: 1055 | N8: klasika | O8: 150 | P8: 2140 | Q8: 14.26666667
A9: =(A8+A10)/2 -> 87.5 | B9: =B8+(B10-B7)/3 -> 70.33333333 | C9: 24.2670537 | D9: =D8+($D$32-$D$7)/25 -> 17.6 | E9: =E8+($E$10-$E$7)/3 -> 15.66666667 | F9: 11 | G9: =G8+(G11-G8)/3 -> 1210.333333 | N9: klasika | O9: 200 | P9: 2800 | Q9: 14
A10: 100 | B10: 77 | C10: 26.47314949 | D10: 18.4 | E10: 18 | F10: 12 | G10: =G9+(G11-G8)/3 -> 1365.666667 | N10: klasika | O10: 300 | P10: 4200 | Q10: 14
A11: =A10+($A$19-$A$10)/9 -> 105.5555556 | B11: =B10+($B$33-$B$10)/23 -> 80.17391304 | C11: 28.67924528 | D11: 19.2 | E11: =E10+($E$14-$E$10)/4 -> 20.5 | F11: 13 | G11: 1521 | N11: výbojka | O11: 80 | P11: 3600 | Q11: 45
A12: =A11+($A$19-$A$10)/9 -> 111.1111111 | B12: =B11+($B$33-$B$10)/23 -> 83.34782609 | C12: 30.88534107 | D12: 20 | E12: =E11+($E$14-$E$10)/4 -> 23 | F12: 14 | G12: =G11+($G$18-$G$11)/7 -> 1603.714286 | N12: výbojka | O12: 125 | P12: 6000 | Q12: 48
A13: 116.6666667 | B13: 86.52173913 | C13: 33.09143687 | D13: 20.8 | E13: =E12+($E$14-$E$10)/4 -> 25.5 | F13: 15 | G13: 1686.428571 | N13: výbojka | O13: 250 | P13: 12700 | Q13: 50.8
A14: 122.2222222 | B14: 89.69565217 | C14: 35.29753266 | D14: 21.6 | E14: 28 | F14: 16 | G14: 1769.142857 | N14: CFL | O14: 10 | P14: 600 | Q14: 60
A15: 127.7777778 | B15: 92.86956522 | C15: 37.50362845 | D15: 22.4 | E15: =E14+($E$43-$E$14)/28 -> 28.28571429 | F15: 17 | G15: 1851.857143 | N15: CFL | O15: 16 | P15: 980 | Q15: 61.25
A16: 133.3333333 | B16: 96.04347826 | C16: 39.70972424 | D16: 23.2 | E16: =E15+($E$43-$E$14)/28 -> 28.57142857 | F16: 18 | G16: 1934.571429 | N16: CFL | O16: 36 | P16: 2800 | Q16: 77.77777778
A17: 138.8888889 | B17: 99.2173913 | C17: 41.91582003 | D17: 24 | E17: 28.85714286 | F17: 19 | G17: 2017.285714 | N17: CFL | O17: 80 | P17: 6000 | Q17: 75
A18: 144.4444444 | B18: 102.3913043 | C18: 44.12191582 | D18: 24.8 | E18: 29.14285714 | F18: 20 | G18: 2100 | N18: zářivka | O18: 80 | P18: 7000 | Q18: 87.5
A19: 150 | B19: 105.5652174 | C19: 46.32801161 | D19: 25.6 | E19: 29.42857143 | F19: 21 | G19: =G18+($G$28-$G$18)/10 -> 2150 | N19: zářivka | O19: 58 | P19: 5250 | Q19: 90.51724138
A20: =A19+($A$32-$A$19)/13 -> 153.8461538 | B20: 108.7391304 | C20: 48.5341074 | D20: 26.4 | E20: 29.71428571 | F20: 22 | G20: =G19+($G$28-$G$18)/10 -> 2200 | N20: zářivka | O20: 49 | P20: 4900 | Q20: 100
A21: =A20+($A$32-$A$19)/13 -> 157.6923077 | B21: 111.9130435 | C21: 50.74020319 | D21: 27.2 | E21: 30 | F21: 23 | G21: 2250 | N21: zářivka | O21: 36 | P21: 3350 | Q21: 93.05555556
A22: 161.5384615 | B22: 115.0869565 | C22: 51.82389937 | D22: 28 | E22: =E21+($E$43-$E$14)/28 -> 30.28571429 | F22: =F21+($F$76-$F$20)/57 -> 23.49122807 | G22: 2300 | N22: zářivka | O22: 28 | P22: 1700 | Q22: 60.71428571
A23: 165.3846154 | B23: 118.2608696 | C23: 52.90759555 | D23: 28.8 | E23: 30.57142857 | F23: =F22+($F$76-$F$20)/57 -> 23.98245614 | G23: 2350 | N23: zářivka | O23: 18 | P23: 1350 | Q23: 75
A24: 169.2307692 | B24: 121.4347826 | C24: 53.99129173 | D24: 29.6 | E24: 30.85714286 | F24: 24.47368421 | G24: 2400 | N24: zářivka | O24: 11 | P24: 900 | Q24: 81.81818182
A25: 173.0769231 | B25: 124.6086957 | C25: 55.07498791 | D25: 30.4 | E25: 31.14285714 | F25: 24.96491228 | G25: 2450 | N25: led | O25: 5.5 | P25: 470 | Q25: 85.45454545
A26: 176.9230769 | B26: 127.7826087 | C26: 56.15868408 | D26: 31.2 | E26: 31.42857143 | F26: 25.45614035 | G26: 2500 | N26: led | O26: 8 | P26: 806 | Q26: 100.75
A27: 180.7692308 | B27: 130.9565217 | C27: 57.24238026 | D27: 32 | E27: 31.71428571 | F27: 25.94736842 | G27: 2550 | N27: led | O27: 10 | P27: 1055 | Q27: 105.5
A28: 184.6153846 | B28: 134.1304348 | C28: 58.32607644 | D28: 32.8 | E28: 32 | F28: 26.43859649 | G28: 2600 | N28: led | O28: 13 | P28: 1521 | Q28: 117
A29: 188.4615385 | B29: 137.3043478 | C29: 59.40977262 | D29: 33.6 | E29: 32.28571429 | F29: 26.92982456 | G29: 2650 | N29: led | O29: 20 | P29: 2100 | Q29: 105
A30: 192.3076923 | B30: 140.4782609 | C30: 60.4934688 | D30: 34.4 | E30: 32.57142857 | F30: 27.42105263 | G30: 2700 | N30: led | O30: 30 | P30: 2600 | Q30: 86.66666667
A31: 196.1538462 | B31: 143.6521739 | C31: 61.57716497 | D31: 35.2 | E31: 32.85714286 | F31: 27.9122807 | G31: 2750
A32: 200 | B32: 146.826087 | C32: 62.66086115 | D32: 36 | E32: 33.14285714 | F32: 28.40350877 | G32: 2800
A33: =A32+($A$60-$A$32)/28 -> 203.5714286 | B33: 150 | C33: 63.74455733 | D33: =D32+($D$96-$D$32)/65 -> 36.67692308 | E33: 33.42857143 | F33: 28.89473684 | G33: 2850
A34: =A33+($A$60-$A$32)/28 -> 207.1428571 | B34: =B33-B32+B33 -> 153.173913 | C34: 64.82825351 | D34: =D33+($D$96-$D$32)/65 -> 37.35384615 | E34: 33.71428571 | F34: 29.38596491 | G34: 2900
A35: 210.7142857 | B35: =B34-B33+B34 -> 156.3478261 | C35: 65.91194969 | D35: 38.03076923 | E35: 34 | F35: 29.87719298 | G35: 2950
A36: 214.2857143 | B36: 159.5217391 | C36: 66.99564586 | D36: 38.70769231 | E36: 34.28571429 | F36: 30.36842105 | G36: 3000
A37: 217.8571429 | B37: 162.6956522 | C37: 68.07934204 | D37: 39.38461538 | E37: 34.57142857 | F37: 30.85964912 | G37: 3050
A38: 221.4285714 | B38: 165.8695652 | C38: 69.16303822 | D38: 40.06153846 | E38: 34.85714286 | F38: 31.35087719 | G38: 3100
A39: 225 | B39: 169.0434783 | C39: 70.2467344 | D39: 40.73846154 | E39: 35.14285714 | F39: 31.84210526 | G39: 3150
A40: 228.5714286 | B40: 172.2173913 | C40: 71.33043058 | D40: 41.41538462 | E40: 35.42857143 | F40: 32.33333333 | G40: 3200
A41: 232.1428571 | B41: 175.3913043 | C41: 72.41412675 | D41: 42.09230769 | E41: 35.71428571 | F41: 32.8245614 | G41: 3250
A42: 235.7142857 | B42: 178.5652174 | C42: 73.49782293 | D42: 42.76923077 | E42: 36 | F42: 33.31578947 | G42: 3300
A43: 239.2857143 | B43: 181.7391304 | C43: 74.58151911 | D43: 43.44615385 | E43: 36 | F43: 33.80701754 | G43: 3350
A44: 242.8571429 | B44: 184.9130435 | C44: 75.66521529 | D44: 44.12307692 | E44: =E43+($E$74-$E$43)/31 -> 36.51612903 | F44: 34.29824561 | G44: 3400
A45: 246.4285714 | B45: 188.0869565 | C45: 76.74891147 | D45: 44.8 | E45: =E44+($E$74-$E$43)/31 -> 37.03225806 | F45: 34.78947368 | G45: 3450
A46: 250 | B46: 191.2608696 | C46: 77.83260764 | D46: 45.47692308 | E46: 37.5483871 | F46: 35.28070175 | G46: 3500
A47: 253.5714286 | B47: 194.4347826 | C47: 78.91630382 | D47: 46.15384615 | E47: 38.06451613 | F47: 35.77192982 | G47: 3550
A48: 257.1428571 | B48: 197.6086957 | C48: 80 | D48: 46.83076923 | E48: 38.58064516 | F48: 36.26315789 | G48: 3600
A49: 260.7142857 | B49: 200.7826087 | C49: =C48+($C$96-$C$48)/48 -> 80.9375 | D49: 47.50769231 | E49: 39.09677419 | F49: 36.75438596 | G49: 3650
A50: 264.2857143 | B50: 203.9565217 | C50: =C49+($C$96-$C$48)/48 -> 81.875 | D50: 48.18461538 | E50: 39.61290323 | F50: 37.24561404 | G50: 3700
A51: 267.8571429 | B51: 207.1304348 | C51: 82.8125 | D51: 48.86153846 | E51: 40.12903226 | F51: 37.73684211 | G51: 3750
A52: 271.4285714 | B52: 210.3043478 | C52: 83.75 | D52: 49.53846154 | E52: 40.64516129 | F52: 38.22807018 | G52: 3800
A53: 275 | B53: 213.4782609 | C53: 84.6875 | D53: 50.21538462 | E53: 41.16129032 | F53: 38.71929825 | G53: 3850
A54: 278.5714286 | B54: 216.6521739 | C54: 85.625 | D54: 50.89230769 | E54: 41.67741935 | F54: 39.21052632 | G54: 3900
A55: 282.1428571 | B55: 219.826087 | C55: 86.5625 | D55: 51.56923077 | E55: 42.19354839 | F55: 39.70175439 | G55: 3950
A56: 285.7142857 | B56: 223 | C56: 87.5 | D56: 52.24615385 | E56: 42.70967742 | F56: 40.19298246 | G56: 4000
A57: 289.2857143 | B57: 226.173913 | C57: 88.4375 | D57: 52.92307692 | E57: 43.22580645 | F57: 40.68421053 | G57: 4050
A58: 292.8571429 | B58: 229.3478261 | C58: 89.375 | D58: 53.6 | E58: 43.74193548 | F58: 41.1754386 | G58: 4100
A59: 296.4285714 | B59: 232.5217391 | C59: 90.3125 | D59: 54.27692308 | E59: 44.25806452 | F59: 41.66666667 | G59: 4150
A60: 300 | B60: 235.6956522 | C60: 91.25 | D60: 54.95384615 | E60: 44.77419355 | F60: 42.15789474 | G60: 4200
A61: 303.5714286 | B61: 238.8695652 | C61: 92.1875 | D61: 55.63076923 | E61: 45.29032258 | F61: 42.64912281 | G61: 4250
A62: =A61-A60+A61 -> 307.1428571 | B62: =B61-B60+B61 -> 242.0434783 | C62: 93.125 | D62: 56.30769231 | E62: 45.80645161 | F62: 43.14035088 | G62: 4300
A63: 310.7142857 | B63: 245.2173913 | C63: 94.0625 | D63: 56.98461538 | E63: 46.32258065 | F63: 43.63157895 | G63: 4350
A64: 314.2857143 | B64: 248.3913043 | C64: 95 | D64: 57.66153846 | E64: 46.83870968 | F64: 44.12280702 | G64: 4400
A65: 317.8571429 | B65: 251.5652174 | C65: 95.9375 | D65: 58.33846154 | E65: 47.35483871 | F65: 44.61403509 | G65: 4450
A66: 321.4285714 | B66: 254.7391304 | C66: 96.875 | D66: 59.01538462 | E66: 47.87096774 | F66: 45.10526316 | G66: 4500
A67: 325 | B67: 257.9130435 | C67: 97.8125 | D67: 59.69230769 | E67: 48.38709677 | F67: 45.59649123 | G67: 4550
A68: 328.5714286 | B68: 261.0869565 | C68: 98.75 | D68: 60.36923077 | E68: 48.90322581 | F68: 46.0877193 | G68: 4600
A69: 332.1428571 | B69: 264.2608696 | C69: 99.6875 | D69: 61.04615385 | E69: 49.41935484 | F69: 46.57894737 | G69: 4650
A70: 335.7142857 | B70: 267.4347826 | C70: 100.625 | D70: 61.72307692 | E70: 49.93548387 | F70: 47.07017544 | G70: 4700
A71: 339.2857143 | B71: 270.6086957 | C71: 101.5625 | D71: 62.4 | E71: 50.4516129 | F71: 47.56140351 | G71: 4750
A72: 342.8571429 | B72: 273.7826087 | C72: 102.5 | D72: 63.07692308 | E72: 50.96774194 | F72: 48.05263158 | G72: 4800
A73: 346.4285714 | B73: 276.9565217 | C73: 103.4375 | D73: 63.75384615 | E73: 51.48387097 | F73: 48.54385965 | G73: 4850
A74: 350 | B74: 280.1304348 | C74: 104.375 | D74: 64.43076923 | E74: 52 | F74: 49.03508772 | G74: 4900
A75: 353.5714286 | B75: 283.3043478 | C75: 105.3125 | D75: 65.10769231 | E75: =E74+($E$81-$E$74)/7 -> 52.85714286 | F75: =F74+($F$76-$F$20)/40 -> 49.73508772 | G75: 4950
A76: 357.1428571 | B76: 286.4782609 | C76: 106.25 | D76: 65.78461538 | E76: 53.71428571 | F76: 50 | G76: 5000
A77: 360.7142857 | B77: 289.6521739 | C77: 107.1875 | D77: 66.46153846 | E77: 54.57142857 | F77: =F76+($F$116-$F$76)/40 -> 50.325 | G77: 5050
A78: 364.2857143 | B78: 292.826087 | C78: 108.125 | D78: 67.13846154 | E78: 55.42857143 | F78: =F77+($F$116-$F$76)/40 -> 50.65 | G78: 5100
A79: 367.8571429 | B79: 296 | C79: 109.0625 | D79: 67.81538462 | E79: 56.28571429 | F79: 50.975 | G79: 5150
A80: 371.4285714 | B80: 299.173913 | C80: 110 | D80: 68.49230769 | E80: 57.14285714 | F80: 51.3 | G80: 5200
A81: 375 | B81: 302.3478261 | C81: 110.9375 | D81: 69.16923077 | E81: 58 | F81: 51.625 | G81: 5250
A82: 378.5714286 | B82: 305.5217391 | C82: 111.875 | D82: 69.84615385 | E82: =E81+($E$116-$E$81)/35 -> 58.62857143 | F82: 51.95 | G82: 5300
A83: 382.1428571 | B83: 308.6956522 | C83: 112.8125 | D83: 70.52307692 | E83: =E82+($E$116-$E$81)/35 -> 59.25714286 | F83: 52.275 | G83: 5350
A84: 385.7142857 | B84: 311.8695652 | C84: 113.75 | D84: 71.2 | E84: 59.88571429 | F84: 52.6 | G84: 5400
A85: 389.2857143 | B85: 315.0434783 | C85: 114.6875 | D85: 71.87692308 | E85: 60.51428571 | F85: 52.925 | G85: 5450
A86: 392.8571429 | B86: 318.2173913 | C86: 115.625 | D86: 72.55384615 | E86: 61.14285714 | F86: 53.25 | G86: 5500
A87: 396.4285714 | B87: 321.3913043 | C87: 116.5625 | D87: 73.23076923 | E87: 61.77142857 | F87: 53.575 | G87: 5550
A88: 400 | B88: 324.5652174 | C88: 117.5 | D88: 73.90769231 | E88: 62.4 | F88: 53.9 | G88: 5600
A89: 403.5714286 | B89: 327.7391304 | C89: 118.4375 | D89: 74.58461538 | E89: 63.02857143 | F89: 54.225 | G89: 5650
A90: 407.1428571 | B90: 330.9130435 | C90: 119.375 | D90: 75.26153846 | E90: 63.65714286 | F90: 54.55 | G90: 5700
A91: 410.7142857 | B91: 334.0869565 | C91: 120.3125 | D91: 75.93846154 | E91: 64.28571429 | F91: 54.875 | G91: 5750
A92: 414.2857143 | B92: 337.2608696 | C92: 121.25 | D92: 76.61538462 | E92: 64.91428571 | F92: 55.2 | G92: 5800
A93: 417.8571429 | B93: 340.4347826 | C93: 122.1875 | D93: 77.29230769 | E93: 65.54285714 | F93: 55.525 | G93: 5850
A94: 421.4285714 | B94: 343.6086957 | C94: 123.125 | D94: 77.96923077 | E94: 66.17142857 | F94: 55.85 | G94: 5900
A95: 425 | B95: 346.7826087 | C95: 124.0625 | D95: 78.64615385 | E95: 66.8 | F95: 56.175 | G95: 5950
A96: 428.5714286 | B96: 349.9565217 | C96: 125 | D96: 80 | E96: 67.42857143 | F96: 56.5 | G96: 6000
A97: 432.1428571 | B97: 353.1304348 | C97: =C96-C95+C96 -> 125.9375 | D97: =D96-D95+D96 -> 81.35384615 | E97: 68.05714286 | F97: 56.825 | G97: 6050
A98: =A97-A96+A97 -> 435.7142857 | B98: =B97-B96+B97 -> 356.3043478 | C98: =C97-C96+C97 -> 126.875 | D98: =D97-D96+D97 -> 82.70769231 | E98: 68.68571429 | F98: 57.15 | G98: 6100
A99: 439.2857143 | B99: 359.4782609 | C99: 127.8125 | D99: 84.06153846 | E99: 69.31428571 | F99: 57.475 | G99: 6150
A100: 442.8571429 | B100: 362.6521739 | C100: 128.75 | D100: 85.41538462 | E100: 69.94285714 | F100: 57.8 | G100: 6200
A101: 446.4285714 | B101: 365.826087 | C101: 129.6875 | D101: 86.76923077 | E101: 70.57142857 | F101: 58.125 | G101: 6250
A102: 450 | B102: 369 | C102: 130.625 | D102: 88.12307692 | E102: 71.2 | F102: 58.45 | G102: 6300
A103: 453.5714286 | B103: 372.173913 | C103: 131.5625 | D103: 89.47692308 | E103: 71.82857143 | F103: 58.775 | G103: 6350
A104: 457.1428571 | B104: 375.3478261 | C104: 132.5 | D104: 90.83076923 | E104: 72.45714286 | F104: 59.1 | G104: 6400
A105: 460.7142857 | B105: 378.5217391 | C105: 133.4375 | D105: 92.18461538 | E105: 73.08571429 | F105: 59.425 | G105: 6450
A106: 464.2857143 | B106: 381.6956522 | C106: 134.375 | D106: 93.53846154 | E106: 73.71428571 | F106: 59.75 | G106: 6500
A107: 467.8571429 | B107: 384.8695652 | C107: 135.3125 | D107: 94.89230769 | E107: 74.34285714 | F107: 60.075 | G107: 6550
A108: 471.4285714 | B108: 388.0434783 | C108: 136.25 | D108: 96.24615385 | E108: 74.97142857 | F108: 60.4 | G108: 6600
A109: 475 | B109: 391.2173913 | C109: 137.1875 | D109: 97.6 | E109: 75.6 | F109: 60.725 | G109: 6650
A110: 478.5714286 | B110: 394.3913043 | C110: 138.125 | D110: 98.95384615 | E110: 76.22857143 | F110: 61.05 | G110: 6700
A111: 482.1428571 | B111: 397.5652174 | C111: 139.0625 | D111: 100.3076923 | E111: 76.85714286 | F111: 61.375 | G111: 6750
A112: 485.7142857 | B112: 400.7391304 | C112: 140 | D112: 101.6615385 | E112: 77.48571429 | F112: 61.7 | G112: 6800
A113: 489.2857143 | B113: 403.9130435 | C113: 140.9375 | D113: 103.0153846 | E113: 78.11428571 | F113: 62.025 | G113: 6850
A114: 492.8571429 | B114: 407.0869565 | C114: 141.875 | D114: 104.3692308 | E114: 78.74285714 | F114: 62.35 | G114: 6900
A115: 496.4285714 | B115: 410.2608696 | C115: 142.8125 | D115: 105.7230769 | E115: 79.37142857 | F115: 62.675 | G115: 6950
A116: 500 | B116: 413.4347826 | C116: 143.75 | D116: 107.0769231 | E116: 80 | F116: 63 | G116: 7000

Sheet budova (hidden)
A1: Období | C1: =Zateplení!F10 -> 0
A4: stěny | B4: =$C$1 -> 0 | C4: =VLOOKUP($C$1,parametry!D26:E31,2,0) ->  | D4: =INDEX(D5:D10,C4) -> 
A5: stěny | B5: < 1920 | C5: 1 | D5: budova!$C$70:$C$70
A6: stěny | B6: 1921 až 1945 | C6: 2 | D6: budova!$C$71:$C$73
A7: stěny | B7: 1946 až 1960 | C7: 3 | D7: budova!$C$74:$C$77
A8: stěny | B8: 1961 až 1980 | C8: 4 | D8: budova!$C$78:$C$85
A9: stěny | B9: 1981 až 1994 | C9: 5 | D9: budova!$C$86:$C$89
A10: stěny | B10: 1995 a dále | C10: 6 | D10: budova!$C$90:$C$95
A11: plochá střecha | B11: =$C$1 -> 0 | C11: =$C$4 ->  | D11: =INDEX(D12:D17,C11) -> 
A12: plochá střecha | B12: < 1920 | C12: 1 | D12: budova!$C$96:$C$96
A13: plochá střecha | B13: 1921 až 1945 | C13: 2 | D13: budova!$C$97:$C$99
A14: plochá střecha | B14: 1946 až 1960 | C14: 3 | D14: budova!$C$100:$C$100
A15: plochá střecha | B15: 1961 až 1980 | C15: 4 | D15: budova!$C$101:$C$103
A16: plochá střecha | B16: 1981 až 1994 | C16: 5 | D16: budova!$C$104:$C$105
A17: plochá střecha | B17: 1995 a dále | C17: 6 | D17: budova!$C$106:$C$110
A18: šikmá střecha | B18: =$C$1 -> 0 | C18: =$C$4 ->  | D18: =INDEX(D19:D24,C18) -> 
A19: šikmá střecha | B19: < 1920 | C19: 1 | D19: budova!$C$111:$C$111
A20: šikmá střecha | B20: 1921 až 1945 | C20: 2 | D20: budova!$C$112:$C$112
A21: šikmá střecha | B21: 1946 až 1960 | C21: 3 | D21: budova!$C$113:$C$113
A22: šikmá střecha | B22: 1961 až 1980 | C22: 4 | D22: budova!$C$114:$C$114
A23: šikmá střecha | B23: 1981 až 1994 | C23: 5 | D23: budova!$C$115:$C$115
A24: šikmá střecha | B24: 1995 a dále | C24: 6 | D24: budova!$C$116:$C$117
A25: strop půdy | B25: =$C$1 -> 0 | C25: =$C$4 ->  | D25: =INDEX(D26:D31,C25) -> 
A26: strop půdy | B26: < 1920 | C26: 1 | D26: budova!$C$118:$C$119
A27: strop půdy | B27: 1921 až 1945 | C27: 2 | D27: budova!$C$120:$C$122
A28: strop půdy | B28: 1946 až 1960 | C28: 3 | D28: budova!$C$123:$C$126
A29: strop půdy | B29: 1961 až 1980 | C29: 4 | D29: budova!$C$127:$C$132
A30: strop půdy | B30: 1981 až 1994 | C30: 5 | D30: budova!$C$133:$C$138
A31: strop půdy | B31: 1995 a dále | C31: 6 | D31: budova!$C$1369:$C$141
A32: nevytápěný suterén | B32: =$C$1 -> 0 | C32: =$C$4 ->  | D32: =INDEX(D33:D38,C32) -> 
A33: nevytápěný suterén | B33: < 1920 | C33: 1 | D33: budova!$C$142:$C$143
A34: nevytápěný suterén | B34: 1921 až 1945 | C34: 2 | D34: budova!$C$144:$C$146
A35: nevytápěný suterén | B35: 1946 až 1960 | C35: 3 | D35: budova!$C$147:$C$152
A36: nevytápěný suterén | B36: 1961 až 1980 | C36: 4 | D36: budova!$C$153:$C$157
A37: nevytápěný suterén | B37: 1981 až 1994 | C37: 5 | D37: budova!$C$158:$C$162
A38: nevytápěný suterén | B38: 1995 a dále | C38: 6 | D38: budova!$C$163:$C$166
A39: okna | B39: =$C$1 -> 0 | C39: =$C$4 ->  | D39: =INDEX(D40:D45,C39) -> 
A40: okna | B40: < 1920 | C40: 1 | D40: budova!$C$167:$C$174
A41: okna | B41: 1921 až 1945 | C41: 2 | D41: budova!$C$175:$C$182
A42: okna | B42: 1946 až 1960 | C42: 3 | D42: budova!$C$183:$C$190
A43: okna | B43: 1961 až 1980 | C43: 4 | D43: budova!$C$191:$C$198
A44: okna | B44: 1981 až 1994 | C44: 5 | D44: budova!$C$199:$C$207
A45: okna | B45: 1995 a dále | C45: 6 | D45: budova!$C$208:$C$214
A46: dveře-vrata | B46: =$C$1 -> 0 | C46: =$C$4 ->  | D46: =INDEX(D47:D52,C46) -> 
A47: dveře-vrata | B47: < 1920 | C47: 1 | D47: budova!$C$215:$C$221
A48: dveře-vrata | B48: 1921 až 1945 | C48: 2 | D48: budova!$C$222:$C$228
A49: dveře-vrata | B49: 1946 až 1960 | C49: 3 | D49: budova!$C$229:$C$235
A50: dveře-vrata | B50: 1961 až 1980 | C50: 4 | D50: budova!$C$236:$C$242
A51: dveře-vrata | B51: 1981 až 1994 | C51: 5 | D51: budova!$C$243:$C$249
A52: dveře-vrata | B52: 1995 a dále | C52: 6 | D52: budova!$C$250:$C$256
A53: střešní okna-světlíky | B53: =$C$1 -> 0 | C53: =$C$4 ->  | D53: =INDEX(D54:D59,C53) -> 
A54: střešní okna-světlíky | B54: < 1920 | C54: 1 | D54: budova!$C$257:$C$262
A55: střešní okna-světlíky | B55: 1921 až 1945 | C55: 2 | D55: budova!$C$263:$C$268
A56: střešní okna-světlíky | B56: 1946 až 1960 | C56: 3 | D56: budova!$C$269:$C$274
A57: střešní okna-světlíky | B57: 1961 až 1980 | C57: 4 | D57: budova!$C$275:$C$280
A58: střešní okna-světlíky | B58: 1981 až 1994 | C58: 5 | D58: budova!$C$281:$C$286
A59: střešní okna-světlíky | B59: 1995 a dále | C59: 6 | D59: budova!$C$287:$C$289
A60: podlaha na zemině | B60: =$C$1 -> 0 | C60: =$C$4 ->  | D60: =INDEX(D61:D66,C60) -> 
A61: podlaha na zemině | B61: < 1920 | C61: 1 | D61: budova!$C$290:$C$291
A62: podlaha na zemině | B62: 1921 až 1945 | C62: 2 | D62: budova!$C$292:$C$293
A63: podlaha na zemině | B63: 1946 až 1960 | C63: 3 | D63: budova!$C$294:$C$295
A64: podlaha na zemině | B64: 1961 až 1980 | C64: 4 | D64: budova!$C$296:$C$297
A65: podlaha na zemině | B65: 1981 až 1994 | C65: 5 | D65: budova!$C$298:$C$299
A66: podlaha na zemině | B66: 1995 a dále | C66: 6 | D66: budova!$C$300:$C$304
A69: Konstrukce | B69: Období | C69: Konstrukce | D69: Kce | E69: Součinitel prostupu tepla | F69: Požadavek U | G69: U rec
A70: stěny | B70: < 1920 | C70: zdivo z cihel pálených plných tloušťky 450 mm | D70: =CONCATENATE(B70,"-",C70) -> < 1920-zdivo z cihel pálených plných tloušťky 450 mm | E70: 1.4 | F70: 0.3 | G70: 0.25
A71: stěny | B71: 1921 až 1945 | C71: zdivo z cihel pálených plných tloušťky 450 mm | D71: =CONCATENATE(B71,"-",C71) -> 1921 až 1945-zdivo z cihel pálených plných tloušťky 450 mm | E71: 1.4 | F71: 0.3 | G71: 0.25
A72: stěny | B72: 1921 až 1945 | C72: zdivo z děrovaných cihel a tvárnic tloušťky cca 300 mm | D72: 1921 až 1945-zdivo z děrovaných cihel a tvárnic tloušťky cca 300 mm | E72: 1.3 | F72: 0.3 | G72: 0.25
A73: stěny | B73: 1921 až 1945 | C73: zdivo ze škvárobetonu tloušťky 250 mm až 300 mm | D73: 1921 až 1945-zdivo ze škvárobetonu tloušťky 250 mm až 300 mm | E73: 1.2 | F73: 0.3 | G73: 0.25
A74: stěny | B74: 1946 až 1960 | C74: zdivo z cihel pálených plných tloušťky 450 mm | D74: 1946 až 1960-zdivo z cihel pálených plných tloušťky 450 mm | E74: 1.4 | F74: 0.3 | G74: 0.25
A75: stěny | B75: 1946 až 1960 | C75: zdivo z děrovaných cihel a tvárnic | D75: 1946 až 1960-zdivo z děrovaných cihel a tvárnic | E75: 1.3 | F75: 0.3 | G75: 0.25
A76: stěny | B76: 1946 až 1960 | C76: zdivo ze škvárobetonu tloušťky 250 mm až 300 mm | D76: 1946 až 1960-zdivo ze škvárobetonu tloušťky 250 mm až 300 mm | E76: 1.2 | F76: 0.3 | G76: 0.25
A77: stěny | B77: 1946 až 1960 | C77: zdivo z lehkých betonů tloušťky cca 300 mm | D77: 1946 až 1960-zdivo z lehkých betonů tloušťky cca 300 mm | E77: 1.4 | F77: 0.3 | G77: 0.25
A78: stěny | B78: 1961 až 1980 | C78: zdivo z děrovaných cihel a tvárnic tloušťky cca 300 mm | D78: 1961 až 1980-zdivo z děrovaných cihel a tvárnic tloušťky cca 300 mm | E78: 1.3 | F78: 0.3 | G78: 0.25
A79: stěny | B79: 1961 až 1980 | C79: zdivo ze škvárobetonu tloušťky 250 mm až 300 mm | D79: 1961 až 1980-zdivo ze škvárobetonu tloušťky 250 mm až 300 mm | E79: 1.2 | F79: 0.3 | G79: 0.25
A80: stěny | B80: 1961 až 1980 | C80: zdivo z lehkých betonů tloušťky cca 300 mm | D80: 1961 až 1980-zdivo z lehkých betonů tloušťky cca 300 mm | E80: 1.4 | F80: 0.3 | G80: 0.25
A81: stěny | B81: 1961 až 1980 | C81: panel z lehkého betonu tloušťky 240 mm až 300 mm | D81: 1961 až 1980-panel z lehkého betonu tloušťky 240 mm až 300 mm | E81: 0.9 | F81: 0.3 | G81: 0.25
A82: stěny | B82: 1961 až 1980 | C82: zdivo z pórobetonu tloušťky cca 300 mm | D82: 1961 až 1980-zdivo z pórobetonu tloušťky cca 300 mm | E82: 0.7 | F82: 0.3 | G82: 0.25
A83: stěny | B83: 1961 až 1980 | C83: keramický panel tloušťky 250 mm až 300 mm bez tep. izolace | D83: 1961 až 1980-keramický panel tloušťky 250 mm až 300 mm bez tep. izolace | E83: 1.8 | F83: 0.3 | G83: 0.25
A84: stěny | B84: 1961 až 1980 | C84: kovoplastický panel (tzv. Boletický) tloušťky 120 mm | D84: 1961 až 1980-kovoplastický panel (tzv. Boletický) tloušťky 120 mm | E84: 1.1 | F84: 0.3 | G84: 0.2
A85: stěny | B85: 1961 až 1980 | C85: železobetonový panel sendvičový tloušťky 190 až 240 mm | D85: 1961 až 1980-železobetonový panel sendvičový tloušťky 190 až 240 mm | E85: 1 | F85: 0.3 | G85: 0.25
A86: stěny | B86: 1981 až 1994 | C86: zdivo z pórobetonových tvárnic tloušťky 400 mm | D86: 1981 až 1994-zdivo z pórobetonových tvárnic tloušťky 400 mm | E86: 0.7 | F86: 0.3 | G86: 0.25
A87: stěny | B87: 1981 až 1994 | C87: panel z lehkého betonu tloušťky cca 350 mm | D87: 1981 až 1994-panel z lehkého betonu tloušťky cca 350 mm | E87: 0.9 | F87: 0.3 | G87: 0.25
A88: stěny | B88: 1981 až 1994 | C88: keramický panel tloušťky 300 mm s tepelnou izolací | D88: 1981 až 1994-keramický panel tloušťky 300 mm s tepelnou izolací | E88: 0.8 | F88: 0.3 | G88: 0.25
A89: stěny | B89: 1981 až 1994 | C89: železobetonový panel sendvičový tloušťky cca 300 mm | D89: 1981 až 1994-železobetonový panel sendvičový tloušťky cca 300 mm | E89: 0.6 | F89: 0.3 | G89: 0.25
A90: stěny | B90: 1995 a dále | C90: stěna rekonstruovaný objekt (1995 - 2001) | D90: 1995 a dále-stěna rekonstruovaný objekt (1995 - 2001) | E90: 0.7 | F90: 0.3 | G90: 0.25
A91: stěny | B91: 1995 a dále | C91: nová stěna (1995 - 2001) | D91: 1995 a dále-nová stěna (1995 - 2001) | E91: 0.33 | F91: 0.3 | G91: 0.25
A92: stěny | B92: 1995 a dále | C92: stěna lehká - nová od 2002 | D92: 1995 a dále-stěna lehká - nová od 2002 | E92: 0.3 | F92: 0.3 | G92: 0.2
A93: stěny | B93: 1995 a dále | C93: stěna těžká - nová od 2002 | D93: 1995 a dále-stěna těžká - nová od 2002 | E93: 0.38 | F93: 0.3 | G93: 0.25
A94: stěny | B94: 1995 a dále | C94: stěna těžká - nová od 2002 | D94: =CONCATENATE(B94,"-",C94) -> 1995 a dále-stěna těžká - nová od 2002 | E94: 0.38 | F94: 0.3 | G94: 0.25
A95: stěny | B95: 1995 a dále | C95: stěna nová od 2011 | D95: =CONCATENATE(B95,"-",C95) -> 1995 a dále-stěna nová od 2011 | E95: 0.3 | F95: 0.3 | G95: 0.25
A96: plochá střecha | B96: < 1920 | C96: plochá jednoplášťová střecha s vrstvou škvárobetonu | D96: < 1920-plochá jednoplášťová střecha s vrstvou škvárobetonu | E96: 2 | F96: 0.24 | G96: 0.16
A97: plochá střecha | B97: 1921 až 1945 | C97: plochá jednoplášťová střecha s vrstvou škvárobetonu | D97: 1921 až 1945-plochá jednoplášťová střecha s vrstvou škvárobetonu | E97: 2 | F97: 0.24 | G97: 0.16
A98: plochá střecha | B98: 1921 až 1945 | C98: plochá jednoplášťová střecha s tepelnou izolací z dutých cihel | D98: 1921 až 1945-plochá jednoplášťová střecha s tepelnou izolací z dutých cihel | E98: 1.4 | F98: 0.24 | G98: 0.16
A99: plochá střecha | B99: 1921 až 1945 | C99: plochá dvouplášťová střecha s násypem | D99: 1921 až 1945-plochá dvouplášťová střecha s násypem | E99: 1.2 | F99: 0.24 | G99: 0.16
A100: plochá střecha | B100: 1946 až 1960 | C100: plochá jednoplášťová střecha s pěnobetonem a heraklitem | D100: 1946 až 1960-plochá jednoplášťová střecha s pěnobetonem a heraklitem | E100: 0.9 | F100: 0.24 | G100: 0.16
A101: plochá střecha | B101: 1961 až 1980 | C101: plochá jednoplášťová střecha s tepelnou izolací z plynosilikátových desek nebo pěnoskla | D101: 1961 až 1980-plochá jednoplášťová střecha s tepelnou izolací z plynosilikátových desek nebo pěnoskla | E101: 0.7 | F101: 0.24 | G101: 0.16
A102: plochá střecha | B102: 1961 až 1980 | C102: plochá jednoplášťová střecha s tepelnou izolací z polystyrénu tl. 50 mm | D102: 1961 až 1980-plochá jednoplášťová střecha s tepelnou izolací z polystyrénu tl. 50 mm | E102: 0.6 | F102: 0.24 | G102: 0.16
A103: plochá střecha | B103: 1961 až 1980 | C103: plochá dvouplášťová střecha s tepelnou izolací s minerálních vláken tloušťky 60 až 80 mm | D103: 1961 až 1980-plochá dvouplášťová střecha s tepelnou izolací s minerálních vláken tloušťky 60 až 80 mm | E103: 0.7 | F103: 0.24 | G103: 0.16
A104: plochá střecha | B104: 1981 až 1994 | C104: plochá jednoplášťová střecha s tepelnou izolací z polystyrénu tl. 100 mm | D104: 1981 až 1994-plochá jednoplášťová střecha s tepelnou izolací z polystyrénu tl. 100 mm | E104: 0.4 | F104: 0.24 | G104: 0.16
A105: plochá střecha | B105: 1981 až 1994 | C105: plochá dvouplášťová střecha s tepelnou izolací s minerálních vláken tloušťky 120 mm | D105: 1981 až 1994-plochá dvouplášťová střecha s tepelnou izolací s minerálních vláken tloušťky 120 mm | E105: 0.4 | F105: 0.24 | G105: 0.16
A106: plochá střecha | B106: 1995 a dále | C106: plochá střecha 1995-2002 | D106: 1995 a dále-plochá střecha 1995-2002 | E106: =1/3 -> 0.3333333333 | F106: 0.24 | G106: 0.16
A107: plochá střecha | B107: 1995 a dále | C107: plochá střecha těžká po roce 2002 | D107: =CONCATENATE(B107,"-",C107) -> 1995 a dále-plochá střecha těžká po roce 2002 | E107: 0.3 | F107: 0.24 | G107: 0.16
A108: plochá střecha | B108: 1995 a dále | C108: plochá střecha lehká po roce 2002 | D108: 1995 a dále-plochá střecha lehká po roce 2002 | E108: 0.24 | F108: 0.24 | G108: 0.16
A109: plochá střecha | B109: 1995 a dále | C109: plochá střecha po roce 2002 | D109: 1995 a dále-plochá střecha po roce 2002 | E109: 0.24 | F109: 0.24 | G109: 0.16
A110: plochá střecha | B110: 1995 a dále | C110: plochá střecha po roce 2007 | D110: 1995 a dále-plochá střecha po roce 2007 | E110: 0.24 | F110: 0.24 | G110: 0.16
A111: šikmá střecha | B111: < 1920 | C111: šikmá střecha nezateplená | D111: < 1920-šikmá střecha nezateplená | E111: 4 | F111: 0.24 | G111: 0.16
A112: šikmá střecha | B112: 1921 až 1945 | C112: šikmá střecha nezateplená | D112: 1921 až 1945-šikmá střecha nezateplená | E112: 4 | F112: 0.24 | G112: 0.16
A113: šikmá střecha | B113: 1946 až 1960 | C113: šikmá střecha nezateplená | D113: 1946 až 1960-šikmá střecha nezateplená | E113: 4 | F113: 0.24 | G113: 0.16
A114: šikmá střecha | B114: 1961 až 1980 | C114: šikmá střecha zateplená | D114: 1961 až 1980-šikmá střecha zateplená | E114: =1/(0.05/0.065+0.1*2) -> 1.031746032 | F114: 0.24 | G114: 0.16
A115: šikmá střecha | B115: 1981 až 1994 | C115: šikmá střecha zateplená | D115: 1981 až 1994-šikmá střecha zateplená | E115: =1/(0.08/0.065+0.1*2) -> 0.6989247312 | F115: 0.24 | G115: 0.16
A116: šikmá střecha | B116: 1995 a dále | C116: šikmá střecha realizace 1995-2002 | D116: 1995 a dále-šikmá střecha realizace 1995-2002 | E116: =1/3 -> 0.3333333333 | F116: 0.24 | G116: 0.16
A117: šikmá střecha | B117: 1995 a dále | C117: šikmá střecha po roce 2002 | D117: 1995 a dále-šikmá střecha po roce 2002 | E117: 0.24 | F117: 0.24 | G117: 0.16
A118: strop půdy | B118: < 1920 | C118: stropy dřevěné trámové pod půdou s násypem škváry | D118: =CONCATENATE(B118,"-",C118) -> < 1920-stropy dřevěné trámové pod půdou s násypem škváry | E118: 1.6 | F118: 0.3 | G118: 0.2
A119: strop půdy | B119: < 1920 | C119: stropy keramické do ocelových nosníků pod půdou s násypem škváry | D119: < 1920-stropy keramické do ocelových nosníků pod půdou s násypem škváry | E119: 1 | F119: 0.3 | G119: 0.2
A120: strop půdy | B120: 1921 až 1945 | C120: stropy dřevěné trámové pod půdou s násypem škváry | D120: 1921 až 1945-stropy dřevěné trámové pod půdou s násypem škváry | E120: 1.6 | F120: 0.3 | G120: 0.2
A121: strop půdy | B121: 1921 až 1945 | C121: stropy keramické do ocelových nosníků pod půdou s násypem škváry | D121: 1921 až 1945-stropy keramické do ocelových nosníků pod půdou s násypem škváry | E121: 2.2 | F121: 0.3 | G121: 0.2
A122: strop půdy | B122: 1921 až 1945 | C122: stropy železobetonové pod půdou s násypem a potěrem | D122: 1921 až 1945-stropy železobetonové pod půdou s násypem a potěrem | E122: 1 | F122: 0.3 | G122: 0.2
A123: strop půdy | B123: 1946 až 1960 | C123: stropy dřevěné trámové pod půdou s násypem škváry | D123: 1946 až 1960-stropy dřevěné trámové pod půdou s násypem škváry | E123: 1.6 | F123: 0.3 | G123: 0.2
A124: strop půdy | B124: 1946 až 1960 | C124: stropy keramické do ocelových nosníků pod půdou s násypem škváry | D124: 1946 až 1960-stropy keramické do ocelových nosníků pod půdou s násypem škváry | E124: 2.2 | F124: 0.3 | G124: 0.2
A125: strop půdy | B125: 1946 až 1960 | C125: stropy železobetonové pod půdou s násypem a potěrem | D125: 1946 až 1960-stropy železobetonové pod půdou s násypem a potěrem | E125: 2.6 | F125: 0.3 | G125: 0.2
A126: strop půdy | B126: 1946 až 1960 | C126: stropy železobetonové pod půdou s vrstvou lehkého betonu | D126: 1946 až 1960-stropy železobetonové pod půdou s vrstvou lehkého betonu | E126: 1 | F126: 0.3 | G126: 0.2
A127: strop půdy | B127: 1961 až 1980 | C127: stropy dřevěné trámové pod půdou s násypem škváry | D127: =CONCATENATE(B127,"-",C127) -> 1961 až 1980-stropy dřevěné trámové pod půdou s násypem škváry | E127: 1.6 | F127: 0.3 | G127: 0.2
A128: strop půdy | B128: 1961 až 1980 | C128: stropy keramické do ocelových nosníků pod půdou s násypem škváry | D128: 1961 až 1980-stropy keramické do ocelových nosníků pod půdou s násypem škváry | E128: 2.2 | F128: 0.3 | G128: 0.2
A129: strop půdy | B129: 1961 až 1980 | C129: stropy železobetonové pod půdou s násypem a potěrem | D129: 1961 až 1980-stropy železobetonové pod půdou s násypem a potěrem | E129: 2.6 | F129: 0.3 | G129: 0.2
A130: strop půdy | B130: 1961 až 1980 | C130: stropy železobetonové pod půdou s vrstvou lehkého betonu | D130: 1961 až 1980-stropy železobetonové pod půdou s vrstvou lehkého betonu | E130: 2.6 | F130: 0.3 | G130: 0.2
A131: strop půdy | B131: 1961 až 1980 | C131: stropy železobetonové panelové pod půdou s potěrem | D131: 1961 až 1980-stropy železobetonové panelové pod půdou s potěrem | E131: 2 | F131: 0.3 | G131: 0.2
A132: strop půdy | B132: 1961 až 1980 | C132: stropy keramické z panelů a vložek pod půdou s potěrem | D132: 1961 až 1980-stropy keramické z panelů a vložek pod půdou s potěrem | E132: 1 | F132: 0.3 | G132: 0.2
A133: strop půdy | B133: 1981 až 1994 | C133: stropy dřevěné trámové pod půdou s násypem škváry | D133: 1981 až 1994-stropy dřevěné trámové pod půdou s násypem škváry | E133: 1.6 | F133: 0.3 | G133: 0.2
A134: strop půdy | B134: 1981 až 1994 | C134: stropy keramické do ocelových nosníků pod půdou s násypem škváry | D134: 1981 až 1994-stropy keramické do ocelových nosníků pod půdou s násypem škváry | E134: 2.2 | F134: 0.3 | G134: 0.2
A135: strop půdy | B135: 1981 až 1994 | C135: stropy železobetonové pod půdou s násypem a potěrem | D135: 1981 až 1994-stropy železobetonové pod půdou s násypem a potěrem | E135: 2.6 | F135: 0.3 | G135: 0.2
A136: strop půdy | B136: 1981 až 1994 | C136: stropy železobetonové pod půdou s vrstvou lehkého betonu | D136: 1981 až 1994-stropy železobetonové pod půdou s vrstvou lehkého betonu | E136: 2.6 | F136: 0.3 | G136: 0.2
A137: strop půdy | B137: 1981 až 1994 | C137: stropy železobetonové panelové pod půdou s potěrem | D137: 1981 až 1994-stropy železobetonové panelové pod půdou s potěrem | E137: 2 | F137: 0.3 | G137: 0.2
A138: strop půdy | B138: 1981 až 1994 | C138: stropy keramické z panelů a vložek pod půdou s potěrem | D138: 1981 až 1994-stropy keramické z panelů a vložek pod půdou s potěrem | E138: 0.48 | F138: 0.3 | G138: 0.2
A139: strop půdy | B139: 1995 a dále | C139: strop pod půdou - 1995-2002 - přípustná | D139: 1995 a dále-strop pod půdou - 1995-2002 - přípustná | E139: 0.31 | F139: 0.3 | G139: 0.2
A140: strop půdy | B140: 1995 a dále | C140: strop pod půdou - 1995-2002 - požadovaná | D140: 1995 a dále-strop pod půdou - 1995-2002 - požadovaná | E140: 0.22 | F140: 0.3 | G140: 0.2
A141: strop půdy | B141: 1995 a dále | C141: strop pod půdou - po roce 2002 | D141: 1995 a dále-strop pod půdou - po roce 2002 | E141: 0.3 | F141: 0.3 | G141: 0.2
A142: nevytápěný suterén | B142: < 1920 | C142: stropy dřevěné trámové nad suterénem s dřev. podlahou | D142: < 1920-stropy dřevěné trámové nad suterénem s dřev. podlahou | E142: 0.9 | F142: 0.6 | G142: 0.4
A143: nevytápěný suterén | B143: < 1920 | C143: stropy keramické do ocelových nosníků nad suterénem s dřev. podlahou | D143: < 1920-stropy keramické do ocelových nosníků nad suterénem s dřev. podlahou | E143: 1.2 | F143: 0.6 | G143: 0.4
A144: nevytápěný suterén | B144: 1921 až 1945 | C144: stropy dřevěné trámové nad suterénem s dřev. podlahou | D144: 1921 až 1945-stropy dřevěné trámové nad suterénem s dřev. podlahou | E144: 0.9 | F144: 0.6 | G144: 0.4
A145: nevytápěný suterén | B145: 1921 až 1945 | C145: stropy keramické do ocelových nosníků nad suterénem s dřev. podlahou | D145: 1921 až 1945-stropy keramické do ocelových nosníků nad suterénem s dřev. podlahou | E145: 1.2 | F145: 0.6 | G145: 0.4
A146: nevytápěný suterén | B146: 1921 až 1945 | C146: stropy železobetonové nad suterénem s dřev. podlahou | D146: 1921 až 1945-stropy železobetonové nad suterénem s dřev. podlahou | E146: 1.6 | F146: 0.6 | G146: 0.4
A147: nevytápěný suterén | B147: 1946 až 1960 | C147: stropy dřevěné trámové nad suterénem s dřev. podlahou | D147: 1946 až 1960-stropy dřevěné trámové nad suterénem s dřev. podlahou | E147: 0.9 | F147: 0.6 | G147: 0.4
A148: nevytápěný suterén | B148: 1946 až 1960 | C148: stropy keramické do ocelových nosníků nad suterénem s dřev. podlahou | D148: 1946 až 1960-stropy keramické do ocelových nosníků nad suterénem s dřev. podlahou | E148: 1.2 | F148: 0.6 | G148: 0.4
A149: nevytápěný suterén | B149: 1946 až 1960 | C149: stropy železobetonové nad suterénem s dřev. podlahou | D149: 1946 až 1960-stropy železobetonové nad suterénem s dřev. podlahou | E149: 1.6 | F149: 0.6 | G149: 0.4
A150: nevytápěný suterén | B150: 1946 až 1960 | C150: stropy železobetonové nad suterénem s podlahou s PVC | D150: 1946 až 1960-stropy železobetonové nad suterénem s podlahou s PVC | E150: 1.6 | F150: 0.6 | G150: 0.4
A151: nevytápěný suterén | B151: 1946 až 1960 | C151: stropy železobetonové panelové nad suterénem s podlahou s PVC | D151: 1946 až 1960-stropy železobetonové panelové nad suterénem s podlahou s PVC | E151: 1.4 | F151: 0.6 | G151: 0.4
A152: nevytápěný suterén | B152: 1946 až 1960 | C152: stropy keramické z panelů a vložek nad suterénem s podlahou s PVC | D152: 1946 až 1960-stropy keramické z panelů a vložek nad suterénem s podlahou s PVC | E152: 0.9 | F152: 0.6 | G152: 0.4
A153: nevytápěný suterén | B153: 1961 až 1980 | C153: stropy keramické do ocelových nosníků nad suterénem s dřev. podlahou | D153: 1961 až 1980-stropy keramické do ocelových nosníků nad suterénem s dřev. podlahou | E153: 1.2 | F153: 0.6 | G153: 0.4
A154: nevytápěný suterén | B154: 1961 až 1980 | C154: stropy železobetonové nad suterénem s dřev. podlahou | D154: 1961 až 1980-stropy železobetonové nad suterénem s dřev. podlahou | E154: 1.6 | F154: 0.6 | G154: 0.4
A155: nevytápěný suterén | B155: 1961 až 1980 | C155: stropy železobetonové nad suterénem s podlahou s PVC | D155: 1961 až 1980-stropy železobetonové nad suterénem s podlahou s PVC | E155: 1.6 | F155: 0.6 | G155: 0.4
A156: nevytápěný suterén | B156: 1961 až 1980 | C156: stropy železobetonové panelové nad suterénem s podlahou s PVC | D156: 1961 až 1980-stropy železobetonové panelové nad suterénem s podlahou s PVC | E156: 1.4 | F156: 0.6 | G156: 0.4
A157: nevytápěný suterén | B157: 1961 až 1980 | C157: stropy keramické z panelů a vložek nad suterénem s podlahou s PVC | D157: 1961 až 1980-stropy keramické z panelů a vložek nad suterénem s podlahou s PVC | E157: 0.9 | F157: 0.6 | G157: 0.4
A158: nevytápěný suterén | B158: 1981 až 1994 | C158: stropy keramické do ocelových nosníků nad suterénem s dřev. podlahou | D158: 1981 až 1994-stropy keramické do ocelových nosníků nad suterénem s dřev. podlahou | E158: 1.2 | F158: 0.6 | G158: 0.4
A159: nevytápěný suterén | B159: 1981 až 1994 | C159: stropy železobetonové nad suterénem s dřev. podlahou | D159: 1981 až 1994-stropy železobetonové nad suterénem s dřev. podlahou | E159: 1.6 | F159: 0.6 | G159: 0.4
A160: nevytápěný suterén | B160: 1981 až 1994 | C160: stropy železobetonové nad suterénem s podlahou s PVC | D160: 1981 až 1994-stropy železobetonové nad suterénem s podlahou s PVC | E160: 1.6 | F160: 0.6 | G160: 0.4
A161: nevytápěný suterén | B161: 1981 až 1994 | C161: stropy železobetonové panelové nad suterénem s podlahou s PVC | D161: 1981 až 1994-stropy železobetonové panelové nad suterénem s podlahou s PVC | E161: 1 | F161: 0.6 | G161: 0.4
A162: nevytápěný suterén | B162: 1981 až 1994 | C162: stropy keramické z panelů a vložek nad suterénem s podlahou s PVC | D162: 1981 až 1994-stropy keramické z panelů a vložek nad suterénem s podlahou s PVC | E162: 0.9 | F162: 0.6 | G162: 0.4
A163: nevytápěný suterén | B163: 1995 a dále | C163: podlaha nad nevytápěným prostorem do roku 2002 | D163: 1995 a dále-podlaha nad nevytápěným prostorem do roku 2002 | E163: 0.77 | F163: 0.6 | G163: 0.4
A164: nevytápěný suterén | B164: 1995 a dále | C164: podlaha s podlahovým vytápěním lehká | D164: 1995 a dále-podlaha s podlahovým vytápěním lehká | E164: 0.24 | F164: 0.6 | G164: 0.4
A165: nevytápěný suterén | B165: 1995 a dále | C165: podlaha s podlahovým vytápěním těžká | D165: 1995 a dále-podlaha s podlahovým vytápěním těžká | E165: 0.3 | F165: 0.6 | G165: 0.4
A166: nevytápěný suterén | B166: 1995 a dále | C166: strop nad nevytápěným prostorem po roce 2002 | D166: =CONCATENATE(B166,"-",C166) -> 1995 a dále-strop nad nevytápěným prostorem po roce 2002 | E166: 0.6 | F166: 0.6 | G166: 0.4
A167: okna | B167: < 1920 | C167: okna dřevěná špaletová se 2 skly | D167: < 1920-okna dřevěná špaletová se 2 skly | E167: 2.35 | F167: 1.5 | G167: 1.2
A168: okna | B168: < 1920 | C168: okna dřevěná jednoduchá s 1 sklem | D168: < 1920-okna dřevěná jednoduchá s 1 sklem | E168: 4.5 | F168: 1.5 | G168: 1.2
A169: okna | B169: < 1920 | C169: okna dřevěná zdvojená se 2 skly | D169: < 1920-okna dřevěná zdvojená se 2 skly | E169: 2.4 | F169: 1.5 | G169: 1.2
A170: okna | B170: < 1920 | C170: okna kovová zdvojená se 2 skly | D170: < 1920-okna kovová zdvojená se 2 skly | E170: 3.3 | F170: 1.5 | G170: 1.2
A171: okna | B171: < 1920 | C171: kopility | D171: < 1920-kopility | E171: 2.7 | F171: 1.5 | G171: 1.2
A172: okna | B172: < 1920 | C172: sklobetonová stěna (luxfery) | D172: < 1920-sklobetonová stěna (luxfery) | E172: 3.1 | F172: 1.5 | G172: 1.2
A173: okna | B173: < 1920 | C173: okna vyměněná před 2011 | D173: < 1920-okna vyměněná před 2011 | E173: 1.7 | F173: 1.5 | G173: 1.2
A174: okna | B174: < 1920 | C174: okna vyměněná po roce 2011 | D174: < 1920-okna vyměněná po roce 2011 | E174: 1.5 | F174: 1.5 | G174: 1.2
A175: okna | B175: 1921 až 1945 | C175: okna dřevěná špaletová se 2 skly | D175: 1921 až 1945-okna dřevěná špaletová se 2 skly | E175: 2.35 | F175: 1.5 | G175: 1.2
A176: okna | B176: 1921 až 1945 | C176: okna dřevěná jednoduchá s 1 sklem | D176: 1921 až 1945-okna dřevěná jednoduchá s 1 sklem | E176: 4.5 | F176: 1.5 | G176: 1.2
A177: okna | B177: 1921 až 1945 | C177: okna dřevěná zdvojená se 2 skly | D177: 1921 až 1945-okna dřevěná zdvojená se 2 skly | E177: 2.4 | F177: 1.5 | G177: 1.2
A178: okna | B178: 1921 až 1945 | C178: okna kovová zdvojená se 2 skly | D178: 1921 až 1945-okna kovová zdvojená se 2 skly | E178: 3.3 | F178: 1.5 | G178: 1.2
A179: okna | B179: 1921 až 1945 | C179: kopility | D179: 1921 až 1945-kopility | E179: 2.7 | F179: 1.5 | G179: 1.2
A180: okna | B180: 1921 až 1945 | C180: sklobetonová stěna (luxfery) | D180: 1921 až 1945-sklobetonová stěna (luxfery) | E180: 3.1 | F180: 1.5 | G180: 1.2
A181: okna | B181: 1921 až 1945 | C181: okna vyměněná před 2011 | D181: 1921 až 1945-okna vyměněná před 2011 | E181: 1.7 | F181: 1.5 | G181: 1.2
A182: okna | B182: 1921 až 1945 | C182: okna vyměněná po roce 2011 | D182: 1921 až 1945-okna vyměněná po roce 2011 | E182: 1.5 | F182: 1.5 | G182: 1.2
A183: okna | B183: 1946 až 1960 | C183: okna dřevěná špaletová se 2 skly | D183: =CONCATENATE(B183,"-",C183) -> 1946 až 1960-okna dřevěná špaletová se 2 skly | E183: 2.35 | F183: 1.5 | G183: 1.2
A184: okna | B184: 1946 až 1960 | C184: okna dřevěná jednoduchá s 1 sklem | D184: 1946 až 1960-okna dřevěná jednoduchá s 1 sklem | E184: 4.5 | F184: 1.5 | G184: 1.2
A185: okna | B185: 1946 až 1960 | C185: okna dřevěná zdvojená se 2 skly | D185: 1946 až 1960-okna dřevěná zdvojená se 2 skly | E185: 2.4 | F185: 1.5 | G185: 1.2
A186: okna | B186: 1946 až 1960 | C186: okna kovová zdvojená se 2 skly | D186: 1946 až 1960-okna kovová zdvojená se 2 skly | E186: 3.3 | F186: 1.5 | G186: 1.2
A187: okna | B187: 1946 až 1960 | C187: kopility | D187: 1946 až 1960-kopility | E187: 2.7 | F187: 1.5 | G187: 1.2
A188: okna | B188: 1946 až 1960 | C188: sklobetonová stěna (luxfery) | D188: 1946 až 1960-sklobetonová stěna (luxfery) | E188: 3.1 | F188: 1.5 | G188: 1.2
A189: okna | B189: 1946 až 1960 | C189: okna vyměněná před 2011 | D189: 1946 až 1960-okna vyměněná před 2011 | E189: 1.7 | F189: 1.5 | G189: 1.2
A190: okna | B190: 1946 až 1960 | C190: okna vyměněná po roce 2011 | D190: 1946 až 1960-okna vyměněná po roce 2011 | E190: 1.5 | F190: 1.5 | G190: 1.2
A191: okna | B191: 1961 až 1980 | C191: okna dřevěná špaletová se 2 skly | D191: 1961 až 1980-okna dřevěná špaletová se 2 skly | E191: 2.35 | F191: 1.5 | G191: 1.2
A192: okna | B192: 1961 až 1980 | C192: okna dřevěná jednoduchá s 1 sklem | D192: 1961 až 1980-okna dřevěná jednoduchá s 1 sklem | E192: 4.5 | F192: 1.5 | G192: 1.2
A193: okna | B193: 1961 až 1980 | C193: okna dřevěná zdvojená se 2 skly | D193: 1961 až 1980-okna dřevěná zdvojená se 2 skly | E193: 2.4 | F193: 1.5 | G193: 1.2
A194: okna | B194: 1961 až 1980 | C194: okna kovová zdvojená se 2 skly | D194: 1961 až 1980-okna kovová zdvojená se 2 skly | E194: 3.3 | F194: 1.5 | G194: 1.2
A195: okna | B195: 1961 až 1980 | C195: kopility | D195: =CONCATENATE(B195,"-",C195) -> 1961 až 1980-kopility | E195: 2.7 | F195: 1.5 | G195: 1.2
A196: okna | B196: 1961 až 1980 | C196: sklobetonová stěna (luxfery) | D196: =CONCATENATE(B196,"-",C196) -> 1961 až 1980-sklobetonová stěna (luxfery) | E196: 3.1 | F196: 1.5 | G196: 1.2
A197: okna | B197: 1961 až 1980 | C197: okna vyměněná před 2011 | D197: =CONCATENATE(B197,"-",C197) -> 1961 až 1980-okna vyměněná před 2011 | E197: 1.7 | F197: 1.5 | G197: 1.2
A198: okna | B198: 1961 až 1980 | C198: okna vyměněná po roce 2011 | D198: =CONCATENATE(B198,"-",C198) -> 1961 až 1980-okna vyměněná po roce 2011 | E198: 1.5 | F198: 1.5 | G198: 1.2
A199: okna | B199: 1981 až 1994 | C199: okna dřevěná zdvojená se 2 skly | D199: 1981 až 1994-okna dřevěná zdvojená se 2 skly | E199: 2.4 | F199: 1.5 | G199: 1.2
A200: okna | B200: 1981 až 1994 | C200: okna dřevěná jednoduchá s izolačním dvojsklem | D200: 1981 až 1994-okna dřevěná jednoduchá s izolačním dvojsklem | E200: 2.5 | F200: 1.5 | G200: 1.2
A201: okna | B201: 1981 až 1994 | C201: okna kovová zdvojená se 2 skly | D201: =CONCATENATE(B201,"-",C201) -> 1981 až 1994-okna kovová zdvojená se 2 skly | E201: 2.8 | F201: 1.5 | G201: 1.2
A202: okna | B202: 1981 až 1994 | C202: okna kovová jednoduchá s izolačním dvojsklem | D202: 1981 až 1994-okna kovová jednoduchá s izolačním dvojsklem | E202: 3.2 | F202: 1.5 | G202: 1.2
A203: okna | B203: 1981 až 1994 | C203: kopility | D203: 1981 až 1994-kopility | E203: 2.7 | F203: 1.5 | G203: 1.2
A204: okna | B204: 1981 až 1994 | C204: sklobetonová stěna (luxfery) | D204: 1981 až 1994-sklobetonová stěna (luxfery) | E204: 3.1 | F204: 1.5 | G204: 1.2
... 100 more rows

Sheet budova_opatření (hidden)
B2: opatření | C2: Lambda | D2: Delta U
A3: stěny | B3: zateplení kontaktní systém, MV | C3: 0.042 | D3: 0.02
A4: stěny | B4: zateplení kontaktní systém, EPS | C4: 0.04 | D4: 0.02
A5: stěny | B5: zateplení kontaktní systém, šedý polystyren | C5: 0.034 | D5: 0.02
A6: stěny | B6: zateplení kontaktní systém, XPS | C6: 0.035 | D6: 0.02
A7: stěny | B7: zateplení kontaktní systém, fenolová pěna | C7: 0.023 | D7: 0.02
A8: stěny | B8: zateplení, minerální tepelně-izolační desky (Multipor) | C8: 0.045 | D8: 0.02
A9: stěny | B9: zateplení PUR panel | C9: 0.023 | D9: 0.02
A10: stěny | B10: zateplení panel z MV | C10: 0.042 | D10: 0.02
A11: stěny | B11: zateplení skládaný plášť s obkladem, izolace MV | C11: 0.042 | D11: 0.05
A12: stěny | B12: zateplení skládaný plášť s obkladem, izolace EPS | C12: 0.039 | D12: 0.05
A13: stěny | B13: zateplení skládaný plášť s obkladem, izolace PUR | C13: 0.023 | D13: 0.02
A14: plochá střecha | B14: zateplení ploché střechy, MV | C14: 0.04 | D14: 0.02
A15: plochá střecha | B15: zateplení ploché střechy, EPS | C15: 0.039 | D15: 0.02
A16: plochá střecha | B16: zateplení ploché střechy, XPS | C16: 0.034 | D16: 0.02
A17: plochá střecha | B17: zateplení ploché střechy, polyuretan | C17: 0.025 | D17: 0.02
A18: plochá střecha | B18: zateplení ploché střechy, polyuretan - minerální rouno | C18: 0.03 | D18: 0.02
A19: plochá střecha | B19: zateplení ploché střechy, pěnové sklo | C19: 0.041 | D19: 0.02
A20: šikmá střecha | B20: zateplení šikmé střechy mezi a pod krokve, MV | C20: 0.05 | D20: 0
A21: šikmá střecha | B21: zateplení šikmé střechy mezi a pod krokve, celulózovou izolací | C21: 0.05 | D21: 0
A22: šikmá střecha | B22: zateplení šikmé střechy nad krokve, polyuretan | C22: 0.025 | D22: 0.02
A23: šikmá střecha | B23: zateplení šikmé střechy nad krokve, polystyren | C23: 0.035 | D23: 0.02
A24: strop půdy | B24: zateplení stropu půdy MV - volně ložená | C24: 0.04 | D24: 0.02
A25: strop půdy | B25: zateplení stropu půdy EPS - volně ložený | C25: 0.039 | D25: 0.02
A26: strop půdy | B26: zateplení stropu půdy MV - pochozí úprava | C26: 0.05 | D26: 0.02
A27: strop půdy | B27: zateplení stropu půdy EPS - pochozí úprava | C27: 0.046 | D27: 0.02
A28: nevytápěný suterén | B28: zateplení stropu, MV | C28: 0.04 | D28: 0.05
A29: nevytápěný suterén | B29: zateplení stropu, EPS | C29: 0.039 | D29: 0.05
A30: nevytápěný suterén | B30: zateplení stropu, XPS | C30: 0.034 | D30: 0.05
A31: nevytápěný suterén | B31: zateplení stropu, polyuretan | C31: 0.025 | D31: 0.05
A32: nevytápěný suterén | B32: zateplení stropu, šedý polystyren | C32: 0.034 | D32: 0.05
A33: nevytápěný suterén | B33: zateplení stropu celulózovou izolací | C33: 0.039 | D33: 0.05
A34: nevytápěný suterén | B34: zateplení, minerální tepelně-izolační desky (Multipor) | C34: 0.045 | D34: 0.05
A35: podlaha na zemině | B35: zateplení v konstrukci podlahy, EPS | C35: 0.044 | D35: 0.02
A36: podlaha na zemině | B36: zateplení v konstrukci podlahy, XPS | C36: 0.033 | D36: 0.02
A37: podlaha na zemině | B37: zateplení v konstrukci podlahy, šedý polystyren | C37: 0.032 | D37: 0.02
A38: podlaha na zemině | B38: zateplení v konstrukci podlahy, pěnové sklo | C38: 0.048 | D38: 0.02
A39: okna | B39: plastová s izolačním dvojsklem
A40: okna | B40: dřevěná s izolačním dvojsklem
A41: okna | B41: kovová s přerušeným tepelným mostem s izolačním dvojsklem
A42: okna | B42: dřevo-hliníková s izolačním dvojsklem
A43: okna | B43: plast-hliníková s izolačním dvojsklem
A44: okna | B44: dřevěná s izolačním trojsklem
A45: okna | B45: plastová s izolačním trojsklem
A46: okna | B46: kovová s přerušeným tepelným mostem s izolačním trojsklem
A47: okna | B47: dřevo-hliníková s izolačním trojsklem
A48: okna | B48: plast-hliníková s izolačním trojsklem
A49: dveře-vrata | B49: dveře dřevěné
A50: dveře-vrata | B50: dveře kovové
A51: dveře-vrata | B51: dveře plastové
A52: dveře-vrata | B52: vrata tepelně izolační
A53: střešní okna-světlíky | B53: plastová s izolačním dvojsklem
A54: střešní okna-světlíky | B54: dřevěná s izolačním dvojsklem
A55: střešní okna-světlíky | B55: kovová s přerušeným tepelným mostem s izolačním dvojsklem
A56: střešní okna-světlíky | B56: plastová s izolačním trojsklem
A57: střešní okna-světlíky | B57: dřevěná s izolačním trojsklem
A58: střešní okna-světlíky | B58: kovová s přerušeným tepelným mostem s izolačním trojsklem
A59: střešní okna-světlíky | B59: střešní světlíky

Sheet opatření k realizaci (hidden)
E1: pomocné pro zobrazení | K1: kotel | L1: kotel | M1: kotel | N1: kotel | O1: kotel | P1: zateplení | Q1: zateplení | R1: zateplení | S1: zateplení | T1: zateplení | U1: zateplení | V1: zateplení | W1: zateplení | X1: zateplení | Y1: zateplení | Z1: zateplení | AA1: zateplení | AB1: zateplení | AC1: zateplení | AD1: zateplení | AE1: osvětlení | AF1: osvětlení | AG1: osvětlení
B2: List | C2: Opatření | D2: ano/ne | F2: 0 | I2: Popis | J2: Vyhodnocení | K2: typ zdroje | L2: výkon kW | M2: účinnost | N2: vyhodnocení | O2: m2 solárního systému | P2: Typ zateplení | Q2: Tloušťka tepelné izolace [mm] | R2: Plocha zateplované konstrukce [m2] | S2: Součinitel prostupu tepla konstrukce z PENB [W/(m2.K)] | T2: Součinitel prostupu tepla výpočet z kalkulačky [W/(m2.K)] | U2: Požadavek programu na U [W/(m2.K)] | V2: Vyhodnocení plnění požadavku | W2: Typ oken | X2: Plocha vyměňovaných výplní [m2] | Y2: Součinitel prostupu tepla nových výplní [W/(m2.K)] | Z2: Požadavek programu na U [W/(m2.K)] | AA2: Vyhodnocení plnění požadavku | AB2: účinnost systému nuceného větrání v % | AC2: větraný objem v m3/h | AD2: vyhodnocení úč. | AE2: počet | AF2: celkový příkon vyměňových zdrojů | AG2: průměrný příkon 1 zdroje
A3: 1 | B3: Kotel | C3: Výměna zdroje | D3: =IF(ISBLANK(Kotel!E16),"ne","ano") -> ne | E3: =IF(D3="ano",1,0) -> 0 | F3: =F2+E3 -> 0 | G3: =IF(F2=F3,0,F3) -> 0 | H3: =IFERROR(MATCH($A3,$G$3:$G$15,0),0) -> 0 | I3: =IF(K3="tepelné čerpadlo",CONCATENATE(K3,", výkon: ",L3," kW"," COP: ",M3),CONCATENATE(K3,", výkon: ",L3," kW"," účinnost: ",M3*100,"%")) ->  | J3: =IF(OR(AND(D3="ano",K3=0),N3="Nejsou vyplněna všechna data"),"Doplňte údaje na listu kotel",IF(N3="Nově instalovaný zdroj splňuje požadavek na účinnost dle vyhl. č. 78/2013 Sb.","Opatření splňuje požadavek programu","Opatření NESPLŇUJE požadavek programu")) -> Opatření splňuje požadavek programu | K3: =Kotel!E13 -> 0 | L3: =Kotel!E16 -> 0 | M3: =parametry!G76 ->  | N3: =Kotel!C26 -> Nově instalovaný zdroj splňuje požadavek na účinnost dle vyhl. č. 78/2013 Sb.
A4: 2 | B4: Zateplení | C4: Zateplení obvodového pláště | D4: =IF(parametry!B110=TRUE,Zateplení!F58,"ne") -> ne | E4: =IF(D4="ano",1,0) -> 0 | F4: =F3+E4 -> 0 | G4: =IF(F3=F4,0,F4) -> 0 | H4: 0 | I4: =CONCATENATE(P4,", tloušťka TI: ",Q4," mm, plocha zateplované konstrukce: ",R4," m2") -> 0, tloušťka TI: 0 mm, plocha zateplované konstrukce: 0 m2 | J4: =IF(V4="Konstrukce nesplňuje požadavky programu","Opatření NESPLŇUJE požadavek programu","Opatření splňuje požadavek programu") -> Opatření splňuje požadavek programu | P4: =Zateplení!F59 -> 0 | Q4: =Zateplení!F60 -> 0 | R4: =Zateplení!F61 -> 0 | S4: =Zateplení!F62 -> 0 | T4: =Zateplení!F63 ->  | U4: =Zateplení!F64 ->  | V4: =Zateplení!F65 -> 
A5: 3 | B5: Zateplení | C5: Zateplení střechy | D5: =IF(parametry!B110=TRUE,Zateplení!F66,"ne") -> ne | E5: 0 | F5: 0 | G5: 0 | H5: 0 | I5: =CONCATENATE(P5,", tloušťka TI: ",Q5," mm, plocha zateplované konstrukce: ",R5," m2") -> 0, tloušťka TI: 0 mm, plocha zateplované konstrukce: 0 m2 | J5: =IF(V5="Konstrukce nesplňuje požadavky programu","Opatření NESPLŇUJE požadavek programu","Opatření splňuje požadavek programu") -> Opatření splňuje požadavek programu | P5: =Zateplení!F67 -> 0 | Q5: =Zateplení!F68 -> 0 | R5: =Zateplení!F69 -> 0 | S5: =Zateplení!F70 -> 0 | T5: =Zateplení!F71 ->  | U5: =Zateplení!F72 ->  | V5: =Zateplení!F73 -> 
A6: 4 | B6: Zateplení | C6: Zateplení podlahy | D6: =IF(parametry!B110=TRUE,Zateplení!F74,"ne") -> ne | E6: 0 | F6: 0 | G6: 0 | H6: 0 | I6: =CONCATENATE(P6,", tloušťka TI: ",Q6," mm, plocha zateplované konstrukce: ",R6," m2") -> 0, tloušťka TI: 0 mm, plocha zateplované konstrukce: 0 m2 | J6: =IF(V6="Konstrukce nesplňuje požadavky programu","Opatření NESPLŇUJE požadavek programu","Opatření splňuje požadavek programu") -> Opatření splňuje požadavek programu | P6: =Zateplení!F75 -> 0 | Q6: =Zateplení!F76 -> 0 | R6: =Zateplení!F77 -> 0 | S6: =Zateplení!F70 -> 0 | T6: =Zateplení!F71 ->  | U6: =Zateplení!F72 ->  | V6: =Zateplení!F81 -> 
A7: 5 | B7: Zateplení | C7: Výměna oken, výplní ve stěně | D7: =IF(parametry!B110=TRUE,Zateplení!F82,"ne") -> ne | E7: 0 | F7: 0 | G7: 0 | H7: 0 | I7: =CONCATENATE(,W7,", plocha vyměňovaných výplní: ",X7," m2, součinitel prostupu tepla: ",Y7," W/(m2.K)") -> 0, plocha vyměňovaných výplní: 0 m2, součinitel prostupu tepla: 0 W/(m2.K) | J7: =IF(AA7="Konstrukce nesplňuje požadavky programu","Opatření NESPLŇUJE požadavek programu","Opatření splňuje požadavek programu") -> Opatření splňuje požadavek programu | W7: =Zateplení!F83 -> 0 | X7: =Zateplení!F84 -> 0 | Y7: =Zateplení!F85 -> 0 | Z7: =Zateplení!F86 ->  | AA7: =Zateplení!F87 -> 
A8: 6 | B8: Zateplení | C8: Výměna dveří, vrat | D8: =IF(parametry!B110=TRUE,Zateplení!F88,"ne") -> ne | E8: 0 | F8: 0 | G8: 0 | H8: 0 | I8: =CONCATENATE(,W8,", plocha vyměňovaných výplní: ",X8," m2, součinitel prostupu tepla: ",Y8," W/(m2.K)") -> 0, plocha vyměňovaných výplní: 0 m2, součinitel prostupu tepla: 0 W/(m2.K) | J8: =IF(AA8="Konstrukce nesplňuje požadavky programu","Opatření NESPLŇUJE požadavek programu","Opatření splňuje požadavek programu") -> Opatření splňuje požadavek programu | W8: =Zateplení!F89 -> 0 | X8: =Zateplení!F90 -> 0 | Y8: =Zateplení!F91 -> 0 | Z8: =Zateplení!F92 ->  | AA8: =Zateplení!F93 -> 
A9: 7 | B9: Zateplení | C9: Výměna střešních oken, světlíků | D9: =IF(parametry!B110=TRUE,Zateplení!F94,"ne") -> ne | E9: 0 | F9: 0 | G9: 0 | H9: 0 | I9: =CONCATENATE(,W9,", plocha vyměňovaných výplní: ",X9," m2, součinitel prostupu tepla: ",Y9," W/(m2.K)") -> 0, plocha vyměňovaných výplní: 0 m2, součinitel prostupu tepla: 0 W/(m2.K) | J9: =IF(AA9="Konstrukce nesplňuje požadavky programu","Opatření NESPLŇUJE požadavek programu","Opatření splňuje požadavek programu") -> Opatření splňuje požadavek programu | W9: =Zateplení!F95 -> 0 | X9: =Zateplení!F96 -> 0 | Y9: =Zateplení!F97 -> 0 | Z9: =Zateplení!F98 ->  | AA9: =Zateplení!F99 -> 
A10: 8 | B10: Zateplení | C10: Instalace mechanického větrání s rekuperací | D10: =IF(parametry!B110=TRUE,Zateplení!F100,"ne") -> ne | E10: 0 | F10: 0 | G10: 0 | H10: 0 | I10: =CONCATENATE("účinnost systému nuceného větrání: ",AB10*100,"%, větraný objem: ",AC10," m3/h") -> účinnost systému nuceného větrání: 0%, větraný objem: 0 m3/h | J10: =IF(AD10="Nesplňuje požadavky na účinnost rekuperace, účinnost musí být alespoň 67%","Opatření NESPLŇUJE požadavek programu","Opatření splňuje požadavek programu") -> Opatření splňuje požadavek programu | AB10: =Zateplení!F101 -> 0 | AC10: =Zateplení!F102 -> 0 | AD10: =Zateplení!G101 -> 
A11: 9 | B11: Osvětlení | C11: Výměna klasických žárovek | D11: =IF(parametry!B111=TRUE,Osvětlení!E4,"ne") -> ne | E11: 0 | F11: 0 | G11: 0 | H11: 0 | I11: =CONCATENATE("počet vyměňových zdrojů ",AE11,", celkový příkon vyměňových zdrojů ",AF11," W, průměrný příkon 1 zdroje: ",AG11," W") ->  | J11: Opatření splňuje požadavek programu | AE11: =Osvětlení!E5 -> 0 | AF11: =IF(AND(Osvětlení!E7=0,Osvětlení!E8=0),0,IF(Osvětlení!E7=0,AE11*AG11,Osvětlení!E7)) -> 0 | AG11: =IF(Osvětlení!E8=0,AF11/AE11,Osvětlení!E8) -> 
A12: 10 | B12: Osvětlení | C12: Výměna halogenových žárovek | D12: =IF(parametry!B111=TRUE,Osvětlení!E10,"ne") -> ne | E12: 0 | F12: 0 | G12: 0 | H12: 0 | I12: =CONCATENATE("počet vyměňových zdrojů ",AE12,", celkový příkon vyměňových zdrojů ",AF12," W, průměrný příkon 1 zdroje: ",AG12," W") ->  | J12: Opatření splňuje požadavek programu | AE12: =Osvětlení!E11 -> 0 | AF12: =IF(AND(Osvětlení!E13=0,Osvětlení!E14=0),0,IF(Osvětlení!E13=0,AE12*AG12,Osvětlení!E13)) -> 0 | AG12: =IF(Osvětlení!E14=0,AF12/AE12,Osvětlení!E14) -> 
A13: 11 | B13: Osvětlení | C13: Výměna zářivek | D13: =IF(parametry!B111=TRUE,Osvětlení!E16,"ne") -> ne | E13: 0 | F13: 0 | G13: 0 | H13: 0 | I13: =CONCATENATE("počet vyměňových zdrojů ",AE13,", celkový příkon vyměňových zdrojů ",AF13," W, průměrný příkon 1 zdroje: ",AG13," W") ->  | J13: Opatření splňuje požadavek programu | AE13: =Osvětlení!E17 -> 0 | AF13: =IF(AND(Osvětlení!E19=0,Osvětlení!E20=0),0,IF(Osvětlení!E19=0,AE13*AG13,Osvětlení!E19)) -> 0 | AG13: =IF(Osvětlení!E20=0,AF13/AE13,Osvětlení!E20) -> 
A14: 12 | B14: Osvětlení | C14: Výměna rtuťových výbojek | D14: =IF(parametry!B111=TRUE,Osvětlení!E22,"ne") -> ne | E14: 0 | F14: 0 | G14: 0 | H14: 0 | I14: =CONCATENATE("počet vyměňových zdrojů ",AE14,", celkový příkon vyměňových zdrojů ",AF14," W, průměrný příkon 1 zdroje: ",AG14," W") ->  | J14: Opatření splňuje požadavek programu | AE14: =Osvětlení!E23 -> 0 | AF14: =IF(AND(Osvětlení!E25=0,Osvětlení!E26=0),0,IF(Osvětlení!E25=0,AE14*AG14,Osvětlení!E25)) -> 0 | AG14: =IF(Osvětlení!E26=0,AF14/AE14,Osvětlení!E26) -> 
A15: 13 | B15: Osvětlení | C15: Výměna kompaktních zářivek (CFL) | D15: =IF(parametry!B111=TRUE,Osvětlení!E28,"ne") -> ne | E15: 0 | F15: 0 | G15: 0 | H15: 0 | I15: =CONCATENATE("počet vyměňových zdrojů ",AE15,", celkový příkon vyměňových zdrojů ",AF15," W, průměrný příkon 1 zdroje: ",AG15," W") ->  | J15: Opatření splňuje požadavek programu | AE15: =Osvětlení!E29 -> 0 | AF15: =IF(AND(Osvětlení!E31=0,Osvětlení!E32=0),0,IF(Osvětlení!E31=0,AE15*AG15,Osvětlení!E31)) -> 0 | AG15: =IF(Osvětlení!E32=0,AF15/AE15,Osvětlení!E32) -> 
J17: =IFERROR(VLOOKUP("Opatření NESPLŇUJE požadavek programu",J3:J15,1,0),"Všechna opatření splňují požadavky programu") -> Všechna opatření splňují požadavky programu
B20: Výsledek | C20: Opatření | D20: Popis | E20: Vyhodnocení
A21: 1 | C21: =IF(H3=0,"",INDEX($C$3:$C$15,$H3)) ->  | D21: =IF(C21="","",VLOOKUP(C21,$C$3:$J$15,7,0)) ->  | E21: =IF(C21="","",VLOOKUP(C21,$C$3:$J$15,8,0)) -> 
A22: 2 | C22: =IF(H4=0,"",INDEX($C$3:$C$15,$H4)) ->  | D22: =IF(C22="","",VLOOKUP(C22,$C$3:$J$15,7,0)) ->  | E22: =IF(C22="","",VLOOKUP(C22,$C$3:$J$15,8,0)) -> 
A23: 3
A24: 4
A25: 5 | D25: =IF(C25="","",VLOOKUP(C25,$C$3:$J$15,7,0)) -> 
A26: 6
A27: 7
A28: 8
A29: 9
A30: 10
A31: 11
A32: 12
A33: 13
A34: 14

Sheet Tisk (hidden)
A2: Energetické vyhodnocení projektu
A3: v programu podpory Úspory energie
A5: Identifikační údaje
A6: Název projektu: | D6: ='Hlavní list'!C6 -> 0
A7: Klient: | D7: ='Hlavní list'!C7 -> 0
A8: IČ klienta: | D8: ='Hlavní list'!C8 -> 0
A9: Adresa žadatele: | D9: ='Hlavní list'!C9 -> 0
A10: Adresa místa realizace projektu: | D10: ='Hlavní list'!C10 -> 0
A11: Popis projektu: | D11: ='Hlavní list'!C11 -> 0
A13: Vysvětlivky pro žadatele: • Odpovězte prosím na otázky v checklistu ano / ne / není relevantní. • Po zaškrtnutí odpovědí pokračujte prosím podpisem prohlášení.
A15: Checklist | E15: Označte pomocí x jednu z možností
E16: ano | F16: ne | G16: není relevantní
A17: a) Projekt dosáhl minimální dosažené úspory ve výši 10 % a dokázal dosažitelnost úspory, je v souladu s normami a právními předpisy EU v oblasti životního prostředí a je nákladově optimální, tj. předpokládá pořízení majetku v dané cenové hladině přiměřené potřebě realizace projektu. | E17: =IF('Hlavní list'!C40>10%,"x","") ->  | F17: =IF('Hlavní list'!C40<10%,"x","") -> x
A18: b) Podle zákona č. 165/2012 Sb. o podporovaných zdrojích energie a o změně některých zákonů ve znění pozdějších předpisů § 25 bod 5) Investiční podpora tepla podle odstavců 3 a 4 se nevztahuje na solární systémy nebo systémy s tepelnými čerpadly, které by svým provozem zhoršily celkovou průměrnou roční účinnost stávajících účinných soustav zásobování tepelnou energií. Tyto soustavy zásobování tepelnou energií eviduje a způsobem umožňujícím dálkový přístup zveřejňuje Energetický regulační úřad do 30. dubna následujícího roku.
A19: e) Samostatnou instalaci OZE pro vlastní spotřebu podniku (využití biomasy, solární tepelná čerpadla a fotovoltaické systémy) není možné podpořit, pokud nebude úspora energie ve smyslu definice podle směrnice 2012/27/EU o energetické účinnosti, tzn. úspory energie dosažené zvýšení energetické účinnosti oproti původnímu zdroji
A20: g) Pokud se jedná o provozovatele stacionárního zařízení v České republice, který je součástí Evropského systému emisního obchodování, tak se na projekty vztahuje omezení vyplývající z preambule (3) a z kapitoly I článku 3 bod 3. b) Nařízení Evropského parlamentu a rady (EU) č. 1301/2013 ze dne 17. prosince 2013 o Evropském fondu pro regionální rozvoj, o zvláštních ustanovených týkajících se cíle Investice pro růst a zaměstnanost a o zrušení nařízení (ES) č. 1080/2006.
A21: j) V případě realizace kotle na biomasu budou podporovány pouze kotle splňující požadavky Nařízení komise č. 2015/1189 ze dne 28. dubna 2015, kterým se provádí směrnice Evropského parlamentu a Rady 2009/125/ES, pokud jde o požadavky na ekodesign kotlů na tuhá paliva požadavky od 1. 1. 2020).
A22: k) Podpořeny nebudou projekty zaměřené na rekonstrukci/výstavbu zdroje kombinované výroby elektřiny a tepla a monovýroby tepla, která využívá jako palivo uhlí nebo spoluspalování uhlí a biomasy.
A23: l) V případě projektu, který bude využívat dřevní biomasu, je nutno zajistit udržitelné dodávky z lokálních zdrojů. Tato udržitelná dodávka z lokálních zdrojů je buď z vlastních lokálních zdrojů, nebo bude potvrzená příslibem dodávky dřevní biomasy ve formě smlouvy o smlouvě budoucí od lokálního dodavatele.
A24: m) Projekt nesmí být financován provozní podporou obnovitelných zdrojů energie.
A25: n) Podpořeny budou pouze projekty, které splňují požadavky mezních hodnot emisí pro spalovací zařízení podle Směrnice 2015/2193/ES o omezení emisí některých znečišťujících látek do ovzduší ze středních spalovacích zařízení.
A26: o) o) Pokud v rámci předcházejících 3 let nelze doložit energetické vstupy spotřeby energie alespoň za jeden rok na základě předložených faktur za energii (bude akceptováno období začínající od 1. 1. 2016), tak projekt není způsobilý. Neuplatí na projekty, kde opatření mají vliv pouze na celkovou dodanou energii do budovy podle vyhlášky č. 78/2013 Sb., o energetické náročnosti budov, tj. na jakoukoliv kombinaci dílčích dodaných energií na vytápění, chlazení, větrání, úpravu vlhkosti vzduchu, přípravu teplé vody a osvětlení.
A27: p) Po realizaci projektu musí budova plnit minimálně parametry energetické náročnosti budov podle požadavků definovaných § 6 odst. 2 písm. b) vyhlášky č.78/2013 Sb., o energetické náročnosti budov). Hodnoty ukazatelů energetické náročnosti hodnocené budovy (průměrný součinitel prostupu tepla a celková dodaná energie za rok nejsou vyšší než referenční hodnoty těchto ukazatelů energetické náročnosti pro referenční budovu.
A28: q) V případě realizace opatření ke snižování energetické náročnosti budov, u kterých dochází k jiné než větší změně dokončené budovy nebo větší změně dokončené budovy, ale není možné z technických nebo ekonomických důvodů plnit bod „mp“, pak všechny měněné/upravované stavební prvky/konstrukce obálky budovy na systémové hranici, na kterých dochází k realizaci opatření, musí splnit podmínku na součinitel prostupu tepla příslušné Urec dle ČSN 730540 - 2:2011 a uvažované návrhové teploty.
A29: r) Pro průmyslové a výrobní provozy, dílenské provozovny a zemědělské budovy se spotřebou energie do 700 GJ za rok platí pro danou část opatření podmínka U ≤ UN (Normové hodnoty součinitele prostupu tepla UN, pro uvažovanou návrhovou teplotu jednotlivých konstrukcí dle ČSN 73 0540-2:2011 Tepelná ochrana budov).
A30: s) Požadavky podle bodů „p“ nebo „q“ nebo „r“ se netýkají památkově chráněných budov v souladu s § 7 odst. 5 zákona č. 406/2000 Sb. ve znění pozdějších předpisů a architektonicky cenných budov.
A31: t) V případě realizace opatření ke snižování energetické náročnosti budov jednoznačně definována povinnost na vyregulování otopné soustavy.
A32: u) V případě realizace opatření zahrnující větrací jednotky musí být plněny požadavky dle Nařízení Komise (EU) 1253/2014 týkající se požadavků na ekodesign větracích jednotek.
A33: y) Investice musí vést ke snížení emisí CO2 v porovnání se stávajícími zařízeními v případě přechodu na jiná paliva minimálně o 30 % (například z tuhých fosilních paliv na zemní plyn). Tato podmínka se nevztahuje na výměnu stávajících plynových kotlů s novými jednotkami (vysoce účinné kondenzační kotle). Investice mohou zahrnovat kotle na biomasu. Do celkové energické bilance pro výpočet snížení CO2 vlivem instalace nového zdroje nemusí být započítána spotřeba energie na technologické a ostatní procesy.
A35: Předpokládané výdaje na realizaci projektu: | F35: Kč
A36: Výdaje na technické zhodnocení stavby (materiál a práce pro provedení zateplení, výměna u stavebních otvorů, další stavební práce spojené s provedením energetického opatření) | F36: ='Hlavní list'!D20 -> 0
A37: Výdaje na výměnu stávajícího zdroje energie (výměna kotle, apod.) | F37: ='Hlavní list'!D22 -> 0
A38: Výdaje na provedení výměny stávajícího osvětlení v budovách | F38: ='Hlavní list'!D24 -> 0
A39: Výdaje celkem | F39: ='Hlavní list'!D26 -> 0
A42: Dosažené výsledky projektu: | F42: kWh | G42: GJ
A43: Výchozí roční spotřeba energie | F43: ='Hlavní list'!C37 ->  | G43: ='Hlavní list'!D37 -> 
A44: Výsledná roční spotřeba energie | F44: ='Hlavní list'!C38 ->  | G44: ='Hlavní list'!D38 -> 
A45: Roční úspora paliv a energie | F45: ='Hlavní list'!C39 ->  | G45: ='Hlavní list'!D39 -> 
A47: Roční úspora paliv a energie [%] | G47: ='Hlavní list'!C40 -> 0
A48: Roční úspora emisí CO2 [kg] | G48: ='Hlavní list'!C41 -> 0
A49: Roční úspora emisí CO2 [%] | G49: ='Hlavní list'!C42 -> 0
A50: Roční úspora emisí tuhých látek [kg] | G50: ='Hlavní list'!D43 -> 0
A51: Roční úspora emisí frakcí PM10 [kg] | G51: ='Hlavní list'!D44 -> 0
A52: Roční úspora emisí frakcí PM2,5 [kg] | G52: ='Hlavní list'!D45 -> 0
A53: Roční úspora nákladů na energii [Kč] | G53: ='Hlavní list'!C46 -> 0
A54: ='Hlavní list'!C48 -> Nejsou zadána všechna data
A57: Realizovaná opatření | C57: Popis opatření | E57: Vyhodnocení opatření
A58: ='opatření k realizaci'!C21 ->  | C58: ='opatření k realizaci'!D21 ->  | E58: ='opatření k realizaci'!E21 -> 
A59: ='opatření k realizaci'!C22 ->  | C59: ='opatření k realizaci'!D22 ->  | E59: ='opatření k realizaci'!E22 -> 
A60: ='opatření k realizaci'!C23 ->  | C60: ='opatření k realizaci'!D23 ->  | E60: ='opatření k realizaci'!E23 -> 
A61: ='opatření k realizaci'!C24 ->  | C61: ='opatření k realizaci'!D24 ->  | E61: ='opatření k realizaci'!E24 -> 
A62: ='opatření k realizaci'!C25 ->  | C62: ='opatření k realizaci'!D25 ->  | E62: ='opatření k realizaci'!E25 -> 
A63: ='opatření k realizaci'!C26 ->  | C63: ='opatření k realizaci'!D26 ->  | E63: ='opatření k realizaci'!E26 -> 
A64: ='opatření k realizaci'!C27 ->  | C64: ='opatření k realizaci'!D27 ->  | E64: ='opatření k realizaci'!E27 -> 
A65: ='opatření k realizaci'!C28 ->  | C65: ='opatření k realizaci'!D28 ->  | E65: ='opatření k realizaci'!E28 -> 
A66: ='opatření k realizaci'!C29 ->  | C66: ='opatření k realizaci'!D29 ->  | E66: ='opatření k realizaci'!E29 -> 
A67: ='opatření k realizaci'!C30 ->  | C67: ='opatření k realizaci'!D30 ->  | E67: ='opatření k realizaci'!E30 -> 
A68: ='opatření k realizaci'!C31 ->  | C68: ='opatření k realizaci'!D31 ->  | E68: ='opatření k realizaci'!E31 -> 
A69: ='opatření k realizaci'!C32 ->  | C69: ='opatření k realizaci'!D32 ->  | E69: ='opatření k realizaci'!E32 -> 
A70: ='opatření k realizaci'!C33 ->  | C70: ='opatření k realizaci'!D33 ->  | E70: ='opatření k realizaci'!E33 -> 
A71: ='opatření k realizaci'!C34 ->  | C71: ='opatření k realizaci'!D34 ->  | E71: ='opatření k realizaci'!E34 -> 
A74: Projekt, který je předmětem energetické posouzení generuje roční úsporu primárních energetických vstupů v hodnotě | F74: =G45 ->  | G74: GJ
A75: Způsobilé výdaje pro realizaci projektu jsou ve výši | F75: =F39 -> 0
A76: Výše roční úspory emisí CO2 realizované projektem jsou ve výši | F76: =G48 -> 0 | G76: kg
A77: Měrné způsobilé výdaje na snížení CO2 | F77: =IFERROR(F39/G48,0) -> 0 | G77: Kč/kg
A79: Žadatel, který provedl Energetické posouzení projektu, si zajistil patřičnou kontrolu kvality a platnosti výsledků samo-hodnotícího nástroje. Potvrzuje, že Energetické posouzení bylo provedeno správně a v souladu s podmínkami uvedenými v Příloze č. 4 Výzvy v rámci Finančního nástroje Úspory energie - úvěry. Byly použity správné údaje a byla zvolena správná opatření.
A80: Žadatel je povinen realizovat projekt dle zadaných parametrů v rozsahu popisu zadanými pro správné vyhodnocení energetické úspory. V případě, že by došlo během realizace k odchýlení od plánovaného stavu, je žadatel povinen předložit nové energetické posouzení, které prokáže, že projekt splňuje parametry platné Výzvy programu Úspory energie - úvěry. V případě, že by energetické hodnocení nemohlo být použito pro nový stav, je žadatel povinen postupovat podle pravidel Výzvy, a to zpracovat energetický posudek a následně ověřovací energetický posudek, který prokáže splnění podmínek Výzvy.
A86: Dne | B86: =TODAY() -> 2020-02-05
D87: Jméno osoby jednající za žadatele a podpis

Sheet export dat (hidden)
A1: Hlavní list | N1: Zateplení | CG1: Zdroj | CV1: Osvětlení | DY1: Hlavní list
N2: Základní informace o budově / Basic information about the building | Y2: Vyhodnocení plnění požadavků dle Průkazu energetické náročnosti | AE2: Vlastnosti budovy před realizací opatření / Building description | AM2: Opatření k realizaci / Measures for implementation | CG2: Parametry stávajícího zdroje tepla/Old boiler parameters | CN2: Parametry nového zdroje tepla / New boiler parameters | CV2: Jakého typu jsou stávající světelné zdroje? / What type of lighting do you plan to replace? | DY2: 3. Výsledky / Results
N3: 1.1 | O3: 1.2 | P3: 1.3. | Q3: 1.4 | R3: 1.5 | S3: 1.6 | T3: 1.7 | U3: 1.8 | V3: 1.9 | W3: 1.10 | X3: 1.11 | Y3: 2.1 | Z3: 2.2 | AA3: 2.3 | AB3: 2.4 | AC3: 2.5 | AD3: 2.6 | AE3: 3.1.1 | AF3: 3.1.2 | AG3: 3.1.3 | AH3: 3.1.4 | AI3: 3.1.5 | AJ3: 3.1.6 | AK3: 3.1.7 | AL3: 3.1.8 | AM3: 4.1.1 | AN3: 4.1.2 | AO3: 4.1.3 | AP3: 4.1.4 | AQ3: 4.1.5 | AR3: 4.1.6 | AS3: 4.1.7 | AT3: 4.1.8 | AU3: 4.2.1 | AV3: 4.2.2 | AW3: 4.2.3 | AX3: 4.2.4 | AY3: 4.2.5 | AZ3: 4.2.6 | BA3: 4.2.7 | BB3: 4.2.8 | BC3: 4.3.1 | BD3: 4.3.2 | BE3: 4.3.3 | BF3: 4.3.4 | BG3: 4.3.5 | BH3: 4.3.6 | BI3: 4.3.7 | BJ3: 4.3.8 | BK3: 4.4.1 | BL3: 4.4.2 | BM3: 4.4.3 | BN3: 4.4.4 | BO3: 4.4.5 | BP3: 4.4.6 | BQ3: 4.5.1 | BR3: 4.5.2 | BS3: 4.5.3 | BT3: 4.5.4 | BU3: 4.5.5 | BV3: 4.5.6 | BW3: 4.6.1 | BX3: 4.6.2 | BY3: 4.6.3 | BZ3: 4.6.4 | CA3: 4.6.5 | CB3: 4.6.6 | CC3: 4.7.1 | CD3: 4.7.2 | CE3: 4.7.3 | CG3: 1.1 | CH3: 1.2 | CI3: 1.3 | CJ3: 1.4 | CK3: 1.5 | CL3: 1.6 | CM3: 1.7 | CN3: 2.1 | CO3: 2.2 | CP3: 2.3 | CQ3: 2.4 | CR3: 2.5 | CS3: 2.6 | CT3: 2.7 | CU3: 2.8 | CV3: 1.1.1 | CW3: 1.1.2 | CX3: 1.1.3 | CY3: 1.1.4 | CZ3: 1.1.5 | DA3: 1.2.1 | DB3: 1.2.2 | DC3: 1.2.3 | DD3: 1.2.4 | DE3: 1.2.5 | DF3: 1.3.1 | DG3: 1.3.2 | DH3: 1.3.3 | DI3: 1.3.4 | DJ3: 1.3.5 | DK3: 1.4.1 | DL3: 1.4.2 | DM3: 1.4.3 | DN3: 1.4.4 | DO3: 1.4.5 | DP3: 1.5.1 | DQ3: 1.5.2 | DR3: 1.5.3 | DS3: 1.5.4 | DT3: 1.5.5 | DU3: 2.1.1 | DV3: 2.1.2 | DW3: 2.2 | DX3: 2.3
A4: Název projektu: | B4: Klient: | C4: IČ klienta: | D4: Adresa žadatele: | E4: Adresa místa realizace projektu: | F4: Popis projektu: | G4: Výdaje na technické zhodnocení stavby | H4: Výdaje na výměnu stávajícího zdroje energie (výměna kotle, apod.) | I4: Výdaje na provedení výměny stávajícího osvětlení v budovách | J4: Náklady projektu: | K4: 1. Výměna zdroje tepla / Boiler replacement | L4: 2. Zateplení, výměna oken / thermal insulation, windows replacement | M4: 3. Náhrada světelných zdrojů LED zdroji / Replacement of lighting with LED | N4: Jakým způsobem budete zadávat projekt? | O4: Typ posuzovaného objektu | P4: Památková ochrana budovy | Q4: Znáte roční spotřebu budovy? | R4: Jaká je roční spotřeba domu? | S4: Jaká je celková vytápěná plocha? | T4: Období výstavby | U4: Vnitřní návrhová teplota v otopném období | V4: Dochází v projektu ke změně zdroje na vytápění? | W4: Jaký typ zdroje je instalován? | X4: Jaké se používá palivo? | Y4: Vypočtená hodnota průměrného součinitele prostupu tepla Uem po realizaci projektu | Z4: Referenční hodnota průměrného součinitele prostupu tepla Uem,R po realizaci projektu | AA4: Vypočtená hodnota dodané energie ER po realizaci projektu | AB4: Vypočtená hodnota referenční dodané energie ER po realizaci projektu | AC4: Vypočtená hodnota dodané energie ER před realizací projektu | AD4: Vyhodnocení plnění požadavků na energetickou náročnost pro projekt jako celek | AE4: Obvodový plášť | AF4: Střecha | AG4: Střecha - typ konstrukce | AH4: Podlaha, strop nad suterénem | AI4: Podlaha, strop nad suterénem typ konstrukce | AJ4: Okna | AK4: Dveře, vrata | AL4: Střešní okna, světlíky | AM4: Vyberte ano / ne | AN4: Typ zateplení | AO4: Tloušťka tepelné izolace [mm] | AP4: Plocha zateplované konstrukce [m2] | AQ4: Součinitel prostupu tepla konstrukce z PENB [W/(m2.K)] | AR4: Součinitel prostupu tepla výpočet z kalkulačky [W/(m2.K)] | AS4: Požadavek programu na U [W/(m2.K)] | AT4: Vyhodnocení plnění požadavku | AU4: Vyberte ano / ne | AV4: Typ zateplení | AW4: Tloušťka tepelné izolace [mm] | AX4: Plocha zateplované konstrukce [m2] | AY4: Součinitel prostupu tepla konstrukce z PENB [W/(m2.K)] | AZ4: Součinitel prostupu tepla výpočet z kalkulačky [W/(m2.K)] | BA4: Požadavek programu na U [W/(m2.K)] | BB4: Vyhodnocení plnění požadavku | BC4: Vyberte ano / ne | BD4: Typ zateplení | BE4: Tloušťka tepelné izolace [mm] | BF4: Plocha zateplované konstrukce [m2] | BG4: Součinitel prostupu tepla konstrukce z PENB [W/(m2.K)] | BH4: Součinitel prostupu tepla výpočet z kalkulačky [W/(m2.K)] | BI4: Požadavek programu na U [W/(m2.K)] | BJ4: Vyhodnocení plnění požadavku | BK4: Vyberte ano / ne | BL4: Typ oken | BM4: Plocha vyměňovaných oken [m2] | BN4: Součinitel prostupu tepla nových oken [W/(m2.K)] | BO4: Požadavek programu na U [W/(m2.K)] | BP4: Vyhodnocení plnění požadavku | BQ4: Vyberte ano / ne | BR4: Typ dveří, vrat | BS4: Plocha vyměňovaných dveří, vrat [m2] | BT4: Součinitel prostupu tepla nových dveří, vrat [W/(m2.K)] | BU4: Požadavek programu na U [W/(m2.K)] | BV4: Vyhodnocení plnění požadavku | BW4: Vyberte ano / ne | BX4: Typ oken | BY4: Plocha vyměňovaných oken [m2] | BZ4: Součinitel prostupu tepla nových oken [W/(m2.K)] | CA4: Požadavek programu na U [W/(m2.K)] | CB4: Vyhodnocení plnění požadavku | CC4: Vyberte ano / ne | CD4: účinnost systému nuceného větrání v % | CE4: větraný objem v m3/h | CF4: vyhonocení plnění požadavků | CG4: O jaký typ zdroje se jedná? | CH4: V jakém období byl kotel vyroben? | CI4: Jaké se používá palivo? | CJ4: Jaká je spotřeba paliva za jeden rok? | CK4: Znáte účinnost kotle? | CL4: Jaká je účinnost? | CM4: Jaký je instalovaný výkon kotle? | CN4: Jaký je typ nového kotle? | CO4: Znáte účinnost nového kotle? | CP4: Jaká je účinnost? | CQ4: Jaký je instalovaný výkon zdroje? | CR4: Znáte sezónní účinnost (COP) tepelného čerpadla? | CS4: Zadejte sezónní účinnost tepelného čerpadla | CT4: Instalujete také solární systém? | CU4: Kolik m2 instalujete? | CV4: Jsou to klasické žárovky? | CW4: Jaký je jejich počet? | CX4: Znáte celkový příkon všech klasických žárovek? | CY4: Uveďte jejich celkový příkon | CZ4: Jaký je průměrný příkon klasických žárovek? | DA4: Halogenové žárovky | DB4: Jaký je jejich počet? | DC4: Znáte celkový příkon všech halogenových žárovek? | DD4: Uveďte jejich celkový příkon | DE4: Jaký je průměrný příkon halogenových žárovek? | DF4: Zářivky / Fluorescent lamp | DG4: Jaký je jejich počet? | DH4: Znáte celkový příkon všech zářivek? | DI4: Uveďte jejich celkový příkon | DJ4: Jaký je průměrný příkon zářivek? | DK4: Rtuťové výbojky / Discharge lamp | DL4: Jaký je jejich počet? | DM4: Znáte celkový příkon všech rtuťových výbojek? | DN4: Uveďte jejich celkový příkon | DO4: Jaký je průměrný příkon rtuťových výbojek? | DP4: Kompaktní zářivky (CFL) / Compact fluorescent lamps | DQ4: Jaký je jejich počet? | DR4: Znáte celkový příkon všech kompaktních zářivek? | DS4: Uveďte jejich celkový příkon | DT4: Jaký je průměrný příkon kompaktních zářivek? | DU4: Znáte celkovou spotřebu elektřiny všech světelných zdrojů? | DV4: Uveďte spotřebu elektřiny? | DW4: Kolik hodin denně jsou v průměru zapnuté všechny světelné zdroje? | DY4: Výchozí roční spotřeba energie [kWh] | DZ4: Výsledná roční spotřeba energie [kWh] | EA4: Roční úspora paliv a energie [kWh] | EB4: Roční úspora paliv a energie [%] | EC4: Roční úspora CO2 [t] | ED4: Roční úspora CO2 [%] | EE4: Roční úspora nákladů na energii [Kč]
A5: ='Hlavní list'!C6 -> 0 | B5: ='Hlavní list'!C7 -> 0 | C5: ='Hlavní list'!C8 -> 0 | D5: ='Hlavní list'!C9 -> 0 | E5: ='Hlavní list'!C10 -> 0 | F5: ='Hlavní list'!C11 -> 0 | G5: ='Hlavní list'!D20 -> 0 | H5: ='Hlavní list'!D22 -> 0 | I5: ='Hlavní list'!D24 -> 0 | J5: ='Hlavní list'!D26 -> 0 | K5: =parametry!B109 -> FALSE | L5: =parametry!B110 -> FALSE | M5: =parametry!B111 -> FALSE | N5: =IF(parametry!B136=1,parametry!A119,parametry!A120) -> Zadání projektu na základě Průkazu energetické náročnosti | O5: =Zateplení!F5 -> 0 | P5: =Zateplení!F6 -> 0 | Q5: =Zateplení!F7 -> 0 | R5: =Zateplení!F8 -> 0 | S5: =Zateplení!F9 -> 0 | T5: =Zateplení!F10 -> 0 | U5: =Zateplení!F11 -> 0 | V5: =Zateplení!F12 -> 0 | W5: =Zateplení!F13 -> 0 | X5: =Zateplení!F14 -> 0 | Y5: =Zateplení!F18 -> 0 | Z5: =Zateplení!F19 -> 0 | AA5: =Zateplení!F20 -> 0 | AB5: =Zateplení!F21 -> 0 | AC5: =Zateplení!F22 -> 0 | AD5: =Zateplení!F23 ->  | AE5: =Zateplení!F28 -> 0 | AF5: =Zateplení!F29 -> 0 | AG5: =Zateplení!F30 -> 0 | AH5: =Zateplení!F31 -> 0 | AI5: =Zateplení!F32 -> 0 | AJ5: =Zateplení!F33 -> 0 | AK5: =Zateplení!F34 -> 0 | AL5: =Zateplení!F35 -> 0 | AM5: =Zateplení!F58 -> 0 | AN5: =Zateplení!F59 -> 0 | AO5: =Zateplení!F60 -> 0 | AP5: =Zateplení!F61 -> 0 | AQ5: =Zateplení!F62 -> 0 | AR5: =Zateplení!F63 ->  | AS5: =Zateplení!F64 ->  | AT5: =Zateplení!F73 ->  | AU5: =Zateplení!F66 -> 0 | AV5: =Zateplení!F67 -> 0 | AW5: =Zateplení!F68 -> 0 | AX5: =Zateplení!F69 -> 0 | AY5: =Zateplení!F70 -> 0 | AZ5: =Zateplení!F71 ->  | BA5: =Zateplení!F72 ->  | BB5: =Zateplení!F73 ->  | BC5: =Zateplení!F74 -> 0 | BD5: =Zateplení!F75 -> 0 | BE5: =Zateplení!F76 -> 0 | BF5: =Zateplení!F77 -> 0 | BG5: =Zateplení!F78 -> 0 | BH5: =Zateplení!F79 ->  | BI5: =Zateplení!F80 ->  | BJ5: =Zateplení!F81 ->  | BK5: =Zateplení!F82 -> 0 | BL5: =Zateplení!F83 -> 0 | BM5: =Zateplení!F84 -> 0 | BN5: =Zateplení!F85 -> 0 | BO5: =Zateplení!F86 ->  | BP5: =Zateplení!F87 ->  | BQ5: =Zateplení!F88 -> 0 | BR5: =Zateplení!F89 -> 0 | BS5: =Zateplení!F90 -> 0 | BT5: =Zateplení!F91 -> 0 | BU5: =Zateplení!F92 ->  | BV5: =Zateplení!F93 ->  | BW5: =Zateplení!F94 -> 0 | BX5: =Zateplení!F95 -> 0 | BY5: =Zateplení!F96 -> 0 | BZ5: =Zateplení!F97 -> 0 | CA5: =Zateplení!F98 ->  | CB5: =Zateplení!F99 ->  | CC5: =Zateplení!F100 -> 0 | CD5: =Zateplení!F101 -> 0 | CE5: =Zateplení!F102 -> 0 | CF5: =Zateplení!G101 ->  | CG5: =Kotel!E4 -> 0 | CH5: =Kotel!E5 -> 0 | CI5: =Kotel!E6 -> 0 | CJ5: =Kotel!E7 -> 0 | CK5: =Kotel!E8 -> 0 | CL5: =parametry!G75 ->  | CM5: =Kotel!E10 -> 0 | CN5: =Kotel!E13 -> 0 | CO5: =Kotel!E14 -> 0 | CP5: =parametry!G76 ->  | CQ5: =Kotel!E16 -> 0 | CR5: =Kotel!E17 -> 0 | CS5: =Kotel!E18 -> 0 | CT5: =Kotel!#REF! ->  | CU5: =Kotel!#REF! ->  | CV5: =Osvětlení!E4 -> 0 | CW5: =Osvětlení!E5 -> 0 | CX5: =Osvětlení!E6 -> 0 | CY5: =Osvětlení!E7 -> 0 | CZ5: =Osvětlení!E8 -> 0 | DA5: =Osvětlení!E10 -> 0 | DB5: =Osvětlení!E11 -> 0 | DC5: =Osvětlení!E12 -> 0 | DD5: =Osvětlení!E13 -> 0 | DE5: =Osvětlení!E14 -> 0 | DF5: =Osvětlení!E16 -> 0 | DG5: =Osvětlení!E17 -> 0 | DH5: =Osvětlení!E18 -> 0 | DI5: =Osvětlení!E19 -> 0 | DJ5: =Osvětlení!E20 -> 0 | DK5: =Osvětlení!E22 -> 0 | DL5: =Osvětlení!E23 -> 0 | DM5: =Osvětlení!E24 -> 0 | DN5: =Osvětlení!E25 -> 0 | DO5: =Osvětlení!E26 -> 0 | DP5: =Osvětlení!E28 -> 0 | DQ5: =Osvětlení!E29 -> 0 | DR5: =Osvětlení!E30 -> 0 | DS5: =Osvětlení!E31 -> 0 | DT5: =Osvětlení!E32 -> 0 | DU5: =Osvětlení!E35 -> 0 | DV5: =Osvětlení!E36 -> 0 | DW5: =Osvětlení!E37 -> 0 | DX5: =Osvětlení!E38 -> 0 | DY5: ='Hlavní list'!C37 ->  | DZ5: ='Hlavní list'!C38 ->  | EA5: ='Hlavní list'!C39 ->  | EB5: ='Hlavní list'!C40 -> 0 | EC5: ='Hlavní list'!C41 -> 0 | ED5: ='Hlavní list'!C42 -> 0 | EE5: ='Hlavní list'!C46 -> 0
